Body Name,Body,Service Label,Service Code,CIPFA Detailed Expenditure Type,CIPFA Detailed Expenditure Code,Date,Transaction Number,Net Amount,Supplier Name,,,,,,,,,#REF!
Nottinghamshire County Council,1111/1001,Surplus or Deficit from Trading Undertak,TRADING,Premises Related,BJA,28/08/2015,05-10001,594.92,Biffa Waste Services Ltd,,,,,,,,,
Nottinghamshire County Council,1111/1001,Surplus or Deficit from Trading Undertak,TRADING,Supplies & Services,DDA,04/08/2015,05-10001,"2,480.68",Hamelin Paperbrands Ltd,,,,,,,,,
Nottinghamshire County Council,1111/1001,Surplus or Deficit from Trading Undertak,TRADING,Supplies & Services,DDA,11/08/2015,05-10001,988.64,Hamelin Paperbrands Ltd,,,,,,,,,
Nottinghamshire County Council,1111/1001,Surplus or Deficit from Trading Undertak,TRADING,Supplies & Services,DDA,11/08/2015,05-10001,"3,288.79",Hamelin Paperbrands Ltd,,,,,,,,,
Nottinghamshire County Council,1111/1001,Surplus or Deficit from Trading Undertak,TRADING,Supplies & Services,DDA,27/08/2015,05-10001,"1,833.45",Hamelin Paperbrands Ltd,,,,,,,,,
Nottinghamshire County Council,1111/1001,Surplus or Deficit from Trading Undertak,TRADING,Supplies & Services,DDA,17/08/2015,05-10001,643,Pukka Filing Products Ltd,,,,,,,,,
Nottinghamshire County Council,1111/1001,Surplus or Deficit from Trading Undertak,TRADING,Supplies & Services,DDA,04/08/2015,05-10001,559.92,Plastoreg Smidt Gmbh,,,,,,,,,
Nottinghamshire County Council,1111/1001,Surplus or Deficit from Trading Undertak,TRADING,Supplies & Services,DDA,11/08/2015,05-10001,610.2,Plastoreg Smidt Gmbh,,,,,,,,,
Nottinghamshire County Council,1111/1001,Surplus or Deficit from Trading Undertak,TRADING,Supplies & Services,DDA,14/08/2015,05-10001,"5,849.04",Henkel Loctite Adhesives Ltd,,,,,,,,,
Nottinghamshire County Council,1111/1001,Surplus or Deficit from Trading Undertak,TRADING,Supplies & Services,DDA,27/08/2015,05-10001,780.64,Henkel Loctite Adhesives Ltd,,,,,,,,,
Nottinghamshire County Council,1111/1001,Surplus or Deficit from Trading Undertak,TRADING,Supplies & Services,DAA,04/08/2015,05-10001,603.35,Reliance Medical Ltd,,,,,,,,,
Nottinghamshire County Council,1111/1001,Surplus or Deficit from Trading Undertak,TRADING,Supplies & Services,DAA,27/08/2015,05-10001,523.05,Synergy Health (Uk) Ltd,,,,,,,,,
Nottinghamshire County Council,1111/1001,Surplus or Deficit from Trading Undertak,TRADING,Supplies & Services,DAA,27/08/2015,05-10001,648,Stuff-Uk-Net,,,,,,,,,
Nottinghamshire County Council,1111/1001,Surplus or Deficit from Trading Undertak,TRADING,Supplies & Services,DAA,25/08/2015,05-10001,582,Flip File Ltd,,,,,,,,,
Nottinghamshire County Council,1111/1001,Surplus or Deficit from Trading Undertak,TRADING,Supplies & Services,DAA,11/08/2015,05-10001,526.77,Vivid Laminating Technologies Ltd,,,,,,,,,
Nottinghamshire County Council,1111/1001,Surplus or Deficit from Trading Undertak,TRADING,Supplies & Services,DAA,04/08/2015,05-10001,"2,833.60",Vivid Laminating Technologies Ltd,,,,,,,,,
Nottinghamshire County Council,1111/1001,Surplus or Deficit from Trading Undertak,TRADING,Supplies & Services,DAA,04/08/2015,05-10001,"1,976.40",Antalis Key Accounts,,,,,,,,,
Nottinghamshire County Council,1111/1001,Surplus or Deficit from Trading Undertak,TRADING,Supplies & Services,DAA,11/08/2015,05-10001,"1,169.25",Antalis Key Accounts,,,,,,,,,
Nottinghamshire County Council,1111/1001,Surplus or Deficit from Trading Undertak,TRADING,Supplies & Services,DAA,25/08/2015,05-10001,"1,918.00",Antalis Key Accounts,,,,,,,,,
Nottinghamshire County Council,1111/1001,Surplus or Deficit from Trading Undertak,TRADING,Premises Related,BAA,04/08/2015,05-10001,513.24,Flexiform Business Furniture,,,,,,,,,
Nottinghamshire County Council,1111/1001,Surplus or Deficit from Trading Undertak,TRADING,Premises Related,BAA,25/08/2015,05-10001,827.25,Avery Uk,,,,,,,,,
Nottinghamshire County Council,1111/1001,Surplus or Deficit from Trading Undertak,TRADING,Premises Related,BJA,24/08/2015,05-10001,"1,817.20",Freudenberg Household Products Lp,,,,,,,,,
Nottinghamshire County Council,1111/1001,Surplus or Deficit from Trading Undertak,TRADING,Premises Related,BJA,25/08/2015,05-10001,525.5,Freudenberg Household Products Lp,,,,,,,,,
Nottinghamshire County Council,1111/1001,Surplus or Deficit from Trading Undertak,TRADING,Premises Related,BJA,11/08/2015,05-10001,"3,092.10",Polystar Plastics Ltd,,,,,,,,,
Nottinghamshire County Council,1111/1001,Surplus or Deficit from Trading Undertak,TRADING,Premises Related,BJA,25/08/2015,05-10001,"1,088.64",Polystar Plastics Ltd,,,,,,,,,
Nottinghamshire County Council,1111/1001,Surplus or Deficit from Trading Undertak,TRADING,Premises Related,BJA,28/08/2015,05-10001,"3,857.50",Polystar Plastics Ltd,,,,,,,,,
Nottinghamshire County Council,1111/1001,Surplus or Deficit from Trading Undertak,TRADING,Premises Related,BJA,04/08/2015,05-10001,626.7,Kimberley Clark European Services Ltd,,,,,,,,,
Nottinghamshire County Council,1111/1001,Surplus or Deficit from Trading Undertak,TRADING,Premises Related,BJA,04/08/2015,05-10001,"1,044.00",Kimberley Clark European Services Ltd,,,,,,,,,
Nottinghamshire County Council,1111/1001,Surplus or Deficit from Trading Undertak,TRADING,Premises Related,BJA,04/08/2015,05-10001,"1,060.80",Kimberley Clark European Services Ltd,,,,,,,,,
Nottinghamshire County Council,1111/1001,Surplus or Deficit from Trading Undertak,TRADING,Premises Related,BJA,04/08/2015,05-10001,"1,378.56",Cromwell Polythene Ltd,,,,,,,,,
Nottinghamshire County Council,1111/1001,Surplus or Deficit from Trading Undertak,TRADING,Premises Related,BJA,04/08/2015,05-10001,777.16,Midland Wiper Manufacturing Co Ltd,,,,,,,,,
Nottinghamshire County Council,1111/1001,Surplus or Deficit from Trading Undertak,TRADING,Premises Related,BJA,27/08/2015,05-10001,516.24,3M (United Kingdom) Plc,,,,,,,,,
Nottinghamshire County Council,1111/1001,Surplus or Deficit from Trading Undertak,TRADING,Premises Related,BJA,04/08/2015,05-10001,864.56,Evans Vanodine International Ltd,,,,,,,,,
Nottinghamshire County Council,1111/1001,Surplus or Deficit from Trading Undertak,TRADING,Premises Related,BJA,19/08/2015,05-10001,613.76,Evans Vanodine International Ltd,,,,,,,,,
Nottinghamshire County Council,1111/1001,Surplus or Deficit from Trading Undertak,TRADING,Premises Related,BJA,04/08/2015,05-10001,"2,893.80",Johnson Diversey,,,,,,,,,
Nottinghamshire County Council,1111/1001,Surplus or Deficit from Trading Undertak,TRADING,Premises Related,BJA,04/08/2015,05-10001,"5,092.59",Johnson Diversey,,,,,,,,,
Nottinghamshire County Council,1111/1001,Surplus or Deficit from Trading Undertak,TRADING,Premises Related,BJA,11/08/2015,05-10001,"2,869.88",Johnson Diversey,,,,,,,,,
Nottinghamshire County Council,1111/1001,Surplus or Deficit from Trading Undertak,TRADING,Premises Related,BJA,19/08/2015,05-10001,888.5,Johnson Diversey,,,,,,,,,
Nottinghamshire County Council,1111/1001,Surplus or Deficit from Trading Undertak,TRADING,Premises Related,BJA,24/08/2015,05-10001,"2,444.34",Johnson Diversey,,,,,,,,,
Nottinghamshire County Council,1111/1001,Surplus or Deficit from Trading Undertak,TRADING,Premises Related,BJA,25/08/2015,05-10001,"15,314.83",Johnson Diversey,,,,,,,,,
Nottinghamshire County Council,1111/1001,Surplus or Deficit from Trading Undertak,TRADING,Premises Related,BJA,10/08/2015,05-10001,"1,156.80",Premiere Products (James Briggs Ltd),,,,,,,,,
Nottinghamshire County Council,1111/1001,Surplus or Deficit from Trading Undertak,TRADING,Premises Related,BJA,10/08/2015,05-10001,"2,165.60",Premiere Products (James Briggs Ltd),,,,,,,,,
Nottinghamshire County Council,1111/1001,Surplus or Deficit from Trading Undertak,TRADING,Premises Related,BJA,10/08/2015,05-10001,"2,969.80",Premiere Products (James Briggs Ltd),,,,,,,,,
Nottinghamshire County Council,1111/1001,Surplus or Deficit from Trading Undertak,TRADING,Premises Related,BJA,17/08/2015,05-10001,"3,149.44",Premiere Products (James Briggs Ltd),,,,,,,,,
Nottinghamshire County Council,1111/1001,Surplus or Deficit from Trading Undertak,TRADING,Premises Related,BJA,17/08/2015,05-10001,"3,680.06",Premiere Products (James Briggs Ltd),,,,,,,,,
Nottinghamshire County Council,1111/1001,Surplus or Deficit from Trading Undertak,TRADING,Premises Related,BJA,24/08/2015,05-10001,855.63,Premiere Products (James Briggs Ltd),,,,,,,,,
Nottinghamshire County Council,1111/1001,Surplus or Deficit from Trading Undertak,TRADING,Premises Related,BJA,24/08/2015,05-10001,"1,659.20",Premiere Products (James Briggs Ltd),,,,,,,,,
Nottinghamshire County Council,1111/1001,Surplus or Deficit from Trading Undertak,TRADING,Premises Related,BJA,25/08/2015,05-10001,925.2,Premiere Products (James Briggs Ltd),,,,,,,,,
Nottinghamshire County Council,1111/1001,Surplus or Deficit from Trading Undertak,TRADING,Premises Related,BJA,14/08/2015,05-10001,761.6,Scot Young Research,,,,,,,,,
Nottinghamshire County Council,1111/1001,Surplus or Deficit from Trading Undertak,TRADING,Premises Related,BJA,04/08/2015,05-10001,945.13,Numatic International Ltd,,,,,,,,,
Nottinghamshire County Council,1111/1001,Surplus or Deficit from Trading Undertak,TRADING,Premises Related,BJA,04/08/2015,05-10001,795,Candor Services,,,,,,,,,
Nottinghamshire County Council,1111/1001,Surplus or Deficit from Trading Undertak,TRADING,Premises Related,BJA,11/08/2015,05-10001,790,Candor Services,,,,,,,,,
Nottinghamshire County Council,1111/1001,Surplus or Deficit from Trading Undertak,TRADING,Premises Related,BJA,14/08/2015,05-10001,"1,363.15",Candor Services,,,,,,,,,
Nottinghamshire County Council,1111/1001,Surplus or Deficit from Trading Undertak,TRADING,Supplies & Services,DAA,17/08/2015,05-10001,564.25,E.T.I. Ltd,,,,,,,,,
Nottinghamshire County Council,1111/1001,Surplus or Deficit from Trading Undertak,TRADING,Supplies & Services,DAA,04/08/2015,05-10001,832.08,Bunzl Catering Supplies,,,,,,,,,
Nottinghamshire County Council,1111/1001,Surplus or Deficit from Trading Undertak,TRADING,Supplies & Services,DAA,04/08/2015,05-10001,904.98,W V Howe (Hardware) Ltd,,,,,,,,,
Nottinghamshire County Council,1111/1001,Surplus or Deficit from Trading Undertak,TRADING,Supplies & Services,DAA,11/08/2015,05-10001,856,W V Howe (Hardware) Ltd,,,,,,,,,
Nottinghamshire County Council,1111/1001,Surplus or Deficit from Trading Undertak,TRADING,Supplies & Services,DAA,27/08/2015,05-10001,595.18,W V Howe (Hardware) Ltd,,,,,,,,,
Nottinghamshire County Council,1111/1001,Surplus or Deficit from Trading Undertak,TRADING,Supplies & Services,DAA,27/08/2015,05-10001,626.08,W V Howe (Hardware) Ltd,,,,,,,,,
Nottinghamshire County Council,1111/1001,Surplus or Deficit from Trading Undertak,TRADING,Supplies & Services,DAA,27/08/2015,05-10001,683.59,W V Howe (Hardware) Ltd,,,,,,,,,
Nottinghamshire County Council,1111/1001,Surplus or Deficit from Trading Undertak,TRADING,Supplies & Services,DAA,27/08/2015,05-10001,896.13,W V Howe (Hardware) Ltd,,,,,,,,,
Nottinghamshire County Council,1111/1001,Surplus or Deficit from Trading Undertak,TRADING,Supplies & Services,DAA,27/08/2015,05-10001,"2,645.30",W V Howe (Hardware) Ltd,,,,,,,,,
Nottinghamshire County Council,1111/1001,Surplus or Deficit from Trading Undertak,TRADING,Supplies & Services,DAA,04/08/2015,05-10001,"5,626.23",Sca Hygiene,,,,,,,,,
Nottinghamshire County Council,1111/1001,Surplus or Deficit from Trading Undertak,TRADING,Supplies & Services,DAA,27/08/2015,05-10001,"2,584.30",Sca Hygiene,,,,,,,,,
Nottinghamshire County Council,1111/1001,Surplus or Deficit from Trading Undertak,TRADING,Supplies & Services,DKA,04/08/2015,05-10001,524.04,Bunzl Cleaning & Hygiene Supplies,,,,,,,,,
Nottinghamshire County Council,1111/1001,Surplus or Deficit from Trading Undertak,TRADING,Supplies & Services,DKA,17/08/2015,05-10001,513.2,Bunzl Cleaning & Hygiene Supplies,,,,,,,,,
Nottinghamshire County Council,1111/1001,Surplus or Deficit from Trading Undertak,TRADING,Supplies & Services,DKA,27/08/2015,05-10001,508.24,Bunzl Cleaning & Hygiene Supplies,,,,,,,,,
Nottinghamshire County Council,1111/1001,Surplus or Deficit from Trading Undertak,TRADING,Supplies & Services,DAA,25/08/2015,05-10001,"7,282.35",R Scott & Sons Ltd,,,,,,,,,
Nottinghamshire County Council,1111/1001,Surplus or Deficit from Trading Undertak,TRADING,Supplies & Services,DAA,28/08/2015,05-10001,"1,183.95",R Scott & Sons Ltd,,,,,,,,,
Nottinghamshire County Council,1111/1001,Surplus or Deficit from Trading Undertak,TRADING,Supplies & Services,DAA,24/08/2015,05-10001,584.32,Office Innovations,,,,,,,,,
Nottinghamshire County Council,1111/1001,Surplus or Deficit from Trading Undertak,TRADING,Supplies & Services,DAA,24/08/2015,05-10001,874.65,Office Innovations,,,,,,,,,
Nottinghamshire County Council,1111/1001,Surplus or Deficit from Trading Undertak,TRADING,Supplies & Services,DAA,24/08/2015,05-10001,"3,182.50",Office Innovations,,,,,,,,,
Nottinghamshire County Council,1111/1001,Surplus or Deficit from Trading Undertak,TRADING,Supplies & Services,DAA,27/08/2015,05-10001,"1,454.50",Office Innovations,,,,,,,,,
Nottinghamshire County Council,1111/1001,Surplus or Deficit from Trading Undertak,TRADING,Supplies & Services,DAA,11/08/2015,05-10001,596.15,Principal Furniture,,,,,,,,,
Nottinghamshire County Council,1111/1001,Surplus or Deficit from Trading Undertak,TRADING,Supplies & Services,DAA,24/08/2015,05-10001,"1,440.55",Principal Furniture,,,,,,,,,
Nottinghamshire County Council,1111/1001,Surplus or Deficit from Trading Undertak,TRADING,Supplies & Services,DAA,27/08/2015,05-10001,"1,417.50",Advanced Moulds Ltd,,,,,,,,,
Nottinghamshire County Council,1111/1001,Surplus or Deficit from Trading Undertak,TRADING,Supplies & Services,DAA,04/08/2015,05-10001,"2,692.50",Combined Office Interiors Ltd,,,,,,,,,
Nottinghamshire County Council,1111/1001,Surplus or Deficit from Trading Undertak,TRADING,Supplies & Services,DAA,19/08/2015,05-10001,"1,321.24",Titan Furniture (Uk) Ltd,,,,,,,,,
Nottinghamshire County Council,1111/1001,Surplus or Deficit from Trading Undertak,TRADING,Supplies & Services,DAA,17/08/2015,05-10001,691.93,Complete Office Solutions (Uk) Ltd,,,,,,,,,
Nottinghamshire County Council,1111/1001,Surplus or Deficit from Trading Undertak,TRADING,Supplies & Services,DAA,17/08/2015,05-10001,923.96,Complete Office Solutions (Uk) Ltd,,,,,,,,,
Nottinghamshire County Council,1111/1001,Surplus or Deficit from Trading Undertak,TRADING,Supplies & Services,DAA,14/08/2015,05-10001,"1,731.60",Mardel Office Interiors,,,,,,,,,
Nottinghamshire County Council,1111/1001,Surplus or Deficit from Trading Undertak,TRADING,Supplies & Services,DAA,04/08/2015,05-10001,557.1,Signsolutions Midlands Ltd,,,,,,,,,
Nottinghamshire County Council,1111/1001,Surplus or Deficit from Trading Undertak,TRADING,Supplies & Services,DAA,11/08/2015,05-10001,885.88,Hille Education Products Ltd,,,,,,,,,
Nottinghamshire County Council,1111/1001,Surplus or Deficit from Trading Undertak,TRADING,Supplies & Services,DAA,14/08/2015,05-10001,"1,611.60",Hille Education Products Ltd,,,,,,,,,
Nottinghamshire County Council,1111/1001,Surplus or Deficit from Trading Undertak,TRADING,Supplies & Services,DAA,19/08/2015,05-10001,"1,051.94",Gopak Ltd,,,,,,,,,
Nottinghamshire County Council,1111/1001,Surplus or Deficit from Trading Undertak,TRADING,Supplies & Services,DAA,04/08/2015,05-10001,682.94,Gratnells Ltd,,,,,,,,,
Nottinghamshire County Council,1111/1001,Surplus or Deficit from Trading Undertak,TRADING,Supplies & Services,DAA,10/08/2015,05-10001,640.75,Wybone Ltd,,,,,,,,,
Nottinghamshire County Council,1111/1001,Surplus or Deficit from Trading Undertak,TRADING,Supplies & Services,DAA,24/08/2015,05-10001,796.05,Lockhart Catering Equipment Ltd,,,,,,,,,
Nottinghamshire County Council,1111/1001,Surplus or Deficit from Trading Undertak,TRADING,Supplies & Services,DAA,25/08/2015,05-10001,636.84,Lockhart Catering Equipment Ltd,,,,,,,,,
Nottinghamshire County Council,1111/1001,Surplus or Deficit from Trading Undertak,TRADING,Supplies & Services,DAA,25/08/2015,05-10001,636.84,Lockhart Catering Equipment Ltd,,,,,,,,,
Nottinghamshire County Council,1111/1001,Surplus or Deficit from Trading Undertak,TRADING,Supplies & Services,DAA,06/08/2015,05-10001,540.6,Metroplan Limited,,,,,,,,,
Nottinghamshire County Council,1111/1001,Surplus or Deficit from Trading Undertak,TRADING,Supplies & Services,DAA,06/08/2015,05-10001,775.03,Metroplan Limited,,,,,,,,,
Nottinghamshire County Council,1111/1001,Surplus or Deficit from Trading Undertak,TRADING,Supplies & Services,DAA,24/08/2015,05-10001,573.05,Metroplan Limited,,,,,,,,,
Nottinghamshire County Council,1111/1001,Surplus or Deficit from Trading Undertak,TRADING,Supplies & Services,DAA,13/08/2015,05-10001,532.38,Kent County Supplies,,,,,,,,,
Nottinghamshire County Council,1111/1001,Surplus or Deficit from Trading Undertak,TRADING,Supplies & Services,DAA,27/08/2015,05-10001,"3,524.40",Kent County Supplies,,,,,,,,,
Nottinghamshire County Council,1111/1001,Surplus or Deficit from Trading Undertak,TRADING,Supplies & Services,DAA,04/08/2015,05-10001,555.83,Grosvenor House Papers Ltd,,,,,,,,,
Nottinghamshire County Council,1111/1001,Surplus or Deficit from Trading Undertak,TRADING,Supplies & Services,DAA,04/08/2015,05-10001,"1,147.80",Grosvenor House Papers Ltd,,,,,,,,,
Nottinghamshire County Council,1111/1001,Surplus or Deficit from Trading Undertak,TRADING,Supplies & Services,DAA,06/08/2015,05-10001,"1,192.72",Grosvenor House Papers Ltd,,,,,,,,,
Nottinghamshire County Council,1111/1001,Surplus or Deficit from Trading Undertak,TRADING,Supplies & Services,DAA,19/08/2015,05-10001,521.4,Grosvenor House Papers Ltd,,,,,,,,,
Nottinghamshire County Council,1111/1001,Surplus or Deficit from Trading Undertak,TRADING,Supplies & Services,DAA,10/08/2015,05-10001,522.3,West Design Products,,,,,,,,,
Nottinghamshire County Council,1111/1001,Surplus or Deficit from Trading Undertak,TRADING,Supplies & Services,DAA,04/08/2015,05-10001,799.2,Newell Rubbermaid,,,,,,,,,
Nottinghamshire County Council,1111/1001,Surplus or Deficit from Trading Undertak,TRADING,Supplies & Services,DAA,04/08/2015,05-10001,808.88,Newell Rubbermaid,,,,,,,,,
Nottinghamshire County Council,1111/1001,Surplus or Deficit from Trading Undertak,TRADING,Supplies & Services,DAA,04/08/2015,05-10001,"1,527.96",Newell Rubbermaid,,,,,,,,,
Nottinghamshire County Council,1111/1001,Surplus or Deficit from Trading Undertak,TRADING,Supplies & Services,DAA,04/08/2015,05-10001,"3,864.04",Newell Rubbermaid,,,,,,,,,
Nottinghamshire County Council,1111/1001,Surplus or Deficit from Trading Undertak,TRADING,Supplies & Services,DAA,25/08/2015,05-10001,"2,782.56",Newell Rubbermaid,,,,,,,,,
Nottinghamshire County Council,1111/1001,Surplus or Deficit from Trading Undertak,TRADING,Supplies & Services,DAA,27/08/2015,05-10001,781.52,Newell Rubbermaid,,,,,,,,,
Nottinghamshire County Council,1111/1001,Surplus or Deficit from Trading Undertak,TRADING,Supplies & Services,DAA,04/08/2015,05-10001,578.4,Acco-Rexel Ltd,,,,,,,,,
Nottinghamshire County Council,1111/1001,Surplus or Deficit from Trading Undertak,TRADING,Supplies & Services,DAA,19/08/2015,05-10001,647.35,Newclay Products Ltd,,,,,,,,,
Nottinghamshire County Council,1111/1001,Surplus or Deficit from Trading Undertak,TRADING,Supplies & Services,DAA,27/08/2015,05-10001,549.55,Newclay Products Ltd,,,,,,,,,
Nottinghamshire County Council,1111/1001,Surplus or Deficit from Trading Undertak,TRADING,Supplies & Services,DAA,04/08/2015,05-10001,703.5,R.H.Ritchings Ltd,,,,,,,,,
Nottinghamshire County Council,1111/1001,Surplus or Deficit from Trading Undertak,TRADING,Supplies & Services,DAA,04/08/2015,05-10001,731.34,R.H.Ritchings Ltd,,,,,,,,,
Nottinghamshire County Council,1111/1001,Surplus or Deficit from Trading Undertak,TRADING,Supplies & Services,DAA,04/08/2015,05-10001,785.54,R.H.Ritchings Ltd,,,,,,,,,
Nottinghamshire County Council,1111/1001,Surplus or Deficit from Trading Undertak,TRADING,Supplies & Services,DAA,04/08/2015,05-10001,"1,321.99",Bic U.K. Ltd,,,,,,,,,
Nottinghamshire County Council,1111/1001,Surplus or Deficit from Trading Undertak,TRADING,Supplies & Services,DAA,14/08/2015,05-10001,617.6,Rapesco Office Products Plc,,,,,,,,,
Nottinghamshire County Council,1111/1001,Surplus or Deficit from Trading Undertak,TRADING,Supplies & Services,DAA,04/08/2015,05-10001,"1,075.18",Allen Glenold Ltd,,,,,,,,,
Nottinghamshire County Council,1111/1001,Surplus or Deficit from Trading Undertak,TRADING,Supplies & Services,DAA,19/08/2015,05-10001,747.79,Allen Glenold Ltd,,,,,,,,,
Nottinghamshire County Council,1111/1001,Surplus or Deficit from Trading Undertak,TRADING,Supplies & Services,DAA,04/08/2015,05-10001,"2,129.68",Slater Harrison & Co Ltd,,,,,,,,,
Nottinghamshire County Council,1111/1001,Surplus or Deficit from Trading Undertak,TRADING,Supplies & Services,DAA,04/08/2015,05-10001,"2,548.32",Slater Harrison & Co Ltd,,,,,,,,,
Nottinghamshire County Council,1111/1001,Surplus or Deficit from Trading Undertak,TRADING,Supplies & Services,DAA,04/08/2015,05-10001,"1,344.63",Slater Harrison & Co Ltd,,,,,,,,,
Nottinghamshire County Council,1111/1001,Surplus or Deficit from Trading Undertak,TRADING,Supplies & Services,DAA,04/08/2015,05-10001,"1,542.50",Slater Harrison & Co Ltd,,,,,,,,,
Nottinghamshire County Council,1111/1001,Surplus or Deficit from Trading Undertak,TRADING,Supplies & Services,DAA,04/08/2015,05-10001,"2,219.01",Slater Harrison & Co Ltd,,,,,,,,,
Nottinghamshire County Council,1111/1001,Surplus or Deficit from Trading Undertak,TRADING,Supplies & Services,DAA,19/08/2015,05-10001,812.66,Creativity International Ltd,,,,,,,,,
Nottinghamshire County Council,1111/1001,Surplus or Deficit from Trading Undertak,TRADING,Supplies & Services,DAA,20/08/2015,05-10001,546.98,Creativity International Ltd,,,,,,,,,
Nottinghamshire County Council,1111/1001,Surplus or Deficit from Trading Undertak,TRADING,Supplies & Services,DAA,20/08/2015,05-10001,650.75,Creativity International Ltd,,,,,,,,,
Nottinghamshire County Council,1111/1001,Surplus or Deficit from Trading Undertak,TRADING,Supplies & Services,DAA,20/08/2015,05-10001,795.02,Creativity International Ltd,,,,,,,,,
Nottinghamshire County Council,1111/1001,Surplus or Deficit from Trading Undertak,TRADING,Supplies & Services,DAA,20/08/2015,05-10001,812.02,Creativity International Ltd,,,,,,,,,
Nottinghamshire County Council,1111/1001,Surplus or Deficit from Trading Undertak,TRADING,Supplies & Services,DAA,20/08/2015,05-10001,936.26,Creativity International Ltd,,,,,,,,,
Nottinghamshire County Council,1111/1001,Surplus or Deficit from Trading Undertak,TRADING,Supplies & Services,DAA,10/08/2015,05-10001,540.12,Primo Play Ltd,,,,,,,,,
Nottinghamshire County Council,1111/1001,Surplus or Deficit from Trading Undertak,TRADING,Supplies & Services,DAA,04/08/2015,05-10001,"2,607.52",Eastpoint,,,,,,,,,
Nottinghamshire County Council,1111/1001,Surplus or Deficit from Trading Undertak,TRADING,Supplies & Services,DAA,17/08/2015,05-10001,"1,687.24",Eastpoint,,,,,,,,,
Nottinghamshire County Council,1111/1001,Surplus or Deficit from Trading Undertak,TRADING,Supplies & Services,DAA,19/08/2015,05-10001,616.24,Monarch Acoustics Ltd,,,,,,,,,
Nottinghamshire County Council,1111/1001,Surplus or Deficit from Trading Undertak,TRADING,Supplies & Services,DAA,10/08/2015,05-10001,782.46,Brian Clegg (Educational Products) Ltd,,,,,,,,,
Nottinghamshire County Council,1111/1001,Surplus or Deficit from Trading Undertak,TRADING,Supplies & Services,DAA,10/08/2015,05-10001,"1,796.00",Brian Clegg (Educational Products) Ltd,,,,,,,,,
Nottinghamshire County Council,1111/1001,Surplus or Deficit from Trading Undertak,TRADING,Supplies & Services,DAA,18/08/2015,05-10001,"1,629.62",Brian Clegg (Educational Products) Ltd,,,,,,,,,
Nottinghamshire County Council,1111/1001,Surplus or Deficit from Trading Undertak,TRADING,Supplies & Services,DAA,20/08/2015,05-10001,628.45,Brian Clegg (Educational Products) Ltd,,,,,,,,,
Nottinghamshire County Council,1111/1001,Surplus or Deficit from Trading Undertak,TRADING,Supplies & Services,DAA,04/08/2015,05-10001,675.33,Profile Education Ltd,,,,,,,,,
Nottinghamshire County Council,1111/1001,Surplus or Deficit from Trading Undertak,TRADING,Supplies & Services,DAA,11/08/2015,05-10001,645.24,Profile Education Ltd,,,,,,,,,
Nottinghamshire County Council,1111/1001,Surplus or Deficit from Trading Undertak,TRADING,Supplies & Services,DAA,19/08/2015,05-10001,"1,439.67",Monarch Computer Furniture,,,,,,,,,
Nottinghamshire County Council,1111/1001,Surplus or Deficit from Trading Undertak,TRADING,Supplies & Services,DAA,20/08/2015,05-10001,547.82,Monarch Computer Furniture,,,,,,,,,
Nottinghamshire County Council,1111/1001,Surplus or Deficit from Trading Undertak,TRADING,Supplies & Services,DAA,20/08/2015,05-10001,629.34,Monarch Computer Furniture,,,,,,,,,
Nottinghamshire County Council,1111/1001,Surplus or Deficit from Trading Undertak,TRADING,Supplies & Services,DAA,20/08/2015,05-10001,692.41,Monarch Computer Furniture,,,,,,,,,
Nottinghamshire County Council,1111/1001,Surplus or Deficit from Trading Undertak,TRADING,Supplies & Services,DAA,20/08/2015,05-10001,753.41,Monarch Computer Furniture,,,,,,,,,
Nottinghamshire County Council,1111/1001,Surplus or Deficit from Trading Undertak,TRADING,Supplies & Services,DAA,20/08/2015,05-10001,958.94,Monarch Computer Furniture,,,,,,,,,
Nottinghamshire County Council,1111/1001,Surplus or Deficit from Trading Undertak,TRADING,Supplies & Services,DAA,27/08/2015,05-10001,745.24,Monarch Computer Furniture,,,,,,,,,
Nottinghamshire County Council,1111/1001,Surplus or Deficit from Trading Undertak,TRADING,Employee Related,AAA,19/08/2015,05-10001,742.22,A&T Active Recruitment,,,,,,,,,
Nottinghamshire County Council,1111/1001,Surplus or Deficit from Trading Undertak,TRADING,Employee Related,AAA,19/08/2015,05-10001,"1,043.12",A&T Active Recruitment,,,,,,,,,
Nottinghamshire County Council,1111/1001,Surplus or Deficit from Trading Undertak,TRADING,Employee Related,AAA,19/08/2015,05-10001,"1,043.12",A&T Active Recruitment,,,,,,,,,
Nottinghamshire County Council,1111/1001,Surplus or Deficit from Trading Undertak,TRADING,Employee Related,AAA,28/08/2015,05-10001,912.74,A&T Active Recruitment,,,,,,,,,
Nottinghamshire County Council,1111/1001,Surplus or Deficit from Trading Undertak,TRADING,Premises Related,BDA,21/08/2015,05-10001,"1,231.32",Mge Partners,,,,,,,,,
Nottinghamshire County Council,1111/1001,Children and Young People,CYP,Premises Related,BCA,28/08/2015,05-16010,2000.07,Leverton C Of E Academy,,,,,,,,,
Nottinghamshire County Council,1111/1001,Children and Young People,CYP,Premises Related,BDA,03/08/2015,05-10001,5747.54,Making It! Enterprises Ltd,,,,,,,,,
Nottinghamshire County Council,1111/1001,Children and Young People,CYP,Premises Related,BDA,03/08/2015,05-10002,1099.99,Nottingham City Council,,,,,,,,,
Nottinghamshire County Council,1111/1001,Children and Young People,CYP,Premises Related,BDA,03/08/2015,05-10003,4674.76,Making It! Enterprises Ltd,,,,,,,,,
Nottinghamshire County Council,1111/1001,Children and Young People,CYP,Premises Related,BDA,03/08/2015,05-10004,528,Derbyshire Dales District Council,,,,,,,,,
Nottinghamshire County Council,1111/1001,Children and Young People,CYP,Premises Related,BDA,03/08/2015,05-10006,606.67,J Sedoo t/a Sedoo Investments,,,,,,,,,
Nottinghamshire County Council,1111/1001,Children and Young People,CYP,Premises Related,BDA,03/08/2015,05-10007,606.67,J Sedoo t/a Sedoo Investments,,,,,,,,,
Nottinghamshire County Council,1111/1001,Children and Young People,CYP,Premises Related,BDA,03/08/2015,05-10008,606.67,J Sedoo t/a Sedoo Investments,,,,,,,,,
Nottinghamshire County Council,1111/1001,Children and Young People,CYP,Transport Related,CCA,05/08/2015,05-10272,2320.5,Sharpes Of Nottingham,,,,,,,,,
Nottinghamshire County Council,1111/1001,Children and Young People,CYP,Transport Related,CCA,05/08/2015,05-10273,1346.4,Sharpes Of Nottingham,,,,,,,,,
Nottinghamshire County Council,1111/1001,Children and Young People,CYP,Transport Related,CCA,05/08/2015,05-10280,9295,Sharpes Of Nottingham,,,,,,,,,
Nottinghamshire County Council,1111/1001,Children and Young People,CYP,Transport Related,CCA,05/08/2015,05-10281,2130.99,All Wayz Travel,,,,,,,,,
Nottinghamshire County Council,1111/1001,Children and Young People,CYP,Transport Related,CCA,05/08/2015,05-10283,1591.74,Central Cars Nottm Ltd,,,,,,,,,
Nottinghamshire County Council,1111/1001,Children and Young People,CYP,Transport Related,CCA,05/08/2015,05-10284,1321.92,Central Cars Nottm Ltd,,,,,,,,,
Nottinghamshire County Council,1111/1001,Children and Young People,CYP,Transport Related,CCA,05/08/2015,05-10286,1958.76,Central Cars Nottm Ltd,,,,,,,,,
Nottinghamshire County Council,1111/1001,Children and Young People,CYP,Transport Related,CCA,05/08/2015,05-10287,707.44,Central Cars Nottm Ltd,,,,,,,,,
Nottinghamshire County Council,1111/1001,Children and Young People,CYP,Transport Related,CCA,05/08/2015,05-10288,714,Central Cars Nottm Ltd,,,,,,,,,
Nottinghamshire County Council,1111/1001,Children and Young People,CYP,Transport Related,CCA,05/08/2015,05-10289,1352.52,Central Cars Nottm Ltd,,,,,,,,,
Nottinghamshire County Council,1111/1001,Children and Young People,CYP,Transport Related,CCA,05/08/2015,05-10290,1652.4,Central Cars Nottm Ltd,,,,,,,,,
Nottinghamshire County Council,1111/1001,Children and Young People,CYP,Transport Related,CCA,05/08/2015,05-10291,2160,Central Cars Nottm Ltd,,,,,,,,,
Nottinghamshire County Council,1111/1001,Children and Young People,CYP,Transport Related,CCA,05/08/2015,05-10292,1777.92,Central Cars Nottm Ltd,,,,,,,,,
Nottinghamshire County Council,1111/1001,Children and Young People,CYP,Transport Related,CCA,05/08/2015,05-10303,1888.16,Arrow Specialised Transport Ltd,,,,,,,,,
Nottinghamshire County Council,1111/1001,Children and Young People,CYP,Transport Related,CCA,05/08/2015,05-10304,1870.4,Arrow Specialised Transport Ltd,,,,,,,,,
Nottinghamshire County Council,1111/1001,Children and Young People,CYP,Transport Related,CCA,05/08/2015,05-10312,1600,Bridges Transport Services,,,,,,,,,
Nottinghamshire County Council,1111/1001,Children and Young People,CYP,Transport Related,CCA,05/08/2015,05-10313,2238.72,Bridges Transport Services,,,,,,,,,
Nottinghamshire County Council,1111/1001,Children and Young People,CYP,Transport Related,CCA,05/08/2015,05-10314,887.04,Bridges Transport Services,,,,,,,,,
Nottinghamshire County Council,1111/1001,Children and Young People,CYP,Transport Related,CCA,05/08/2015,05-10315,1314.88,Bridges Transport Services,,,,,,,,,
Nottinghamshire County Council,1111/1001,Children and Young People,CYP,Transport Related,CCA,05/08/2015,05-10316,1153.12,Bridges Transport Services,,,,,,,,,
Nottinghamshire County Council,1111/1001,Children and Young People,CYP,Transport Related,CCA,05/08/2015,05-10317,1842.88,Bridges Transport Services,,,,,,,,,
Nottinghamshire County Council,1111/1001,Children and Young People,CYP,Transport Related,CCA,05/08/2015,05-10318,1176.8,Bridges Transport Services,,,,,,,,,
Nottinghamshire County Council,1111/1001,Children and Young People,CYP,Transport Related,CCA,05/08/2015,05-10319,1652.48,Bridges Transport Services,,,,,,,,,
Nottinghamshire County Council,1111/1001,Children and Young People,CYP,Transport Related,CCA,05/08/2015,05-10320,3329.12,Bridges Transport Services,,,,,,,,,
Nottinghamshire County Council,1111/1001,Children and Young People,CYP,Transport Related,CCA,05/08/2015,05-10321,730.4,Bridges Transport Services,,,,,,,,,
Nottinghamshire County Council,1111/1001,Children and Young People,CYP,Transport Related,CCA,05/08/2015,05-10322,730.32,Bridges Transport Services,,,,,,,,,
Nottinghamshire County Council,1111/1001,Children and Young People,CYP,Transport Related,CCA,05/08/2015,05-10324,1922.72,Bridges Transport Services,,,,,,,,,
Nottinghamshire County Council,1111/1001,Children and Young People,CYP,Transport Related,CCA,05/08/2015,05-10325,1718.52,Bridges Transport Services,,,,,,,,,
Nottinghamshire County Council,1111/1001,Children and Young People,CYP,Transport Related,CCA,05/08/2015,05-10326,1292.64,Bridges Transport Services,,,,,,,,,
Nottinghamshire County Council,1111/1001,Children and Young People,CYP,Transport Related,CCA,05/08/2015,05-10327,1262.88,Bridges Transport Services,,,,,,,,,
Nottinghamshire County Council,1111/1001,Children and Young People,CYP,Transport Related,CCA,05/08/2015,05-10332,2535,Butler Brothers Ltd,,,,,,,,,
Nottinghamshire County Council,1111/1001,Children and Young People,CYP,Transport Related,CCA,05/08/2015,05-10333,1847.68,D G Private Hire Ltd,,,,,,,,,
Nottinghamshire County Council,1111/1001,Children and Young People,CYP,Transport Related,CCA,05/08/2015,05-10334,2014.24,D G Private Hire Ltd,,,,,,,,,
Nottinghamshire County Council,1111/1001,Children and Young People,CYP,Transport Related,CCA,05/08/2015,05-10335,2862,D G Private Hire Ltd,,,,,,,,,
Nottinghamshire County Council,1111/1001,Children and Young People,CYP,Transport Related,CCA,05/08/2015,05-10336,1799.52,Erewash Community Transport,,,,,,,,,
Nottinghamshire County Council,1111/1001,Children and Young People,CYP,Transport Related,CCA,05/08/2015,05-10337,2721.6,Erewash Community Transport,,,,,,,,,
Nottinghamshire County Council,1111/1001,Children and Young People,CYP,Transport Related,CCA,05/08/2015,05-10338,743.36,Erewash Community Transport,,,,,,,,,
Nottinghamshire County Council,1111/1001,Children and Young People,CYP,Transport Related,CCA,05/08/2015,05-10340,1632.96,Erewash Community Transport,,,,,,,,,
Nottinghamshire County Council,1111/1001,Children and Young People,CYP,Transport Related,CCA,05/08/2015,05-10341,1894.4,Erewash Community Transport,,,,,,,,,
Nottinghamshire County Council,1111/1001,Children and Young People,CYP,Transport Related,CCA,05/08/2015,05-10344,807.84,Fozcabs Newark Taxis,,,,,,,,,
Nottinghamshire County Council,1111/1001,Children and Young People,CYP,Transport Related,CCA,05/08/2015,05-10346,960,Fozcabs Newark Taxis,,,,,,,,,
Nottinghamshire County Council,1111/1001,Children and Young People,CYP,Transport Related,CCA,05/08/2015,05-10347,1282.24,Fozcabs Newark Taxis,,,,,,,,,
Nottinghamshire County Council,1111/1001,Children and Young People,CYP,Transport Related,CCA,05/08/2015,05-10348,1341.44,Fozcabs Newark Taxis,,,,,,,,,
Nottinghamshire County Council,1111/1001,Children and Young People,CYP,Transport Related,CCA,05/08/2015,05-10349,497.25,Fozcabs Newark Taxis,,,,,,,,,
Nottinghamshire County Council,1111/1001,Children and Young People,CYP,Transport Related,CCA,05/08/2015,05-10351,1012.5,Fozcabs Newark Taxis,,,,,,,,,
Nottinghamshire County Council,1111/1001,Children and Young People,CYP,Transport Related,CCA,05/08/2015,05-10352,1062.5,Fozcabs Newark Taxis,,,,,,,,,
Nottinghamshire County Council,1111/1001,Children and Young People,CYP,Transport Related,CCA,05/08/2015,05-10354,1520,Galaxy Cabs,,,,,,,,,
Nottinghamshire County Council,1111/1001,Children and Young People,CYP,Transport Related,CCA,05/08/2015,05-10355,979.2,Galaxy Cabs,,,,,,,,,
Nottinghamshire County Council,1111/1001,Children and Young People,CYP,Transport Related,CCA,05/08/2015,05-10358,1430,Horizon Travel,,,,,,,,,
Nottinghamshire County Council,1111/1001,Children and Young People,CYP,Transport Related,CCA,05/08/2015,05-10359,2130,Horizon Travel,,,,,,,,,
Nottinghamshire County Council,1111/1001,Children and Young People,CYP,Transport Related,CCA,05/08/2015,05-10360,1109.76,Oasis Taxis Mansfield Ltd,,,,,,,,,
Nottinghamshire County Council,1111/1001,Children and Young People,CYP,Transport Related,CCA,05/08/2015,05-10361,2099.2,Oasis Taxis Mansfield Ltd,,,,,,,,,
Nottinghamshire County Council,1111/1001,Children and Young People,CYP,Transport Related,CCA,05/08/2015,05-10362,1131.92,Oasis Taxis Mansfield Ltd,,,,,,,,,
Nottinghamshire County Council,1111/1001,Children and Young People,CYP,Transport Related,CCA,05/08/2015,05-10364,754,Shelleys Taxis Ltd,,,,,,,,,
Nottinghamshire County Council,1111/1001,Children and Young People,CYP,Transport Related,CCA,05/08/2015,05-10366,795.6,Shelleys Taxis Ltd,,,,,,,,,
Nottinghamshire County Council,1111/1001,Children and Young People,CYP,Transport Related,CCA,05/08/2015,05-10367,960,Shelleys Taxis Ltd,,,,,,,,,
Nottinghamshire County Council,1111/1001,Children and Young People,CYP,Transport Related,CCA,05/08/2015,05-10369,525,Shelleys Taxis Ltd,,,,,,,,,
Nottinghamshire County Council,1111/1001,Children and Young People,CYP,Transport Related,CCA,05/08/2015,05-10370,979.2,Shelleys Taxis Ltd,,,,,,,,,
Nottinghamshire County Council,1111/1001,Children and Young People,CYP,Transport Related,CCA,05/08/2015,05-10371,520,Shelleys Taxis Ltd,,,,,,,,,
Nottinghamshire County Council,1111/1001,Children and Young People,CYP,Transport Related,CCA,05/08/2015,05-10372,840,Shelleys Taxis Ltd,,,,,,,,,
Nottinghamshire County Council,1111/1001,Children and Young People,CYP,Transport Related,CCA,05/08/2015,05-10373,680,Shelleys Taxis Ltd,,,,,,,,,
Nottinghamshire County Council,1111/1001,Children and Young People,CYP,Transport Related,CCA,05/08/2015,05-10374,585,Shelleys Taxis Ltd,,,,,,,,,
Nottinghamshire County Council,1111/1001,Children and Young People,CYP,Transport Related,CCA,05/08/2015,05-10376,1479.52,Sprays Transport Ltd,,,,,,,,,
Nottinghamshire County Council,1111/1001,Children and Young People,CYP,Transport Related,CCA,05/08/2015,05-10377,2293.44,Sprays Transport Ltd,,,,,,,,,
Nottinghamshire County Council,1111/1001,Children and Young People,CYP,Transport Related,CCA,05/08/2015,05-10378,1770,Sprays Transport Ltd,,,,,,,,,
Nottinghamshire County Council,1111/1001,Children and Young People,CYP,Transport Related,CCA,05/08/2015,05-10379,1501.44,Sprays Transport Ltd,,,,,,,,,
Nottinghamshire County Council,1111/1001,Children and Young People,CYP,Transport Related,CCA,05/08/2015,05-10380,1360.48,Sprays Transport Ltd,,,,,,,,,
Nottinghamshire County Council,1111/1001,Children and Young People,CYP,Transport Related,CCA,05/08/2015,05-10381,1513.12,Sprays Transport Ltd,,,,,,,,,
Nottinghamshire County Council,1111/1001,Children and Young People,CYP,Transport Related,CCA,05/08/2015,05-10382,1303.08,Sprays Transport Ltd,,,,,,,,,
Nottinghamshire County Council,1111/1001,Children and Young People,CYP,Transport Related,CCA,05/08/2015,05-10384,1497.12,Sprays Transport Ltd,,,,,,,,,
Nottinghamshire County Council,1111/1001,Children and Young People,CYP,Transport Related,CCA,05/08/2015,05-10385,1412.32,Sprays Transport Ltd,,,,,,,,,
Nottinghamshire County Council,1111/1001,Children and Young People,CYP,Transport Related,CCA,05/08/2015,05-10386,1550.4,Sprays Transport Ltd,,,,,,,,,
Nottinghamshire County Council,1111/1001,Children and Young People,CYP,Transport Related,CCA,05/08/2015,05-10387,1429.12,Sprays Transport Ltd,,,,,,,,,
Nottinghamshire County Council,1111/1001,Children and Young People,CYP,Transport Related,CCA,05/08/2015,05-10388,1531.52,Sprays Transport Ltd,,,,,,,,,
Nottinghamshire County Council,1111/1001,Children and Young People,CYP,Transport Related,CCA,05/08/2015,05-10389,1549.01,Sprays Transport Ltd,,,,,,,,,
Nottinghamshire County Council,1111/1001,Children and Young People,CYP,Transport Related,CCA,05/08/2015,05-10391,1650,Sprays Transport Ltd,,,,,,,,,
Nottinghamshire County Council,1111/1001,Children and Young People,CYP,Transport Related,CCA,05/08/2015,05-10392,1631.36,Sprays Transport Ltd,,,,,,,,,
Nottinghamshire County Council,1111/1001,Children and Young People,CYP,Transport Related,CCA,05/08/2015,05-10393,1680,Sprays Transport Ltd,,,,,,,,,
Nottinghamshire County Council,1111/1001,Children and Young People,CYP,Transport Related,CCA,05/08/2015,05-10394,1920,Sprays Transport Ltd,,,,,,,,,
Nottinghamshire County Council,1111/1001,Children and Young People,CYP,Transport Related,CCA,05/08/2015,05-10398,2203.2,F & J Marriott T/A Unity Coaches,,,,,,,,,
Nottinghamshire County Council,1111/1001,Children and Young People,CYP,Transport Related,CCA,05/08/2015,05-10399,2203.2,F & J Marriott T/A Unity Coaches,,,,,,,,,
Nottinghamshire County Council,1111/1001,Children and Young People,CYP,Transport Related,CCA,05/08/2015,05-10400,2269.76,F & J Marriott T/A Unity Coaches,,,,,,,,,
Nottinghamshire County Council,1111/1001,Children and Young People,CYP,Transport Related,CCA,05/08/2015,05-10401,2550,Vallances Coaches,,,,,,,,,
Nottinghamshire County Council,1111/1001,Children and Young People,CYP,Transport Related,CCA,05/08/2015,05-10403,2220,Vallances Coaches,,,,,,,,,
Nottinghamshire County Council,1111/1001,Children and Young People,CYP,Transport Related,CCA,05/08/2015,05-10406,4279.88,BN Gibson Ltd,,,,,,,,,
Nottinghamshire County Council,1111/1001,Children and Young People,CYP,Transport Related,CCA,05/08/2015,05-10407,3292.41,BN Gibson Ltd,,,,,,,,,
Nottinghamshire County Council,1111/1001,Children and Young People,CYP,Transport Related,CCA,05/08/2015,05-10409,952.56,BN Gibson Ltd,,,,,,,,,
Nottinghamshire County Council,1111/1001,Children and Young People,CYP,Transport Related,CCA,05/08/2015,05-10410,1786.05,BN Gibson Ltd,,,,,,,,,
Nottinghamshire County Council,1111/1001,Children and Young People,CYP,Transport Related,CCA,05/08/2015,05-10411,2500.47,BN Gibson Ltd,,,,,,,,,
Nottinghamshire County Council,1111/1001,Children and Young People,CYP,Transport Related,CCA,05/08/2015,05-10412,4430.58,BN Gibson Ltd,,,,,,,,,
Nottinghamshire County Council,1111/1001,Children and Young People,CYP,Transport Related,CCA,05/08/2015,05-10413,3102.54,BN Gibson Ltd,,,,,,,,,
Nottinghamshire County Council,1111/1001,Children and Young People,CYP,Transport Related,CCA,05/08/2015,05-10414,4176.26,BN Gibson Ltd,,,,,,,,,
Nottinghamshire County Council,1111/1001,Children and Young People,CYP,Transport Related,CCA,05/08/2015,05-10415,3836.58,BN Gibson Ltd,,,,,,,,,
Nottinghamshire County Council,1111/1001,Children and Young People,CYP,Transport Related,CCA,05/08/2015,05-10417,3744.84,BN Gibson Ltd,,,,,,,,,
Nottinghamshire County Council,1111/1001,Children and Young People,CYP,Transport Related,CCA,05/08/2015,05-10418,4782.14,BN Gibson Ltd,,,,,,,,,
Nottinghamshire County Council,1111/1001,Children and Young People,CYP,Transport Related,CCA,05/08/2015,05-10419,5146.68,BN Gibson Ltd,,,,,,,,,
Nottinghamshire County Council,1111/1001,Children and Young People,CYP,Transport Related,CCA,05/08/2015,05-10420,2128,D G Private Hire Ltd,,,,,,,,,
Nottinghamshire County Council,1111/1001,Children and Young People,CYP,Transport Related,CCA,05/08/2015,05-10421,1312.16,D G Private Hire Ltd,,,,,,,,,
Nottinghamshire County Council,1111/1001,Children and Young People,CYP,Transport Related,CCA,05/08/2015,05-10422,1414.88,D G Private Hire Ltd,,,,,,,,,
Nottinghamshire County Council,1111/1001,Children and Young People,CYP,Transport Related,CCA,05/08/2015,05-10423,941.52,D G Private Hire Ltd,,,,,,,,,
Nottinghamshire County Council,1111/1001,Children and Young People,CYP,Transport Related,CCA,05/08/2015,05-10425,250,D G Private Hire Ltd,,,,,,,,,
Nottinghamshire County Council,1111/1001,Children and Young People,CYP,Transport Related,CCA,05/08/2015,05-10427,560,D G Private Hire Ltd,,,,,,,,,
Nottinghamshire County Council,1111/1001,Children and Young People,CYP,Transport Related,CCA,05/08/2015,05-10428,1040,Abacus Cars,,,,,,,,,
Nottinghamshire County Council,1111/1001,Children and Young People,CYP,Transport Related,CCA,05/08/2015,05-10436,1120,Abacus Cars,,,,,,,,,
Nottinghamshire County Council,1111/1001,Children and Young People,CYP,Transport Related,CCA,05/08/2015,05-10438,1065.6,Abacus Cars,,,,,,,,,
Nottinghamshire County Council,1111/1001,Children and Young People,CYP,Transport Related,CCA,05/08/2015,05-10464,1790.1,Silverdale Tours Nottm Ltd,,,,,,,,,
Nottinghamshire County Council,1111/1001,Children and Young People,CYP,Transport Related,CCA,05/08/2015,05-10465,981.75,Silverdale Tours Nottm Ltd,,,,,,,,,
Nottinghamshire County Council,1111/1001,Children and Young People,CYP,Transport Related,CCA,05/08/2015,05-10478,468,P & P Taxis,,,,,,,,,
Nottinghamshire County Council,1111/1001,Children and Young People,CYP,Transport Related,CCA,05/08/2015,05-10480,822.12,P & P Taxis,,,,,,,,,
Nottinghamshire County Council,1111/1001,Children and Young People,CYP,Transport Related,CCA,05/08/2015,05-10487,2250,Freeway Coaches Ltd,,,,,,,,,
Nottinghamshire County Council,1111/1001,Children and Young People,CYP,Transport Related,CCA,05/08/2015,05-10488,1632,K Matthews Travel,,,,,,,,,
Nottinghamshire County Council,1111/1001,Children and Young People,CYP,Transport Related,CCA,05/08/2015,05-10490,1417.65,Rio Cabs,,,,,,,,,
Nottinghamshire County Council,1111/1001,Children and Young People,CYP,Transport Related,CCA,05/08/2015,05-10491,789.36,Rio Cabs,,,,,,,,,
Nottinghamshire County Council,1111/1001,Children and Young People,CYP,Transport Related,CCA,05/08/2015,05-10494,1309.76,Ace Cars,,,,,,,,,
Nottinghamshire County Council,1111/1001,Children and Young People,CYP,Transport Related,CCA,05/08/2015,05-10495,900,Ace Cars,,,,,,,,,
Nottinghamshire County Council,1111/1001,Children and Young People,CYP,Transport Related,CCA,05/08/2015,05-10496,2371.35,L A Travel,,,,,,,,,
Nottinghamshire County Council,1111/1001,Children and Young People,CYP,Transport Related,CCA,05/08/2015,05-10497,575,Diamond Cars,,,,,,,,,
Nottinghamshire County Council,1111/1001,Children and Young People,CYP,Transport Related,CCA,05/08/2015,05-10498,575,Diamond Cars,,,,,,,,,
Nottinghamshire County Council,1111/1001,Children and Young People,CYP,Transport Related,CCA,05/08/2015,05-10499,2090,Target Taxis,,,,,,,,,
Nottinghamshire County Council,1111/1001,Children and Young People,CYP,Transport Related,CCA,07/08/2015,05-10707,1864.1,Southside Cars,,,,,,,,,
Nottinghamshire County Council,1111/1001,Children and Young People,CYP,Transport Related,CCA,07/08/2015,05-10708,579.55,Southside Cars,,,,,,,,,
Nottinghamshire County Council,1111/1001,Children and Young People,CYP,Transport Related,CCA,07/08/2015,05-10710,1329.45,F4Control Ltd (t/a First4care),,,,,,,,,
Nottinghamshire County Council,1111/1001,Children and Young People,CYP,Transport Related,CCA,07/08/2015,05-10711,1571.2,F4Control Ltd (t/a First4care),,,,,,,,,
Nottinghamshire County Council,1111/1001,Children and Young People,CYP,Transport Related,CCA,07/08/2015,05-10712,1700,F4Control Ltd (t/a First4care),,,,,,,,,
Nottinghamshire County Council,1111/1001,Children and Young People,CYP,Transport Related,CCA,07/08/2015,05-10713,1566.88,F4Control Ltd (t/a First4care),,,,,,,,,
Nottinghamshire County Council,1111/1001,Children and Young People,CYP,Transport Related,CCA,07/08/2015,05-10714,1915.68,F4Control Ltd (t/a First4care),,,,,,,,,
Nottinghamshire County Council,1111/1001,Children and Young People,CYP,Transport Related,CCA,07/08/2015,05-10715,1590.72,F4Control Ltd (t/a First4care),,,,,,,,,
Nottinghamshire County Council,1111/1001,Children and Young People,CYP,Transport Related,CCA,07/08/2015,05-10716,2444.16,F4Control Ltd (t/a First4care),,,,,,,,,
Nottinghamshire County Council,1111/1001,Children and Young People,CYP,Transport Related,CCA,07/08/2015,05-10717,1717.12,F4Control Ltd (t/a First4care),,,,,,,,,
Nottinghamshire County Council,1111/1001,Children and Young People,CYP,Transport Related,CCA,07/08/2015,05-10718,1758.15,F4Control Ltd (t/a First4care),,,,,,,,,
Nottinghamshire County Council,1111/1001,Children and Young People,CYP,Transport Related,CCA,07/08/2015,05-10719,2414.58,F4Control Ltd (t/a First4care),,,,,,,,,
Nottinghamshire County Council,1111/1001,Children and Young People,CYP,Transport Related,CCA,07/08/2015,05-10720,2511.6,F4Control Ltd (t/a First4care),,,,,,,,,
Nottinghamshire County Council,1111/1001,Children and Young People,CYP,Transport Related,CCA,07/08/2015,05-10722,1889.25,F4Control Ltd (t/a First4care),,,,,,,,,
Nottinghamshire County Council,1111/1001,Children and Young People,CYP,Transport Related,CCA,07/08/2015,05-10724,2641.8,F4Control Ltd (t/a First4care),,,,,,,,,
Nottinghamshire County Council,1111/1001,Children and Young People,CYP,Transport Related,CCA,07/08/2015,05-10725,2147.2,F4Control Ltd (t/a First4care),,,,,,,,,
Nottinghamshire County Council,1111/1001,Children and Young People,CYP,Transport Related,CCA,07/08/2015,05-10726,1637.85,F4Control Ltd (t/a First4care),,,,,,,,,
Nottinghamshire County Council,1111/1001,Children and Young People,CYP,Transport Related,CCA,07/08/2015,05-10728,1888,F4Control Ltd (t/a First4care),,,,,,,,,
Nottinghamshire County Council,1111/1001,Children and Young People,CYP,Transport Related,CCA,07/08/2015,05-10729,1904,F4Control Ltd (t/a First4care),,,,,,,,,
Nottinghamshire County Council,1111/1001,Children and Young People,CYP,Transport Related,CCA,07/08/2015,05-10730,1792,F4Control Ltd (t/a First4care),,,,,,,,,
Nottinghamshire County Council,1111/1001,Children and Young People,CYP,Transport Related,CCA,07/08/2015,05-10731,3099,Redfern Travel,,,,,,,,,
Nottinghamshire County Council,1111/1001,Children and Young People,CYP,Transport Related,CCA,07/08/2015,05-10732,1731.25,Redfern Travel,,,,,,,,,
Nottinghamshire County Council,1111/1001,Children and Young People,CYP,Transport Related,CCA,07/08/2015,05-10733,2483.52,CBC Taxis Ltd,,,,,,,,,
Nottinghamshire County Council,1111/1001,Children and Young People,CYP,Transport Related,CCA,07/08/2015,05-10734,1281.96,CBC Taxis Ltd,,,,,,,,,
Nottinghamshire County Council,1111/1001,Children and Young People,CYP,Transport Related,CCA,07/08/2015,05-10735,799.2,CBC Taxis Ltd,,,,,,,,,
Nottinghamshire County Council,1111/1001,Children and Young People,CYP,Transport Related,CCA,07/08/2015,05-10738,423.84,Acorn Contracts,,,,,,,,,
Nottinghamshire County Council,1111/1001,Children and Young People,CYP,Transport Related,CCA,07/08/2015,05-10741,800,Alpha Cars,,,,,,,,,
Nottinghamshire County Council,1111/1001,Children and Young People,CYP,Transport Related,CCA,07/08/2015,05-10743,1449.63,Alpha Cars,,,,,,,,,
Nottinghamshire County Council,1111/1001,Children and Young People,CYP,Transport Related,CCA,07/08/2015,05-10746,1462.24,Arrow Specialised Transport Ltd,,,,,,,,,
Nottinghamshire County Council,1111/1001,Children and Young People,CYP,Transport Related,CCA,07/08/2015,05-10747,1635,Arrow Specialised Transport Ltd,,,,,,,,,
Nottinghamshire County Council,1111/1001,Children and Young People,CYP,Transport Related,CCA,07/08/2015,05-10749,1560,Arrow Specialised Transport Ltd,,,,,,,,,
Nottinghamshire County Council,1111/1001,Children and Young People,CYP,Transport Related,CCA,07/08/2015,05-10750,2995.52,Arrow Specialised Transport Ltd,,,,,,,,,
Nottinghamshire County Council,1111/1001,Children and Young People,CYP,Transport Related,CCA,07/08/2015,05-10752,2102.76,Arrow Specialised Transport Ltd,,,,,,,,,
Nottinghamshire County Council,1111/1001,Children and Young People,CYP,Transport Related,CCA,07/08/2015,05-10754,1359.6,Arrow Specialised Transport Ltd,,,,,,,,,
Nottinghamshire County Council,1111/1001,Children and Young People,CYP,Transport Related,CCA,07/08/2015,05-10759,3204.39,Bridges Transport Services,,,,,,,,,
Nottinghamshire County Council,1111/1001,Children and Young People,CYP,Transport Related,CCA,07/08/2015,05-10760,1611,Bridges Transport Services,,,,,,,,,
Nottinghamshire County Council,1111/1001,Children and Young People,CYP,Transport Related,CCA,07/08/2015,05-10761,1560.6,D G Private Hire Ltd,,,,,,,,,
Nottinghamshire County Council,1111/1001,Children and Young People,CYP,Transport Related,CCA,07/08/2015,05-10762,810.46,D G Private Hire Ltd,,,,,,,,,
Nottinghamshire County Council,1111/1001,Children and Young People,CYP,Transport Related,CCA,07/08/2015,05-10763,1123.56,D G Private Hire Ltd,,,,,,,,,
Nottinghamshire County Council,1111/1001,Children and Young People,CYP,Transport Related,CCA,07/08/2015,05-10764,1268.16,Headland Taxi Services,,,,,,,,,
Nottinghamshire County Council,1111/1001,Children and Young People,CYP,Transport Related,CCA,07/08/2015,05-10769,665,Ng11 Cars,,,,,,,,,
Nottinghamshire County Council,1111/1001,Children and Young People,CYP,Transport Related,CCA,07/08/2015,05-10770,1430,Ng11 Cars,,,,,,,,,
Nottinghamshire County Council,1111/1001,Children and Young People,CYP,Transport Related,CCA,07/08/2015,05-10772,1713.6,Shelleys Taxis Ltd,,,,,,,,,
Nottinghamshire County Council,1111/1001,Children and Young People,CYP,Transport Related,CCA,07/08/2015,05-10773,892.5,Sprays Transport Ltd,,,,,,,,,
Nottinghamshire County Council,1111/1001,Children and Young People,CYP,Transport Related,CCA,07/08/2015,05-10775,1464.89,Sprays Transport Ltd,,,,,,,,,
Nottinghamshire County Council,1111/1001,Children and Young People,CYP,Transport Related,CCA,07/08/2015,05-10776,1344.19,Sprays Transport Ltd,,,,,,,,,
Nottinghamshire County Council,1111/1001,Children and Young People,CYP,Transport Related,CCA,07/08/2015,05-10777,4319.26,BN Gibson Ltd,,,,,,,,,
Nottinghamshire County Council,1111/1001,Children and Young People,CYP,Transport Related,CCA,07/08/2015,05-10778,2077.6,Midfield Travel,,,,,,,,,
Nottinghamshire County Council,1111/1001,Children and Young People,CYP,Transport Related,CCA,07/08/2015,05-10779,1609.56,D G Private Hire Ltd,,,,,,,,,
Nottinghamshire County Council,1111/1001,Children and Young People,CYP,Transport Related,CCA,07/08/2015,05-10784,1456.56,Abacus Cars,,,,,,,,,
Nottinghamshire County Council,1111/1001,Children and Young People,CYP,Transport Related,CCA,07/08/2015,05-10785,1028.16,Abacus Cars,,,,,,,,,
Nottinghamshire County Council,1111/1001,Children and Young People,CYP,Transport Related,CCA,07/08/2015,05-10786,864,Abacus Cars,,,,,,,,,
Nottinghamshire County Council,1111/1001,Children and Young People,CYP,Transport Related,CCA,07/08/2015,05-10787,1120,Abacus Cars,,,,,,,,,
Nottinghamshire County Council,1111/1001,Children and Young People,CYP,Transport Related,CCA,07/08/2015,05-10788,1050,Abacus Cars,,,,,,,,,
Nottinghamshire County Council,1111/1001,Children and Young People,CYP,Transport Related,CCA,07/08/2015,05-10799,2218.58,Marshalls Of Sutton On Trent Ltd,,,,,,,,,
Nottinghamshire County Council,1111/1001,Children and Young People,CYP,Transport Related,CCA,07/08/2015,05-10807,680.96,Nunns Cars,,,,,,,,,
Nottinghamshire County Council,1111/1001,Children and Young People,CYP,Transport Related,CCA,07/08/2015,05-10811,840.64,Ace Cars,,,,,,,,,
Nottinghamshire County Council,1111/1001,Children and Young People,CYP,Transport Related,CCA,07/08/2015,05-10813,640,A2B Licensed Taxis,,,,,,,,,
Nottinghamshire County Council,1111/1001,Children and Young People,CYP,Transport Related,CCA,11/08/2015,05-14403,1272,Tiger European Uk Ltd,,,,,,,,,
Nottinghamshire County Council,1111/1001,Children and Young People,CYP,Transport Related,CCA,12/08/2015,05-14457,1392.31,Southside Cars,,,,,,,,,
Nottinghamshire County Council,1111/1001,Children and Young People,CYP,Transport Related,CCA,12/08/2015,05-14458,1000,Southside Cars,,,,,,,,,
Nottinghamshire County Council,1111/1001,Children and Young People,CYP,Transport Related,CCA,12/08/2015,05-14459,1483.2,Southside Cars,,,,,,,,,
Nottinghamshire County Council,1111/1001,Children and Young People,CYP,Transport Related,CCA,12/08/2015,05-14460,995.07,Southside Cars,,,,,,,,,
Nottinghamshire County Council,1111/1001,Children and Young People,CYP,Transport Related,CCA,12/08/2015,05-14462,672,200 Cars Ltd,,,,,,,,,
Nottinghamshire County Council,1111/1001,Children and Young People,CYP,Transport Related,CCA,12/08/2015,05-14465,1326.9,Ja Travel Ltd,,,,,,,,,
Nottinghamshire County Council,1111/1001,Children and Young People,CYP,Transport Related,CCA,12/08/2015,05-14466,2121.6,Shelleys Taxis Ltd,,,,,,,,,
Nottinghamshire County Council,1111/1001,Children and Young People,CYP,Transport Related,CCA,12/08/2015,05-14468,2470.08,Goldstar Travel Nottm Ltd,,,,,,,,,
Nottinghamshire County Council,1111/1001,Children and Young People,CYP,Transport Related,CCA,12/08/2015,05-14469,1176.8,Goldstar Travel Nottm Ltd,,,,,,,,,
Nottinghamshire County Council,1111/1001,Children and Young People,CYP,Transport Related,CCA,12/08/2015,05-14470,2190,AOT Coaches,,,,,,,,,
Nottinghamshire County Council,1111/1001,Children and Young People,CYP,Transport Related,CCA,12/08/2015,05-14471,1460,AOT Coaches,,,,,,,,,
Nottinghamshire County Council,1111/1001,Children and Young People,CYP,Transport Related,CCA,12/08/2015,05-14472,840,AOT Coaches,,,,,,,,,
Nottinghamshire County Council,1111/1001,Children and Young People,CYP,Transport Related,CCA,12/08/2015,05-14516,592,Travel Wright Ltd,,,,,,,,,
Nottinghamshire County Council,1111/1001,Children and Young People,CYP,Transport Related,CCA,12/08/2015,05-14518,1812.46,Travel Wright Ltd,,,,,,,,,
Nottinghamshire County Council,1111/1001,Children and Young People,CYP,Transport Related,CCA,12/08/2015,05-14535,1153.76,Ace Cars,,,,,,,,,
Nottinghamshire County Council,1111/1001,Children and Young People,CYP,Transport Related,CCA,12/08/2015,05-14537,1792,Eurocab 2000 Ltd,,,,,,,,,
Nottinghamshire County Council,1111/1001,Children and Young People,CYP,Transport Related,CCA,12/08/2015,05-14538,1885,Eurocab 2000 Ltd,,,,,,,,,
Nottinghamshire County Council,1111/1001,Children and Young People,CYP,Transport Related,CCA,13/08/2015,05-14584,1060.8,Sharpes Of Nottingham,,,,,,,,,
Nottinghamshire County Council,1111/1001,Children and Young People,CYP,Transport Related,CCA,13/08/2015,05-14585,550.8,Cabline Uk Ltd,,,,,,,,,
Nottinghamshire County Council,1111/1001,Children and Young People,CYP,Transport Related,CCA,13/08/2015,05-14586,643.75,Cabline Uk Ltd,,,,,,,,,
Nottinghamshire County Council,1111/1001,Children and Young People,CYP,Transport Related,CCA,18/08/2015,05-14838,2040,Johnson Bros Tours Ltd,,,,,,,,,
Nottinghamshire County Council,1111/1001,Children and Young People,CYP,Transport Related,CCA,18/08/2015,05-14839,1664,Arrow Specialised Transport Ltd,,,,,,,,,
Nottinghamshire County Council,1111/1001,Children and Young People,CYP,Transport Related,CCA,18/08/2015,05-14848,2394.48,BN Gibson Ltd,,,,,,,,,
Nottinghamshire County Council,1111/1001,Children and Young People,CYP,Transport Related,CCA,18/08/2015,05-14850,1547.91,BN Gibson Ltd,,,,,,,,,
Nottinghamshire County Council,1111/1001,Children and Young People,CYP,Transport Related,CCA,18/08/2015,05-14851,3222.24,BN Gibson Ltd,,,,,,,,,
Nottinghamshire County Council,1111/1001,Children and Young People,CYP,Transport Related,CCA,18/08/2015,05-14852,2363.84,BN Gibson Ltd,,,,,,,,,
Nottinghamshire County Council,1111/1001,Children and Young People,CYP,Transport Related,CCA,18/08/2015,05-14853,3037.28,BN Gibson Ltd,,,,,,,,,
Nottinghamshire County Council,1111/1001,Children and Young People,CYP,Transport Related,CCA,18/08/2015,05-14854,2790.24,BN Gibson Ltd,,,,,,,,,
Nottinghamshire County Council,1111/1001,Children and Young People,CYP,Transport Related,CCA,18/08/2015,05-14855,2723.52,BN Gibson Ltd,,,,,,,,,
Nottinghamshire County Council,1111/1001,Children and Young People,CYP,Transport Related,CCA,18/08/2015,05-14856,3477.92,BN Gibson Ltd,,,,,,,,,
Nottinghamshire County Council,1111/1001,Children and Young People,CYP,Transport Related,CCA,18/08/2015,05-14857,3743.04,BN Gibson Ltd,,,,,,,,,
Nottinghamshire County Council,1111/1001,Children and Young People,CYP,Transport Related,CCA,18/08/2015,05-14858,3141.28,BN Gibson Ltd,,,,,,,,,
Nottinghamshire County Council,1111/1001,Children and Young People,CYP,Transport Related,CCA,18/08/2015,05-14859,2933.92,BN Gibson Ltd,,,,,,,,,
Nottinghamshire County Council,1111/1001,Children and Young People,CYP,Transport Related,CCA,18/08/2015,05-14860,2534.72,BN Gibson Ltd,,,,,,,,,
Nottinghamshire County Council,1111/1001,Children and Young People,CYP,Transport Related,CCA,18/08/2015,05-14861,2000.64,BN Gibson Ltd,,,,,,,,,
Nottinghamshire County Council,1111/1001,Children and Young People,CYP,Transport Related,CCA,18/08/2015,05-14862,2594.29,BN Gibson Ltd,,,,,,,,,
Nottinghamshire County Council,1111/1001,Children and Young People,CYP,Transport Related,CCA,18/08/2015,05-14863,3247.74,BN Gibson Ltd,,,,,,,,,
Nottinghamshire County Council,1111/1001,Children and Young People,CYP,Transport Related,CCA,18/08/2015,05-14864,2555.04,BN Gibson Ltd,,,,,,,,,
Nottinghamshire County Council,1111/1001,Children and Young People,CYP,Transport Related,CCA,18/08/2015,05-14865,2147.84,BN Gibson Ltd,,,,,,,,,
Nottinghamshire County Council,1111/1001,Children and Young People,CYP,Transport Related,CCA,18/08/2015,05-14866,1975.68,BN Gibson Ltd,,,,,,,,,
Nottinghamshire County Council,1111/1001,Children and Young People,CYP,Transport Related,CCA,18/08/2015,05-14867,2329.6,BN Gibson Ltd,,,,,,,,,
Nottinghamshire County Council,1111/1001,Children and Young People,CYP,Transport Related,CCA,18/08/2015,05-14871,500,D G Private Hire Ltd,,,,,,,,,
Nottinghamshire County Council,1111/1001,Children and Young People,CYP,Transport Related,CCA,18/08/2015,05-14872,720,D G Private Hire Ltd,,,,,,,,,
Nottinghamshire County Council,1111/1001,Children and Young People,CYP,Transport Related,CCA,18/08/2015,05-14873,855,D G Private Hire Ltd,,,,,,,,,
Nottinghamshire County Council,1111/1001,Children and Young People,CYP,Transport Related,CCA,18/08/2015,05-14884,623,Paul S Winson Coaches,,,,,,,,,
Nottinghamshire County Council,1111/1001,Children and Young People,CYP,Transport Related,CCA,18/08/2015,05-14887,1343.88,Town Cars (UK) Ltd,,,,,,,,,
Nottinghamshire County Council,1111/1001,Children and Young People,CYP,Transport Related,CCA,20/08/2015,05-14960,3943.5,F4Control Ltd (t/a First4care),,,,,,,,,
Nottinghamshire County Council,1111/1001,Children and Young People,CYP,Transport Related,CCA,20/08/2015,05-14962,910,SJW (Muskham) Ltd T/A Z Cars,,,,,,,,,
Nottinghamshire County Council,1111/1001,Children and Young People,CYP,Transport Related,CCA,20/08/2015,05-14963,960,SJW (Muskham) Ltd T/A Z Cars,,,,,,,,,
Nottinghamshire County Council,1111/1001,Children and Young People,CYP,Transport Related,CCA,20/08/2015,05-14964,2191.35,Arrow Specialised Transport Ltd,,,,,,,,,
Nottinghamshire County Council,1111/1001,Children and Young People,CYP,Transport Related,CCA,20/08/2015,05-14965,881.28,Arrow Specialised Transport Ltd,,,,,,,,,
Nottinghamshire County Council,1111/1001,Children and Young People,CYP,Transport Related,CCA,20/08/2015,05-14967,2512.8,Arrow Specialised Transport Ltd,,,,,,,,,
Nottinghamshire County Council,1111/1001,Children and Young People,CYP,Transport Related,CCA,20/08/2015,05-14968,10612.08,Arrow Specialised Transport Ltd,,,,,,,,,
Nottinghamshire County Council,1111/1001,Children and Young People,CYP,Transport Related,CCA,20/08/2015,05-14969,1039.55,Arrow Specialised Transport Ltd,,,,,,,,,
Nottinghamshire County Council,1111/1001,Children and Young People,CYP,Transport Related,CCA,20/08/2015,05-14971,1612.16,Headland Taxi Services,,,,,,,,,
Nottinghamshire County Council,1111/1001,Children and Young People,CYP,Transport Related,CCA,20/08/2015,05-14972,729.3,Shelleys Taxis Ltd,,,,,,,,,
Nottinghamshire County Council,1111/1001,Children and Young People,CYP,Transport Related,CCA,20/08/2015,05-14973,910,Shelleys Taxis Ltd,,,,,,,,,
Nottinghamshire County Council,1111/1001,Children and Young People,CYP,Transport Related,CCA,20/08/2015,05-14977,528,D G Private Hire Ltd,,,,,,,,,
Nottinghamshire County Council,1111/1001,Children and Young People,CYP,Transport Related,CCA,21/08/2015,05-15049,1700.82,F4Control Ltd (t/a First4care),,,,,,,,,
Nottinghamshire County Council,1111/1001,Children and Young People,CYP,Transport Related,CCA,21/08/2015,05-15051,1277.12,Johnson Bros Tours Ltd,,,,,,,,,
Nottinghamshire County Council,1111/1001,Children and Young People,CYP,Transport Related,CCA,21/08/2015,05-15063,725,Arrow Specialised Transport Ltd,,,,,,,,,
Nottinghamshire County Council,1111/1001,Children and Young People,CYP,Transport Related,CCA,21/08/2015,05-15069,1020,D G Private Hire Ltd,,,,,,,,,
Nottinghamshire County Council,1111/1001,Children and Young People,CYP,Transport Related,CCA,21/08/2015,05-15082,1701.44,Sprays Transport Ltd,,,,,,,,,
Nottinghamshire County Council,1111/1001,Children and Young People,CYP,Transport Related,CCA,21/08/2015,05-15083,1808,Sprays Transport Ltd,,,,,,,,,
Nottinghamshire County Council,1111/1001,Children and Young People,CYP,Transport Related,CCA,21/08/2015,05-15084,897.8,BN Gibson Ltd,,,,,,,,,
Nottinghamshire County Council,1111/1001,Children and Young People,CYP,Transport Related,CCA,21/08/2015,05-15086,2904.44,BN Gibson Ltd,,,,,,,,,
Nottinghamshire County Council,1111/1001,Children and Young People,CYP,Transport Related,CCA,21/08/2015,05-15087,2788.28,BN Gibson Ltd,,,,,,,,,
Nottinghamshire County Council,1111/1001,Children and Young People,CYP,Transport Related,CCA,21/08/2015,05-15088,800,BN Gibson Ltd,,,,,,,,,
Nottinghamshire County Council,1111/1001,Children and Young People,CYP,Transport Related,CCA,21/08/2015,05-15089,1980.3,BN Gibson Ltd,,,,,,,,,
Nottinghamshire County Council,1111/1001,Children and Young People,CYP,Transport Related,CCA,21/08/2015,05-15090,1790.14,BN Gibson Ltd,,,,,,,,,
Nottinghamshire County Council,1111/1001,Children and Young People,CYP,Transport Related,CCA,21/08/2015,05-15096,601.8,Jb Tours Watnall Ltd,,,,,,,,,
Nottinghamshire County Council,1111/1001,Children and Young People,CYP,Transport Related,CCA,21/08/2015,05-15097,813.6,Jb Tours Watnall Ltd,,,,,,,,,
Nottinghamshire County Council,1111/1001,Children and Young People,CYP,Transport Related,CCA,21/08/2015,05-15107,2475,Freeway Coaches Ltd,,,,,,,,,
Nottinghamshire County Council,1111/1001,Children and Young People,CYP,Transport Related,CCA,21/08/2015,05-15114,1800,Trevor Bailey t/a Trevor Bailey Tra,,,,,,,,,
Nottinghamshire County Council,1111/1001,Children and Young People,CYP,Transport Related,CCA,27/08/2015,05-16004,773.76,Alert Cars Ltd,,,,,,,,,
Nottinghamshire County Council,1111/1001,Children and Young People,CYP,Transport Related,CCA,27/08/2015,05-16005,2717.76,Taxicover Uk Ltd,,,,,,,,,
Nottinghamshire County Council,1111/1001,Children and Young People,CYP,Transport Related,CCA,27/08/2015,05-16006,3016.8,Taxicover Uk Ltd,,,,,,,,,
Nottinghamshire County Council,1111/1001,Children and Young People,CYP,Transport Related,CCA,27/08/2015,05-16007,2572.96,Taxicover Uk Ltd,,,,,,,,,
Nottinghamshire County Council,1111/1001,Children and Young People,CYP,Transport Related,CDA,05/08/2015,05-10284,146.88,Central Cars Nottm Ltd,,,,,,,,,
Nottinghamshire County Council,1111/1001,Children and Young People,CYP,Transport Related,CDA,05/08/2015,05-10327,140.32,Bridges Transport Services,,,,,,,,,
Nottinghamshire County Council,1111/1001,Children and Young People,CYP,Transport Related,CDA,05/08/2015,05-10349,497.25,Fozcabs Newark Taxis,,,,,,,,,
Nottinghamshire County Council,1111/1001,Children and Young People,CYP,Transport Related,CDA,05/08/2015,05-10352,1062.5,Fozcabs Newark Taxis,,,,,,,,,
Nottinghamshire County Council,1111/1001,Children and Young People,CYP,Transport Related,CDA,05/08/2015,05-10355,979.2,Galaxy Cabs,,,,,,,,,
Nottinghamshire County Council,1111/1001,Children and Young People,CYP,Transport Related,CDA,05/08/2015,05-10382,434.36,Sprays Transport Ltd,,,,,,,,,
Nottinghamshire County Council,1111/1001,Children and Young People,CYP,Transport Related,CDA,05/08/2015,05-10389,172.11,Sprays Transport Ltd,,,,,,,,,
Nottinghamshire County Council,1111/1001,Children and Young People,CYP,Transport Related,CDA,05/08/2015,05-10423,941.52,D G Private Hire Ltd,,,,,,,,,
Nottinghamshire County Council,1111/1001,Children and Young People,CYP,Transport Related,CDA,05/08/2015,05-10425,250,D G Private Hire Ltd,,,,,,,,,
Nottinghamshire County Council,1111/1001,Children and Young People,CYP,Transport Related,CDA,05/08/2015,05-10434,2080,Abacus Cars,,,,,,,,,
Nottinghamshire County Council,1111/1001,Children and Young People,CYP,Transport Related,CDA,07/08/2015,05-10745,900,Alpha Cars,,,,,,,,,
Nottinghamshire County Council,1111/1001,Children and Young People,CYP,Transport Related,CDA,07/08/2015,05-10773,892.5,Sprays Transport Ltd,,,,,,,,,
Nottinghamshire County Council,1111/1001,Children and Young People,CYP,Transport Related,CDA,07/08/2015,05-10790,2886.4,AOT Coaches,,,,,,,,,
Nottinghamshire County Council,1111/1001,Children and Young People,CYP,Transport Related,CDA,07/08/2015,05-10791,1782,AOT Coaches,,,,,,,,,
Nottinghamshire County Council,1111/1001,Children and Young People,CYP,Transport Related,CDA,13/08/2015,05-14590,1248.1,Ace Of Mansfield Ltd,,,,,,,,,
Nottinghamshire County Council,1111/1001,Children and Young People,CYP,Transport Related,CDA,13/08/2015,05-14591,2597.9,Sprays Transport Ltd,,,,,,,,,
Nottinghamshire County Council,1111/1001,Children and Young People,CYP,Transport Related,CDA,18/08/2015,05-14877,643.9,D G Private Hire Ltd,,,,,,,,,
Nottinghamshire County Council,1111/1001,Children and Young People,CYP,Transport Related,CDA,18/08/2015,05-14879,1468.8,D G Private Hire Ltd,,,,,,,,,
Nottinghamshire County Council,1111/1001,Children and Young People,CYP,Transport Related,CDA,20/08/2015,05-14980,176,Eastwood Cars (UK) Ltd,,,,,,,,,
Nottinghamshire County Council,1111/1001,Children and Young People,CYP,Supplies & Services,DAA,04/08/2015,05-10035,10886.09,Sir Donald Bailey Academy,,,,,,,,,
Nottinghamshire County Council,1111/1001,Children and Young People,CYP,Supplies & Services,DAA,25/08/2015,05-15494,5820,Colonel Frank Seely School,,,,,,,,,
Nottinghamshire County Council,1111/1001,Children and Young People,CYP,Supplies & Services,DBA,04/08/2015,05-10240,274.89,Hallam Country Fresh Foods Ltd,,,,,,,,,
Nottinghamshire County Council,1111/1001,Children and Young People,CYP,Supplies & Services,DBA,05/08/2015,05-10534,213.2,Brake Bros Ltd,,,,,,,,,
Nottinghamshire County Council,1111/1001,Children and Young People,CYP,Supplies & Services,DBA,06/08/2015,05-10621,87.59,M Maloney Country Butchers & B Ltd,,,,,,,,,
Nottinghamshire County Council,1111/1001,Children and Young People,CYP,Supplies & Services,DBA,06/08/2015,05-10625,93.73,M Maloney Country Butchers & B Ltd,,,,,,,,,
Nottinghamshire County Council,1111/1001,Children and Young People,CYP,Supplies & Services,DBA,06/08/2015,05-10630,544.88,Brake Bros Ltd,,,,,,,,,
Nottinghamshire County Council,1111/1001,Children and Young People,CYP,Supplies & Services,DBA,07/08/2015,05-10831,93.86,M Maloney Country Butchers & B Ltd,,,,,,,,,
Nottinghamshire County Council,1111/1001,Children and Young People,CYP,Supplies & Services,DBA,07/08/2015,05-10835,73.69,M Maloney Country Butchers & B Ltd,,,,,,,,,
Nottinghamshire County Council,1111/1001,Children and Young People,CYP,Supplies & Services,DBA,11/08/2015,05-14407,306.43,Hallam Country Fresh Foods Ltd,,,,,,,,,
Nottinghamshire County Council,1111/1001,Children and Young People,CYP,Supplies & Services,DBA,17/08/2015,05-14691,133.43,Brake Bros Ltd,,,,,,,,,
Nottinghamshire County Council,1111/1001,Children and Young People,CYP,Supplies & Services,DBA,17/08/2015,05-14716,336.72,Brake Bros Ltd,,,,,,,,,
Nottinghamshire County Council,1111/1001,Children and Young People,CYP,Supplies & Services,DBA,17/08/2015,05-14719,611.13,Brake Bros Ltd,,,,,,,,,
Nottinghamshire County Council,1111/1001,Children and Young People,CYP,Supplies & Services,DBA,19/08/2015,05-14908,243.75,Hallam Country Fresh Foods Ltd,,,,,,,,,
Nottinghamshire County Council,1111/1001,Children and Young People,CYP,Supplies & Services,DBA,26/08/2015,05-15509,214.3,Brake Bros Ltd,,,,,,,,,
Nottinghamshire County Council,1111/1001,Children and Young People,CYP,Supplies & Services,DBA,26/08/2015,05-15512,619.49,Brake Bros Ltd,,,,,,,,,
Nottinghamshire County Council,1111/1001,Children and Young People,CYP,Supplies & Services,DBA,26/08/2015,05-15515,355.95,Brake Bros Ltd,,,,,,,,,
Nottinghamshire County Council,1111/1001,Children and Young People,CYP,Supplies & Services,DBA,26/08/2015,05-15522,281.5,Hallam Country Fresh Foods Ltd,,,,,,,,,
Nottinghamshire County Council,1111/1001,Children and Young People,CYP,Supplies & Services,DBA,26/08/2015,05-15528,516.21,Brake Bros Ltd,,,,,,,,,
Nottinghamshire County Council,1111/1001,Children and Young People,CYP,Supplies & Services,DBA,26/08/2015,05-15533,395.2,Brake Bros Ltd,,,,,,,,,
Nottinghamshire County Council,1111/1001,Children and Young People,CYP,Supplies & Services,DFA,12/08/2015,05-14425,4110,Phonak Uk Ltd,,,,,,,,,
Nottinghamshire County Council,1111/1001,Children and Young People,CYP,Supplies & Services,DHA,13/08/2015,05-14577,3062.4,Bronbury Services Ltd,,,,,,,,,
Nottinghamshire County Council,1111/1001,Children and Young People,CYP,Supplies & Services,DHA,27/08/2015,05-16000,35000,PSLA Newstead Childcare,,,,,,,,,
Nottinghamshire County Council,1111/1001,Children and Young People,CYP,Supplies & Services,DKA,11/08/2015,05-14411,12500,Nottinghamshire Healthcare Nhs Trus,,,,,,,,,
Nottinghamshire County Council,1111/1001,Children and Young People,CYP,Supplies & Services,DKA,26/08/2015,05-15505,690,Hattersley Lettings Ltd,,,,,,,,,
Nottinghamshire County Council,1111/1001,Children and Young People,CYP,Third Party Payments,EBA,13/08/2015,05-14598,10845.59,Home Group Limited,,,,,,,,,
Nottinghamshire County Council,1111/1001,Children and Young People,CYP,Third Party Payments,EBA,13/08/2015,05-14601,1681.84,Metropolitan Housing Trust,,,,,,,,,
Nottinghamshire County Council,1111/1001,Children and Young People,CYP,Third Party Payments,EBA,25/08/2015,05-15450,17717.82,East Leake Schools Ltd,,,,,,,,,
Nottinghamshire County Council,1111/1001,Children and Young People,CYP,Third Party Payments,EBA,25/08/2015,05-15493,235419.72,East Leake Schools Ltd,,,,,,,,,
Nottinghamshire County Council,1111/1001,Children and Young People,CYP,Third Party Payments,EBA,26/08/2015,05-15448,40375.7,Transform Schools,,,,,,,,,
Nottinghamshire County Council,1111/1001,Children and Young People,CYP,Third Party Payments,EBA,26/08/2015,05-15449,19895.63,Transform Schools,,,,,,,,,
Nottinghamshire County Council,1111/1001,Children and Young People,CYP,Third Party Payments,EBA,26/08/2015,05-15451,10885.36,Transform Schools,,,,,,,,,
Nottinghamshire County Council,1111/1001,Children and Young People,CYP,Third Party Payments,EBA,26/08/2015,05-15452,51227.01,Transform Schools,,,,,,,,,
Nottinghamshire County Council,1111/1001,Children and Young People,CYP,Third Party Payments,EBA,26/08/2015,05-15454,38475.54,Transform Schools,,,,,,,,,
Nottinghamshire County Council,1111/1001,Children and Young People,CYP,Third Party Payments,EBA,26/08/2015,05-15456,2066.92,Transform Schools,,,,,,,,,
Nottinghamshire County Council,1111/1001,Children and Young People,CYP,Third Party Payments,EBA,26/08/2015,05-15491,1483568.36,Transform Schools,,,,,,,,,
Nottinghamshire County Council,1111/1001,Children and Young People,CYP,Third Party Payments,EDA,05/08/2015,05-10513,2660,St Peters C of E Academy,,,,,,,,,
Nottinghamshire County Council,1111/1001,Children and Young People,CYP,Third Party Payments,EDA,19/08/2015,05-14922,20360,George Spencer Academy,,,,,,,,,
Nottinghamshire County Council,1111/1001,Children and Young People,CYP,Third Party Payments,EDA,21/08/2015,05-10523,10987,Sutton Community Academy,,,,,,,,,
Nottinghamshire County Council,1111/1001,Children and Young People,CYP,Third Party Payments,EDA,21/08/2015,05-10524,28191,The South Wolds Academy & Sixth For,,,,,,,,,
Nottinghamshire County Council,1111/1001,Children and Young People,CYP,Third Party Payments,EDA,21/08/2015,05-10525,892,St Edmund Campion Voluntary Academy,,,,,,,,,
Nottinghamshire County Council,1111/1001,Children and Young People,CYP,Third Party Payments,EDA,21/08/2015,05-10526,5282,The Carlton Academy,,,,,,,,,
Nottinghamshire County Council,1111/1001,Children and Young People,CYP,Third Party Payments,EDA,21/08/2015,05-10527,4648,Dukeries Academy,,,,,,,,,
Nottinghamshire County Council,1111/1001,Children and Young People,CYP,Third Party Payments,EDA,21/08/2015,05-10528,845,Sunnyside Spencer Academy,,,,,,,,,
Nottinghamshire County Council,1111/1001,Children and Young People,CYP,Third Party Payments,EDA,21/08/2015,05-10529,8240,Sunnyside Spencer Academy,,,,,,,,,
Nottinghamshire County Council,1111/1001,Children and Young People,CYP,Third Party Payments,EDA,21/08/2015,05-10530,9313,Magnus Church of England Academy,,,,,,,,,
Nottinghamshire County Council,1111/1001,Children and Young People,CYP,Third Party Payments,EDA,25/08/2015,05-15507,6339,Sacred Heart Catholic Voluntary Aca,,,,,,,,,
Nottinghamshire County Council,1111/1001,Children and Young People,CYP,Third Party Payments,EDA,25/08/2015,05-15508,6339,Retford Oaks Academy,,,,,,,,,
Nottinghamshire County Council,1111/1001,Children and Young People,CYP,Third Party Payments,EDA,28/08/2015,05-10265,1080,Birklands Primary (Academy),,,,,,,,,
Nottinghamshire County Council,1111/1001,Children and Young People,CYP,Third Party Payments,EDA,28/08/2015,05-10510,1080,Meden School - A Torch Academy,,,,,,,,,
Nottinghamshire County Council,1111/1001,Children and Young People,CYP,Third Party Payments,EDA,28/08/2015,05-10511,2000,Toothill Academy,,,,,,,,,
Nottinghamshire County Council,1111/1001,Children and Young People,CYP,Third Party Payments,EDA,28/08/2015,05-10512,32494,West Bridgford Academy,,,,,,,,,
Nottinghamshire County Council,1111/1001,Children and Young People,CYP,Third Party Payments,EDA,28/08/2015,05-10514,24320,Toothill Academy,,,,,,,,,
Nottinghamshire County Council,1111/1001,Children and Young People,CYP,Third Party Payments,EDA,28/08/2015,05-10515,19410,Queen Elizabeth's Academy,,,,,,,,,
Nottinghamshire County Council,1111/1001,Children and Young People,CYP,Third Party Payments,EDA,28/08/2015,05-10516,24518,The Flying High Academy,,,,,,,,,
Nottinghamshire County Council,1111/1001,Children and Young People,CYP,Third Party Payments,EDA,28/08/2015,05-10517,8998,The Holgate Academy,,,,,,,,,
Nottinghamshire County Council,1111/1001,Children and Young People,CYP,Third Party Payments,EDA,28/08/2015,05-10518,11996,Hillside Academy,,,,,,,,,
Nottinghamshire County Council,1111/1001,Children and Young People,CYP,Third Party Payments,EDA,28/08/2015,05-10519,31500,Carlton Le Willows Academy,,,,,,,,,
Nottinghamshire County Council,1111/1001,Children and Young People,CYP,Third Party Payments,EDA,28/08/2015,05-10520,34159,Ashfield Academy,,,,,,,,,
Nottinghamshire County Council,1111/1001,Children and Young People,CYP,Third Party Payments,EDA,28/08/2015,05-10521,4821,Arnold Hill Academy,,,,,,,,,
Nottinghamshire County Council,1111/1001,Children and Young People,CYP,Third Party Payments,EDA,28/08/2015,05-10522,5214,Ernehale Junior School Academy,,,,,,,,,
Nottinghamshire County Council,1111/1001,Children and Young People,CYP,Third Party Payments,EDA,28/08/2015,05-10701,22475,Wainwright Primary Academy,,,,,,,,,
Nottinghamshire County Council,1111/1001,Children and Young People,CYP,Third Party Payments,EDA,28/08/2015,05-15506,2890,West Bridgford Academy,,,,,,,,,
Nottinghamshire County Council,1111/1001,Children and Young People,CYP,Third Party Payments,EGA,03/08/2015,05-16024,1130074.33,Nottinghamshire Healthcare Nhs Trus,,,,,,,,,
Nottinghamshire County Council,1111/1001,Children and Young People,CYP,Third Party Payments,EGA,05/08/2015,05-10344,807.84,Fozcabs Newark Taxis,,,,,,,,,
Nottinghamshire County Council,1111/1001,Children and Young People,CYP,Third Party Payments,EGA,18/08/2015,05-16044,4324,Wings Education Ltd,,,,,,,,,
Nottinghamshire County Council,1111/1001,Children and Young People,CYP,Third Party Payments,EGA,20/08/2015,05-14996,4071.6,Alphabet House Day Nursery,,,,,,,,,
Nottinghamshire County Council,1111/1001,Children and Young People,CYP,Third Party Payments,EGA,25/08/2015,05-15496,724.5,Alphabet House Day Nursery,,,,,,,,,
Nottinghamshire County Council,1111/1001,Children and Young People,CYP,Third Party Payments,EGA,25/08/2015,05-15497,651,Cherubs Childcare Centre (Mansfield,,,,,,,,,
Nottinghamshire County Council,1111/1001,Children and Young People,CYP,Third Party Payments,EGA,25/08/2015,05-15498,518,JPAC Ltd,,,,,,,,,
Nottinghamshire County Council,1111/1001,Children and Young People,CYP,Third Party Payments,EGA,25/08/2015,05-15499,539,Learning Ladder Childcare Ltd,,,,,,,,,
Nottinghamshire County Council,1111/1001,Children and Young People,CYP,Third Party Payments,EGA,25/08/2015,05-15500,588,Ollerton Out Of School Care,,,,,,,,,
Nottinghamshire County Council,1111/1001,Children and Young People,CYP,Third Party Payments,EGA,25/08/2015,05-15501,679,Papermoon Day Nursery,,,,,,,,,
Nottinghamshire County Council,1111/1001,Children and Young People,CYP,Third Party Payments,EGA,25/08/2015,05-15502,819,Serendipity's Day Nursery,,,,,,,,,
Nottinghamshire County Council,1111/1001,Children and Young People,CYP,Third Party Payments,EGA,25/08/2015,05-15503,518,The Learning Tree Nursery,,,,,,,,,
Nottinghamshire County Council,1111/1001,Children and Young People,CYP,Third Party Payments,EGA,26/08/2015,05-15541,508.95,Mapperley Day Nursery,,,,,,,,,
Nottinghamshire County Council,1111/1001,Children and Young People,CYP,Third Party Payments,EGA,28/08/2015,05-16014,34859.58,Village Day Nursery,,,,,,,,,
Nottinghamshire County Council,1111/1001,Children and Young People,CYP,Third Party Payments,EGA,28/08/2015,05-16045,12922.73,Pathway Care Solutions Ltd,,,,,,,,,
Nottinghamshire County Council,1111/1001,Children and Young People,CYP,Support Services,HAA,05/08/2015,05-10268,1961.65,Sharpes Of Nottingham,,,,,,,,,
Nottinghamshire County Council,1111/1001,Children and Young People,CYP,Support Services,HAA,05/08/2015,05-10269,1991.6,Sharpes Of Nottingham,,,,,,,,,
Nottinghamshire County Council,1111/1001,Children and Young People,CYP,Support Services,HAA,05/08/2015,05-10270,1893.85,Sharpes Of Nottingham,,,,,,,,,
Nottinghamshire County Council,1111/1001,Children and Young People,CYP,Support Services,HAA,05/08/2015,05-10271,1983,Sharpes Of Nottingham,,,,,,,,,
Nottinghamshire County Council,1111/1001,Children and Young People,CYP,Support Services,HAA,05/08/2015,05-10274,2451.2,Sharpes Of Nottingham,,,,,,,,,
Nottinghamshire County Council,1111/1001,Children and Young People,CYP,Support Services,HAA,05/08/2015,05-10275,1907.15,Sharpes Of Nottingham,,,,,,,,,
Nottinghamshire County Council,1111/1001,Children and Young People,CYP,Support Services,HAA,05/08/2015,05-10276,1947.6,Sharpes Of Nottingham,,,,,,,,,
Nottinghamshire County Council,1111/1001,Children and Young People,CYP,Support Services,HAA,05/08/2015,05-10277,1928.25,Sharpes Of Nottingham,,,,,,,,,
Nottinghamshire County Council,1111/1001,Children and Young People,CYP,Support Services,HAA,05/08/2015,05-10278,1816,Sharpes Of Nottingham,,,,,,,,,
Nottinghamshire County Council,1111/1001,Children and Young People,CYP,Support Services,HAA,05/08/2015,05-10279,2440,Sharpes Of Nottingham,,,,,,,,,
Nottinghamshire County Council,1111/1001,Children and Young People,CYP,Support Services,HAA,05/08/2015,05-10293,2240,Johnson Bros Tours Ltd,,,,,,,,,
Nottinghamshire County Council,1111/1001,Children and Young People,CYP,Support Services,HAA,05/08/2015,05-10294,2579.6,Johnson Bros Tours Ltd,,,,,,,,,
Nottinghamshire County Council,1111/1001,Children and Young People,CYP,Support Services,HAA,05/08/2015,05-10295,9950.6,Johnson Bros Tours Ltd,,,,,,,,,
Nottinghamshire County Council,1111/1001,Children and Young People,CYP,Support Services,HAA,05/08/2015,05-10296,13600,Johnson Bros Tours Ltd,,,,,,,,,
Nottinghamshire County Council,1111/1001,Children and Young People,CYP,Support Services,HAA,05/08/2015,05-10297,2420.5,Johnson Bros Tours Ltd,,,,,,,,,
Nottinghamshire County Council,1111/1001,Children and Young People,CYP,Support Services,HAA,05/08/2015,05-10298,16248.2,Johnson Bros Tours Ltd,,,,,,,,,
Nottinghamshire County Council,1111/1001,Children and Young People,CYP,Support Services,HAA,05/08/2015,05-10299,4446.3,Johnson Bros Tours Ltd,,,,,,,,,
Nottinghamshire County Council,1111/1001,Children and Young People,CYP,Support Services,HAA,05/08/2015,05-10300,2940.25,Johnson Bros Tours Ltd,,,,,,,,,
Nottinghamshire County Council,1111/1001,Children and Young People,CYP,Support Services,HAA,05/08/2015,05-10322,243.44,Bridges Transport Services,,,,,,,,,
Nottinghamshire County Council,1111/1001,Children and Young People,CYP,Support Services,HAA,05/08/2015,05-10331,2092,Butler Brothers Ltd,,,,,,,,,
Nottinghamshire County Council,1111/1001,Children and Young People,CYP,Support Services,HAA,05/08/2015,05-10342,595.14,Fozcabs Newark Taxis,,,,,,,,,
Nottinghamshire County Council,1111/1001,Children and Young People,CYP,Support Services,HAA,05/08/2015,05-10343,1142.4,Fozcabs Newark Taxis,,,,,,,,,
Nottinghamshire County Council,1111/1001,Children and Young People,CYP,Support Services,HAA,05/08/2015,05-10365,630,Shelleys Taxis Ltd,,,,,,,,,
Nottinghamshire County Council,1111/1001,Children and Young People,CYP,Support Services,HAA,05/08/2015,05-10375,1360,Sprays Transport Ltd,,,,,,,,,
Nottinghamshire County Council,1111/1001,Children and Young People,CYP,Support Services,HAA,05/08/2015,05-10395,1248.48,F & J Marriott T/A Unity Coaches,,,,,,,,,
Nottinghamshire County Council,1111/1001,Children and Young People,CYP,Support Services,HAA,05/08/2015,05-10396,2064,F & J Marriott T/A Unity Coaches,,,,,,,,,
Nottinghamshire County Council,1111/1001,Children and Young People,CYP,Support Services,HAA,05/08/2015,05-10397,1454,F & J Marriott T/A Unity Coaches,,,,,,,,,
Nottinghamshire County Council,1111/1001,Children and Young People,CYP,Support Services,HAA,05/08/2015,05-10439,2560,AOT Coaches,,,,,,,,,
Nottinghamshire County Council,1111/1001,Children and Young People,CYP,Support Services,HAA,05/08/2015,05-10440,2560,AOT Coaches,,,,,,,,,
Nottinghamshire County Council,1111/1001,Children and Young People,CYP,Support Services,HAA,05/08/2015,05-10441,2392,AOT Coaches,,,,,,,,,
Nottinghamshire County Council,1111/1001,Children and Young People,CYP,Support Services,HAA,05/08/2015,05-10442,2092.28,AOT Coaches,,,,,,,,,
Nottinghamshire County Council,1111/1001,Children and Young People,CYP,Support Services,HAA,05/08/2015,05-10443,2080.28,AOT Coaches,,,,,,,,,
Nottinghamshire County Council,1111/1001,Children and Young People,CYP,Support Services,HAA,05/08/2015,05-10444,2115.44,AOT Coaches,,,,,,,,,
Nottinghamshire County Council,1111/1001,Children and Young People,CYP,Support Services,HAA,05/08/2015,05-10445,2079,AOT Coaches,,,,,,,,,
Nottinghamshire County Council,1111/1001,Children and Young People,CYP,Support Services,HAA,05/08/2015,05-10446,1934,AOT Coaches,,,,,,,,,
Nottinghamshire County Council,1111/1001,Children and Young People,CYP,Support Services,HAA,05/08/2015,05-10447,2088,AOT Coaches,,,,,,,,,
Nottinghamshire County Council,1111/1001,Children and Young People,CYP,Support Services,HAA,05/08/2015,05-10448,2036.2,Gem Mini Travel Ltd,,,,,,,,,
Nottinghamshire County Council,1111/1001,Children and Young People,CYP,Support Services,HAA,05/08/2015,05-10449,1931.2,Gem Mini Travel Ltd,,,,,,,,,
Nottinghamshire County Council,1111/1001,Children and Young People,CYP,Support Services,HAA,05/08/2015,05-10450,2184,Gem Mini Travel Ltd,,,,,,,,,
Nottinghamshire County Council,1111/1001,Children and Young People,CYP,Support Services,HAA,05/08/2015,05-10451,2350.3,Gem Mini Travel Ltd,,,,,,,,,
Nottinghamshire County Council,1111/1001,Children and Young People,CYP,Support Services,HAA,05/08/2015,05-10452,1833.5,Jb Tours Watnall Ltd,,,,,,,,,
Nottinghamshire County Council,1111/1001,Children and Young People,CYP,Support Services,HAA,05/08/2015,05-10453,960,K & R Cars,,,,,,,,,
Nottinghamshire County Council,1111/1001,Children and Young People,CYP,Support Services,HAA,05/08/2015,05-10454,1008,Meden Travel,,,,,,,,,
Nottinghamshire County Council,1111/1001,Children and Young People,CYP,Support Services,HAA,05/08/2015,05-10455,2043.1,Silverdale Tours Nottm Ltd,,,,,,,,,
Nottinghamshire County Council,1111/1001,Children and Young People,CYP,Support Services,HAA,05/08/2015,05-10456,2643.2,Silverdale Tours Nottm Ltd,,,,,,,,,
Nottinghamshire County Council,1111/1001,Children and Young People,CYP,Support Services,HAA,05/08/2015,05-10457,2232.8,Silverdale Tours Nottm Ltd,,,,,,,,,
Nottinghamshire County Council,1111/1001,Children and Young People,CYP,Support Services,HAA,05/08/2015,05-10458,2415.3,Silverdale Tours Nottm Ltd,,,,,,,,,
Nottinghamshire County Council,1111/1001,Children and Young People,CYP,Support Services,HAA,05/08/2015,05-10459,2226.1,Silverdale Tours Nottm Ltd,,,,,,,,,
Nottinghamshire County Council,1111/1001,Children and Young People,CYP,Support Services,HAA,05/08/2015,05-10460,1768.5,Silverdale Tours Nottm Ltd,,,,,,,,,
Nottinghamshire County Council,1111/1001,Children and Young People,CYP,Support Services,HAA,05/08/2015,05-10461,1866.5,Silverdale Tours Nottm Ltd,,,,,,,,,
Nottinghamshire County Council,1111/1001,Children and Young People,CYP,Support Services,HAA,05/08/2015,05-10462,1943.5,Silverdale Tours Nottm Ltd,,,,,,,,,
Nottinghamshire County Council,1111/1001,Children and Young People,CYP,Support Services,HAA,05/08/2015,05-10463,1741,Silverdale Tours Nottm Ltd,,,,,,,,,
Nottinghamshire County Council,1111/1001,Children and Young People,CYP,Support Services,HAA,05/08/2015,05-10466,2352,Tiger European Uk Ltd,,,,,,,,,
Nottinghamshire County Council,1111/1001,Children and Young People,CYP,Support Services,HAA,05/08/2015,05-10467,2293,Tiger European Uk Ltd,,,,,,,,,
Nottinghamshire County Council,1111/1001,Children and Young People,CYP,Support Services,HAA,05/08/2015,05-10468,2190,Tiger European Uk Ltd,,,,,,,,,
Nottinghamshire County Council,1111/1001,Children and Young People,CYP,Support Services,HAA,05/08/2015,05-10469,2240,Tiger European Uk Ltd,,,,,,,,,
Nottinghamshire County Council,1111/1001,Children and Young People,CYP,Support Services,HAA,05/08/2015,05-10470,2512,Tiger European Uk Ltd,,,,,,,,,
Nottinghamshire County Council,1111/1001,Children and Young People,CYP,Support Services,HAA,05/08/2015,05-10471,2366,Tiger European Uk Ltd,,,,,,,,,
Nottinghamshire County Council,1111/1001,Children and Young People,CYP,Support Services,HAA,05/08/2015,05-10472,2324.8,Tiger European Uk Ltd,,,,,,,,,
Nottinghamshire County Council,1111/1001,Children and Young People,CYP,Support Services,HAA,05/08/2015,05-10473,2831.1,Tiger European Uk Ltd,,,,,,,,,
Nottinghamshire County Council,1111/1001,Children and Young People,CYP,Support Services,HAA,05/08/2015,05-10474,1098,Tiger European Uk Ltd,,,,,,,,,
Nottinghamshire County Council,1111/1001,Children and Young People,CYP,Support Services,HAA,05/08/2015,05-10475,2070,Tiger European Uk Ltd,,,,,,,,,
Nottinghamshire County Council,1111/1001,Children and Young People,CYP,Support Services,HAA,05/08/2015,05-10476,2252.2,Tiger European Uk Ltd,,,,,,,,,
Nottinghamshire County Council,1111/1001,Children and Young People,CYP,Support Services,HAA,05/08/2015,05-10477,2960,Tiger European Uk Ltd,,,,,,,,,
Nottinghamshire County Council,1111/1001,Children and Young People,CYP,Support Services,HAA,05/08/2015,05-10478,228,P & P Taxis,,,,,,,,,
Nottinghamshire County Council,1111/1001,Children and Young People,CYP,Support Services,HAA,05/08/2015,05-10481,1280,P & P Taxis,,,,,,,,,
Nottinghamshire County Council,1111/1001,Children and Young People,CYP,Support Services,HAA,05/08/2015,05-10489,2056,Kettlewell Retford Ltd,,,,,,,,,
Nottinghamshire County Council,1111/1001,Children and Young People,CYP,Support Services,HAA,05/08/2015,05-10493,3043.17,Isle Coaches,,,,,,,,,
Nottinghamshire County Council,1111/1001,Children and Young People,CYP,Support Services,HAA,07/08/2015,05-10768,520,Ng11 Cars,,,,,,,,,
Nottinghamshire County Council,1111/1001,Children and Young People,CYP,Support Services,HAA,07/08/2015,05-10783,1080,Abacus Cars,,,,,,,,,
Nottinghamshire County Council,1111/1001,Children and Young People,CYP,Support Services,HAA,07/08/2015,05-10792,1352.39,Marshalls Of Sutton On Trent Ltd,,,,,,,,,
Nottinghamshire County Council,1111/1001,Children and Young People,CYP,Support Services,HAA,07/08/2015,05-10801,2145,Marshalls Of Sutton On Trent Ltd,,,,,,,,,
Nottinghamshire County Council,1111/1001,Children and Young People,CYP,Support Services,HAA,07/08/2015,05-10803,1485,Marshalls Of Sutton On Trent Ltd,,,,,,,,,
Nottinghamshire County Council,1111/1001,Children and Young People,CYP,Support Services,HAA,07/08/2015,05-10804,2640,Marshalls Of Sutton On Trent Ltd,,,,,,,,,
Nottinghamshire County Council,1111/1001,Children and Young People,CYP,Support Services,HAA,07/08/2015,05-10805,2022.57,Marshalls Of Sutton On Trent Ltd,,,,,,,,,
Nottinghamshire County Council,1111/1001,Children and Young People,CYP,Support Services,HAA,12/08/2015,05-14461,644.82,Dial A Trip,,,,,,,,,
Nottinghamshire County Council,1111/1001,Children and Young People,CYP,Support Services,HAA,12/08/2015,05-14477,1273.6,Stagecoach Services Ltd,,,,,,,,,
Nottinghamshire County Council,1111/1001,Children and Young People,CYP,Support Services,HAA,12/08/2015,05-14478,1273.6,Stagecoach Services Ltd,,,,,,,,,
Nottinghamshire County Council,1111/1001,Children and Young People,CYP,Support Services,HAA,12/08/2015,05-14483,4259.7,Stagecoach Services Ltd,,,,,,,,,
Nottinghamshire County Council,1111/1001,Children and Young People,CYP,Support Services,HAA,12/08/2015,05-14487,1001.73,Stagecoach Services Ltd,,,,,,,,,
Nottinghamshire County Council,1111/1001,Children and Young People,CYP,Support Services,HAA,12/08/2015,05-14504,5892.58,Stagecoach Services Ltd,,,,,,,,,
Nottinghamshire County Council,1111/1001,Children and Young People,CYP,Support Services,HAA,12/08/2015,05-14506,2775.51,Stagecoach Services Ltd,,,,,,,,,
Nottinghamshire County Council,1111/1001,Children and Young People,CYP,Support Services,HAA,12/08/2015,05-14508,4727.46,Stagecoach Services Ltd,,,,,,,,,
Nottinghamshire County Council,1111/1001,Children and Young People,CYP,Support Services,HAA,12/08/2015,05-14512,3622.56,Stagecoach Services Ltd,,,,,,,,,
Nottinghamshire County Council,1111/1001,Children and Young People,CYP,Support Services,HAA,12/08/2015,05-14514,4128,Stagecoach Services Ltd,,,,,,,,,
Nottinghamshire County Council,1111/1001,Children and Young People,CYP,Support Services,HAA,12/08/2015,05-14515,4124.65,Stagecoach Services Ltd,,,,,,,,,
Nottinghamshire County Council,1111/1001,Children and Young People,CYP,Support Services,HAA,12/08/2015,05-14517,10484.8,Travel Wright Ltd,,,,,,,,,
Nottinghamshire County Council,1111/1001,Children and Young People,CYP,Support Services,HAA,12/08/2015,05-14519,2380.46,Travel Wright Ltd,,,,,,,,,
Nottinghamshire County Council,1111/1001,Children and Young People,CYP,Support Services,HAA,12/08/2015,05-14520,2326.35,Travel Wright Ltd,,,,,,,,,
Nottinghamshire County Council,1111/1001,Children and Young People,CYP,Support Services,HAA,12/08/2015,05-14521,4935.93,Travel Wright Ltd,,,,,,,,,
Nottinghamshire County Council,1111/1001,Children and Young People,CYP,Support Services,HAA,12/08/2015,05-14523,120,Travel Wright Ltd,,,,,,,,,
Nottinghamshire County Council,1111/1001,Children and Young People,CYP,Support Services,HAA,12/08/2015,05-14525,2661.59,Travel Wright Ltd,,,,,,,,,
Nottinghamshire County Council,1111/1001,Children and Young People,CYP,Support Services,HAA,12/08/2015,05-14527,2399.25,Travel Wright Ltd,,,,,,,,,
Nottinghamshire County Council,1111/1001,Children and Young People,CYP,Support Services,HAA,12/08/2015,05-14528,2005.89,Travel Wright Ltd,,,,,,,,,
Nottinghamshire County Council,1111/1001,Children and Young People,CYP,Support Services,HAA,12/08/2015,05-14530,1568,Wilfreda Beehive,,,,,,,,,
Nottinghamshire County Council,1111/1001,Children and Young People,CYP,Support Services,HAA,12/08/2015,05-14531,697.07,Bassetlaw Action Centre,,,,,,,,,
Nottinghamshire County Council,1111/1001,Children and Young People,CYP,Support Services,HAA,12/08/2015,05-14532,1544.4,Bassetlaw Action Centre,,,,,,,,,
Nottinghamshire County Council,1111/1001,Children and Young People,CYP,Support Services,HAA,13/08/2015,05-14587,1280,Wrights Coaches,,,,,,,,,
Nottinghamshire County Council,1111/1001,Children and Young People,CYP,Support Services,HAA,13/08/2015,05-14596,1127.78,Cotswold CVS Trading Ltd,,,,,,,,,
Nottinghamshire County Council,1111/1001,Children and Young People,CYP,Support Services,HAA,18/08/2015,05-14840,1850,Lowes Coaches Ltd,,,,,,,,,
Nottinghamshire County Council,1111/1001,Children and Young People,CYP,Support Services,HAA,18/08/2015,05-14841,2071,Lowes Coaches Ltd,,,,,,,,,
Nottinghamshire County Council,1111/1001,Children and Young People,CYP,Support Services,HAA,18/08/2015,05-14842,2317,Lowes Coaches Ltd,,,,,,,,,
Nottinghamshire County Council,1111/1001,Children and Young People,CYP,Support Services,HAA,18/08/2015,05-14843,2292,Lowes Coaches Ltd,,,,,,,,,
Nottinghamshire County Council,1111/1001,Children and Young People,CYP,Support Services,HAA,18/08/2015,05-14874,700,D G Private Hire Ltd,,,,,,,,,
Nottinghamshire County Council,1111/1001,Children and Young People,CYP,Support Services,HAA,18/08/2015,05-14880,714,D G Private Hire Ltd,,,,,,,,,
Nottinghamshire County Council,1111/1001,Children and Young People,CYP,Support Services,HAA,18/08/2015,05-14885,1264,Paul S Winson Coaches,,,,,,,,,
Nottinghamshire County Council,1111/1001,Children and Young People,CYP,Support Services,HAA,18/08/2015,05-14890,825,Broadsword Cars,,,,,,,,,
Nottinghamshire County Council,1111/1001,Children and Young People,CYP,Support Services,HAA,20/08/2015,05-14980,528,Eastwood Cars (UK) Ltd,,,,,,,,,
Nottinghamshire County Council,1111/1001,Children and Young People,CYP,Support Services,HAA,21/08/2015,05-15094,1723,Jb Tours Watnall Ltd,,,,,,,,,
Nottinghamshire County Council,1111/1001,Children and Young People,CYP,Support Services,HAA,21/08/2015,05-15095,2134.4,Jb Tours Watnall Ltd,,,,,,,,,
Nottinghamshire County Council,1111/1001,Children and Young People,CYP,Support Services,HAA,21/08/2015,05-15098,2051.5,Jb Tours Watnall Ltd,,,,,,,,,
Nottinghamshire County Council,1111/1001,Children and Young People,CYP,Support Services,HAA,27/08/2015,05-16008,1680,Travel Liner,,,,,,,,,
Nottinghamshire County Council,1111/1001,Adult Social Care and Health,ASCH,Premises Related,BAA,11/08/2015,05-14387,664.5,Sues Maintenance Services Ltd,,,,,,,,,
Nottinghamshire County Council,1111/1001,Adult Social Care and Health,ASCH,Premises Related,BAA,11/08/2015,05-14388,619.5,Pgs Joinery Services Ltd,,,,,,,,,
Nottinghamshire County Council,1111/1001,Adult Social Care and Health,ASCH,Premises Related,BAA,11/08/2015,05-14404,580.5,A1 Housing Bassetlaw Ltd,,,,,,,,,
Nottinghamshire County Council,1111/1001,Adult Social Care and Health,ASCH,Premises Related,BAA,11/08/2015,05-14405,515,Classique Fascias,,,,,,,,,
Nottinghamshire County Council,1111/1001,Adult Social Care and Health,ASCH,Premises Related,BAA,11/08/2015,05-14406,580,[Redacted],,,,,,,,,
Nottinghamshire County Council,1111/1001,Adult Social Care and Health,ASCH,Premises Related,BAA,13/08/2015,05-14575,598,Elf Property Care,,,,,,,,,
Nottinghamshire County Council,1111/1001,Adult Social Care and Health,ASCH,Premises Related,BAA,20/08/2015,05-14982,659.5,Key Construction,,,,,,,,,
Nottinghamshire County Council,1111/1001,Adult Social Care and Health,ASCH,Transport Related,CBA,05/08/2015,05-10402,3859.17,Vallances Coaches,,,,,,,,,
Nottinghamshire County Council,1111/1001,Adult Social Care and Health,ASCH,Transport Related,CBA,05/08/2015,05-10485,2036.71,Aj Travel,,,,,,,,,
Nottinghamshire County Council,1111/1001,Adult Social Care and Health,ASCH,Transport Related,CBA,07/08/2015,05-10765,2623.15,Ja Travel Ltd,,,,,,,,,
Nottinghamshire County Council,1111/1001,Adult Social Care and Health,ASCH,Transport Related,CBA,13/08/2015,05-14594,4922.36,Cotswold CVS Trading Ltd,,,,,,,,,
Nottinghamshire County Council,1111/1001,Adult Social Care and Health,ASCH,Transport Related,CBA,18/08/2015,05-14844,3733.13,Mct Uk Ltd,,,,,,,,,
Nottinghamshire County Council,1111/1001,Adult Social Care and Health,ASCH,Transport Related,CBA,18/08/2015,05-14845,3810.92,F & J Marriott T/A Unity Coaches,,,,,,,,,
Nottinghamshire County Council,1111/1001,Adult Social Care and Health,ASCH,Transport Related,CBA,18/08/2015,05-14847,3660.68,F & J Marriott T/A Unity Coaches,,,,,,,,,
Nottinghamshire County Council,1111/1001,Adult Social Care and Health,ASCH,Transport Related,CBA,18/08/2015,05-14868,3411.81,BN Gibson Ltd,,,,,,,,,
Nottinghamshire County Council,1111/1001,Adult Social Care and Health,ASCH,Transport Related,CCA,05/08/2015,05-10281,354.99,All Wayz Travel,,,,,,,,,
Nottinghamshire County Council,1111/1001,Adult Social Care and Health,ASCH,Transport Related,CCA,05/08/2015,05-10329,3401.7,Bridges Transport Services,,,,,,,,,
Nottinghamshire County Council,1111/1001,Adult Social Care and Health,ASCH,Transport Related,CCA,05/08/2015,05-10330,775.2,Bridges Transport Services,,,,,,,,,
Nottinghamshire County Council,1111/1001,Adult Social Care and Health,ASCH,Transport Related,CCA,05/08/2015,05-10338,743.36,Erewash Community Transport,,,,,,,,,
Nottinghamshire County Council,1111/1001,Adult Social Care and Health,ASCH,Transport Related,CCA,05/08/2015,05-10432,775.2,Abacus Cars,,,,,,,,,
Nottinghamshire County Council,1111/1001,Adult Social Care and Health,ASCH,Transport Related,CCA,05/08/2015,05-10482,1458,P & P Taxis,,,,,,,,,
Nottinghamshire County Council,1111/1001,Adult Social Care and Health,ASCH,Transport Related,CCA,07/08/2015,05-10738,635.76,Acorn Contracts,,,,,,,,,
Nottinghamshire County Council,1111/1001,Adult Social Care and Health,ASCH,Transport Related,CCA,07/08/2015,05-10743,222.37,Alpha Cars,,,,,,,,,
Nottinghamshire County Council,1111/1001,Adult Social Care and Health,ASCH,Transport Related,CCA,07/08/2015,05-10757,2437.74,Arrow Specialised Transport Ltd,,,,,,,,,
Nottinghamshire County Council,1111/1001,Adult Social Care and Health,ASCH,Transport Related,CCA,07/08/2015,05-10766,1436.58,Midfield Travel,,,,,,,,,
Nottinghamshire County Council,1111/1001,Adult Social Care and Health,ASCH,Transport Related,CCA,07/08/2015,05-10809,702.27,Town Cars (UK) Ltd,,,,,,,,,
Nottinghamshire County Council,1111/1001,Adult Social Care and Health,ASCH,Transport Related,CCA,18/08/2015,05-14868,477.87,BN Gibson Ltd,,,,,,,,,
Nottinghamshire County Council,1111/1001,Adult Social Care and Health,ASCH,Transport Related,CCA,18/08/2015,05-14878,535.04,D G Private Hire Ltd,,,,,,,,,
Nottinghamshire County Council,1111/1001,Adult Social Care and Health,ASCH,Transport Related,CCA,20/08/2015,05-14961,729.9,SJW (Muskham) Ltd T/A Z Cars,,,,,,,,,
Nottinghamshire County Council,1111/1001,Adult Social Care and Health,ASCH,Transport Related,CCA,21/08/2015,05-15054,660.1,SJW (Muskham) Ltd T/A Z Cars,,,,,,,,,
Nottinghamshire County Council,1111/1001,Adult Social Care and Health,ASCH,Transport Related,CCA,21/08/2015,05-15111,1270,AAA Cabs,,,,,,,,,
Nottinghamshire County Council,1111/1001,Adult Social Care and Health,ASCH,Transport Related,CDA,05/08/2015,05-10267,2875,Taxicover Uk Ltd,,,,,,,,,
Nottinghamshire County Council,1111/1001,Adult Social Care and Health,ASCH,Transport Related,CDA,05/08/2015,05-10301,1074.78,CBC Taxis Ltd,,,,,,,,,
Nottinghamshire County Council,1111/1001,Adult Social Care and Health,ASCH,Transport Related,CDA,05/08/2015,05-10302,610.56,CBC Taxis Ltd,,,,,,,,,
Nottinghamshire County Council,1111/1001,Adult Social Care and Health,ASCH,Transport Related,CDA,05/08/2015,05-10305,1224,Bridges Transport Services,,,,,,,,,
Nottinghamshire County Council,1111/1001,Adult Social Care and Health,ASCH,Transport Related,CDA,05/08/2015,05-10306,3701.85,Bridges Transport Services,,,,,,,,,
Nottinghamshire County Council,1111/1001,Adult Social Care and Health,ASCH,Transport Related,CDA,05/08/2015,05-10307,2287.12,Bridges Transport Services,,,,,,,,,
Nottinghamshire County Council,1111/1001,Adult Social Care and Health,ASCH,Transport Related,CDA,05/08/2015,05-10308,550.8,Bridges Transport Services,,,,,,,,,
Nottinghamshire County Council,1111/1001,Adult Social Care and Health,ASCH,Transport Related,CDA,05/08/2015,05-10309,867,Bridges Transport Services,,,,,,,,,
Nottinghamshire County Council,1111/1001,Adult Social Care and Health,ASCH,Transport Related,CDA,05/08/2015,05-10310,1407.6,Bridges Transport Services,,,,,,,,,
Nottinghamshire County Council,1111/1001,Adult Social Care and Health,ASCH,Transport Related,CDA,05/08/2015,05-10311,1285.2,Bridges Transport Services,,,,,,,,,
Nottinghamshire County Council,1111/1001,Adult Social Care and Health,ASCH,Transport Related,CDA,05/08/2015,05-10357,2757.24,Hawkins Taxis & Transport,,,,,,,,,
Nottinghamshire County Council,1111/1001,Adult Social Care and Health,ASCH,Transport Related,CDA,05/08/2015,05-10363,681.48,Shelleys Taxis Ltd,,,,,,,,,
Nottinghamshire County Council,1111/1001,Adult Social Care and Health,ASCH,Transport Related,CDA,05/08/2015,05-10367,960,Shelleys Taxis Ltd,,,,,,,,,
Nottinghamshire County Council,1111/1001,Adult Social Care and Health,ASCH,Transport Related,CDA,05/08/2015,05-10404,601.62,Aaeron Cars,,,,,,,,,
Nottinghamshire County Council,1111/1001,Adult Social Care and Health,ASCH,Transport Related,CDA,05/08/2015,05-10405,617.27,Aaeron Cars,,,,,,,,,
Nottinghamshire County Council,1111/1001,Adult Social Care and Health,ASCH,Transport Related,CDA,05/08/2015,05-10407,1097.47,BN Gibson Ltd,,,,,,,,,
Nottinghamshire County Council,1111/1001,Adult Social Care and Health,ASCH,Transport Related,CDA,05/08/2015,05-10416,3960,BN Gibson Ltd,,,,,,,,,
Nottinghamshire County Council,1111/1001,Adult Social Care and Health,ASCH,Transport Related,CDA,05/08/2015,05-10429,816,Abacus Cars,,,,,,,,,
Nottinghamshire County Council,1111/1001,Adult Social Care and Health,ASCH,Transport Related,CDA,05/08/2015,05-10430,632.7,Abacus Cars,,,,,,,,,
Nottinghamshire County Council,1111/1001,Adult Social Care and Health,ASCH,Transport Related,CDA,05/08/2015,05-10431,534.73,Abacus Cars,,,,,,,,,
Nottinghamshire County Council,1111/1001,Adult Social Care and Health,ASCH,Transport Related,CDA,05/08/2015,05-10433,540,Abacus Cars,,,,,,,,,
Nottinghamshire County Council,1111/1001,Adult Social Care and Health,ASCH,Transport Related,CDA,05/08/2015,05-10435,655.38,Abacus Cars,,,,,,,,,
Nottinghamshire County Council,1111/1001,Adult Social Care and Health,ASCH,Transport Related,CDA,05/08/2015,05-10437,599.76,Abacus Cars,,,,,,,,,
Nottinghamshire County Council,1111/1001,Adult Social Care and Health,ASCH,Transport Related,CDA,05/08/2015,05-10483,1081,P & P Taxis,,,,,,,,,
Nottinghamshire County Council,1111/1001,Adult Social Care and Health,ASCH,Transport Related,CDA,05/08/2015,05-10484,1242,P & P Taxis,,,,,,,,,
Nottinghamshire County Council,1111/1001,Adult Social Care and Health,ASCH,Transport Related,CDA,05/08/2015,05-10485,308.37,Aj Travel,,,,,,,,,
Nottinghamshire County Council,1111/1001,Adult Social Care and Health,ASCH,Transport Related,CDA,05/08/2015,05-10492,2863.5,Town Cars (UK) Ltd,,,,,,,,,
Nottinghamshire County Council,1111/1001,Adult Social Care and Health,ASCH,Transport Related,CDA,07/08/2015,05-10709,1887.38,F4Control Ltd (t/a First4care),,,,,,,,,
Nottinghamshire County Council,1111/1001,Adult Social Care and Health,ASCH,Transport Related,CDA,07/08/2015,05-10720,218.4,F4Control Ltd (t/a First4care),,,,,,,,,
Nottinghamshire County Council,1111/1001,Adult Social Care and Health,ASCH,Transport Related,CDA,07/08/2015,05-10722,734.7,F4Control Ltd (t/a First4care),,,,,,,,,
Nottinghamshire County Council,1111/1001,Adult Social Care and Health,ASCH,Transport Related,CDA,07/08/2015,05-10726,818.79,F4Control Ltd (t/a First4care),,,,,,,,,
Nottinghamshire County Council,1111/1001,Adult Social Care and Health,ASCH,Transport Related,CDA,07/08/2015,05-10736,784.76,CBC Taxis Ltd,,,,,,,,,
Nottinghamshire County Council,1111/1001,Adult Social Care and Health,ASCH,Transport Related,CDA,07/08/2015,05-10737,848.91,CBC Taxis Ltd,,,,,,,,,
Nottinghamshire County Council,1111/1001,Adult Social Care and Health,ASCH,Transport Related,CDA,07/08/2015,05-10740,576,Acorn Contracts,,,,,,,,,
Nottinghamshire County Council,1111/1001,Adult Social Care and Health,ASCH,Transport Related,CDA,07/08/2015,05-10742,847.56,Alpha Cars,,,,,,,,,
Nottinghamshire County Council,1111/1001,Adult Social Care and Health,ASCH,Transport Related,CDA,07/08/2015,05-10748,2668,Arrow Specialised Transport Ltd,,,,,,,,,
Nottinghamshire County Council,1111/1001,Adult Social Care and Health,ASCH,Transport Related,CDA,07/08/2015,05-10750,260.48,Arrow Specialised Transport Ltd,,,,,,,,,
Nottinghamshire County Council,1111/1001,Adult Social Care and Health,ASCH,Transport Related,CDA,07/08/2015,05-10752,493.24,Arrow Specialised Transport Ltd,,,,,,,,,
Nottinghamshire County Council,1111/1001,Adult Social Care and Health,ASCH,Transport Related,CDA,07/08/2015,05-10754,906.4,Arrow Specialised Transport Ltd,,,,,,,,,
Nottinghamshire County Council,1111/1001,Adult Social Care and Health,ASCH,Transport Related,CDA,07/08/2015,05-10756,3266,Arrow Specialised Transport Ltd,,,,,,,,,
Nottinghamshire County Council,1111/1001,Adult Social Care and Health,ASCH,Transport Related,CDA,07/08/2015,05-10757,1219.26,Arrow Specialised Transport Ltd,,,,,,,,,
Nottinghamshire County Council,1111/1001,Adult Social Care and Health,ASCH,Transport Related,CDA,07/08/2015,05-10766,1436.58,Midfield Travel,,,,,,,,,
Nottinghamshire County Council,1111/1001,Adult Social Care and Health,ASCH,Transport Related,CDA,07/08/2015,05-10771,544,Ng11 Cars,,,,,,,,,
Nottinghamshire County Council,1111/1001,Adult Social Care and Health,ASCH,Transport Related,CDA,07/08/2015,05-10780,1068.39,Abacus Cars,,,,,,,,,
Nottinghamshire County Council,1111/1001,Adult Social Care and Health,ASCH,Transport Related,CDA,07/08/2015,05-10781,2153.72,Abacus Cars,,,,,,,,,
Nottinghamshire County Council,1111/1001,Adult Social Care and Health,ASCH,Transport Related,CDA,07/08/2015,05-10782,962,Abacus Cars,,,,,,,,,
Nottinghamshire County Council,1111/1001,Adult Social Care and Health,ASCH,Transport Related,CDA,07/08/2015,05-10789,822.62,Abacus Cars,,,,,,,,,
Nottinghamshire County Council,1111/1001,Adult Social Care and Health,ASCH,Transport Related,CDA,07/08/2015,05-10808,1700.5,P & P Taxis,,,,,,,,,
Nottinghamshire County Council,1111/1001,Adult Social Care and Health,ASCH,Transport Related,CDA,07/08/2015,05-10810,1122,Town Cars (UK) Ltd,,,,,,,,,
Nottinghamshire County Council,1111/1001,Adult Social Care and Health,ASCH,Transport Related,CDA,07/08/2015,05-10812,2330,Ace Cars,,,,,,,,,
Nottinghamshire County Council,1111/1001,Adult Social Care and Health,ASCH,Transport Related,CDA,12/08/2015,05-14463,625.46,Ace Of Mansfield Ltd,,,,,,,,,
Nottinghamshire County Council,1111/1001,Adult Social Care and Health,ASCH,Transport Related,CDA,12/08/2015,05-14464,1080,Ace Of Mansfield Ltd,,,,,,,,,
Nottinghamshire County Council,1111/1001,Adult Social Care and Health,ASCH,Transport Related,CDA,12/08/2015,05-14467,1258.74,Carlton Cars Ltd T/A Trent Cars,,,,,,,,,
Nottinghamshire County Council,1111/1001,Adult Social Care and Health,ASCH,Transport Related,CDA,12/08/2015,05-14534,2048.4,Ace Cars,,,,,,,,,
Nottinghamshire County Council,1111/1001,Adult Social Care and Health,ASCH,Transport Related,CDA,12/08/2015,05-14536,1491,In Taxis,,,,,,,,,
Nottinghamshire County Council,1111/1001,Adult Social Care and Health,ASCH,Transport Related,CDA,13/08/2015,05-14592,972.29,Beechwood Taxis,,,,,,,,,
Nottinghamshire County Council,1111/1001,Adult Social Care and Health,ASCH,Transport Related,CDA,17/08/2015,05-14698,1466.52,F4Control Ltd (t/a First4care),,,,,,,,,
Nottinghamshire County Council,1111/1001,Adult Social Care and Health,ASCH,Transport Related,CDA,17/08/2015,05-14699,1155.44,F4Control Ltd (t/a First4care),,,,,,,,,
Nottinghamshire County Council,1111/1001,Adult Social Care and Health,ASCH,Transport Related,CDA,17/08/2015,05-14700,1466.52,F4Control Ltd (t/a First4care),,,,,,,,,
Nottinghamshire County Council,1111/1001,Adult Social Care and Health,ASCH,Transport Related,CDA,17/08/2015,05-14701,1155.44,F4Control Ltd (t/a First4care),,,,,,,,,
Nottinghamshire County Council,1111/1001,Adult Social Care and Health,ASCH,Transport Related,CDA,17/08/2015,05-14702,1399.86,F4Control Ltd (t/a First4care),,,,,,,,,
Nottinghamshire County Council,1111/1001,Adult Social Care and Health,ASCH,Transport Related,CDA,17/08/2015,05-14703,1155.44,F4Control Ltd (t/a First4care),,,,,,,,,
Nottinghamshire County Council,1111/1001,Adult Social Care and Health,ASCH,Transport Related,CDA,18/08/2015,05-14845,408.89,F & J Marriott T/A Unity Coaches,,,,,,,,,
Nottinghamshire County Council,1111/1001,Adult Social Care and Health,ASCH,Transport Related,CDA,18/08/2015,05-14848,798.16,BN Gibson Ltd,,,,,,,,,
Nottinghamshire County Council,1111/1001,Adult Social Care and Health,ASCH,Transport Related,CDA,18/08/2015,05-14868,438.92,BN Gibson Ltd,,,,,,,,,
Nottinghamshire County Council,1111/1001,Adult Social Care and Health,ASCH,Transport Related,CDA,18/08/2015,05-14875,560,D G Private Hire Ltd,,,,,,,,,
Nottinghamshire County Council,1111/1001,Adult Social Care and Health,ASCH,Transport Related,CDA,18/08/2015,05-14876,704,D G Private Hire Ltd,,,,,,,,,
Nottinghamshire County Council,1111/1001,Adult Social Care and Health,ASCH,Transport Related,CDA,18/08/2015,05-14881,807.62,Abacus Cars,,,,,,,,,
Nottinghamshire County Council,1111/1001,Adult Social Care and Health,ASCH,Transport Related,CDA,20/08/2015,05-14965,881.28,Arrow Specialised Transport Ltd,,,,,,,,,
Nottinghamshire County Council,1111/1001,Adult Social Care and Health,ASCH,Transport Related,CDA,20/08/2015,05-14969,1039.55,Arrow Specialised Transport Ltd,,,,,,,,,
Nottinghamshire County Council,1111/1001,Adult Social Care and Health,ASCH,Transport Related,CDA,20/08/2015,05-14975,4140,BN Gibson Ltd,,,,,,,,,
Nottinghamshire County Council,1111/1001,Adult Social Care and Health,ASCH,Transport Related,CDA,20/08/2015,05-14976,669.89,D G Private Hire Ltd,,,,,,,,,
Nottinghamshire County Council,1111/1001,Adult Social Care and Health,ASCH,Transport Related,CDA,20/08/2015,05-14978,501.84,D G Private Hire Ltd,,,,,,,,,
Nottinghamshire County Council,1111/1001,Adult Social Care and Health,ASCH,Transport Related,CDA,20/08/2015,05-14979,538.6,D G Private Hire Ltd,,,,,,,,,
Nottinghamshire County Council,1111/1001,Adult Social Care and Health,ASCH,Transport Related,CDA,21/08/2015,05-15043,639.86,Alert Cars Ltd,,,,,,,,,
Nottinghamshire County Council,1111/1001,Adult Social Care and Health,ASCH,Supplies & Services,DAA,07/08/2015,05-10703,468698.04,British Red Cross Society,,,,,,,,,
Nottinghamshire County Council,1111/1001,Adult Social Care and Health,ASCH,Supplies & Services,DAA,28/08/2015,05-14381,35527.32,British Red Cross Society,,,,,,,,,
Nottinghamshire County Council,1111/1001,Adult Social Care and Health,ASCH,Supplies & Services,DAA,28/08/2015,05-14421,415115.08,British Red Cross Society,,,,,,,,,
Nottinghamshire County Council,1111/1001,Adult Social Care and Health,ASCH,Supplies & Services,DBA,04/08/2015,05-10240,1277.68,Hallam Country Fresh Foods Ltd,,,,,,,,,
Nottinghamshire County Council,1111/1001,Adult Social Care and Health,ASCH,Supplies & Services,DBA,05/08/2015,05-10534,1582.63,Brake Bros Ltd,,,,,,,,,
Nottinghamshire County Council,1111/1001,Adult Social Care and Health,ASCH,Supplies & Services,DBA,05/08/2015,05-10537,789.83,Brake Bros Ltd,,,,,,,,,
Nottinghamshire County Council,1111/1001,Adult Social Care and Health,ASCH,Supplies & Services,DBA,06/08/2015,05-10621,4802.72,M Maloney Country Butchers & B Ltd,,,,,,,,,
Nottinghamshire County Council,1111/1001,Adult Social Care and Health,ASCH,Supplies & Services,DBA,06/08/2015,05-10625,3995.19,M Maloney Country Butchers & B Ltd,,,,,,,,,
Nottinghamshire County Council,1111/1001,Adult Social Care and Health,ASCH,Supplies & Services,DBA,06/08/2015,05-10630,3419.22,Brake Bros Ltd,,,,,,,,,
Nottinghamshire County Council,1111/1001,Adult Social Care and Health,ASCH,Supplies & Services,DBA,06/08/2015,05-10633,88.68,Brake Bros Ltd,,,,,,,,,
Nottinghamshire County Council,1111/1001,Adult Social Care and Health,ASCH,Supplies & Services,DBA,07/08/2015,05-10831,3875.16,M Maloney Country Butchers & B Ltd,,,,,,,,,
Nottinghamshire County Council,1111/1001,Adult Social Care and Health,ASCH,Supplies & Services,DBA,07/08/2015,05-10835,4358.79,M Maloney Country Butchers & B Ltd,,,,,,,,,
Nottinghamshire County Council,1111/1001,Adult Social Care and Health,ASCH,Supplies & Services,DBA,11/08/2015,05-14407,892.47,Hallam Country Fresh Foods Ltd,,,,,,,,,
Nottinghamshire County Council,1111/1001,Adult Social Care and Health,ASCH,Supplies & Services,DBA,17/08/2015,05-14691,101.51,Brake Bros Ltd,,,,,,,,,
Nottinghamshire County Council,1111/1001,Adult Social Care and Health,ASCH,Supplies & Services,DBA,17/08/2015,05-14694,1043.29,Brake Bros Ltd,,,,,,,,,
Nottinghamshire County Council,1111/1001,Adult Social Care and Health,ASCH,Supplies & Services,DBA,17/08/2015,05-14695,334.74,Brake Bros Ltd,,,,,,,,,
Nottinghamshire County Council,1111/1001,Adult Social Care and Health,ASCH,Supplies & Services,DBA,17/08/2015,05-14716,1286.68,Brake Bros Ltd,,,,,,,,,
Nottinghamshire County Council,1111/1001,Adult Social Care and Health,ASCH,Supplies & Services,DBA,17/08/2015,05-14719,2500.91,Brake Bros Ltd,,,,,,,,,
Nottinghamshire County Council,1111/1001,Adult Social Care and Health,ASCH,Supplies & Services,DBA,19/08/2015,05-14908,974.18,Hallam Country Fresh Foods Ltd,,,,,,,,,
Nottinghamshire County Council,1111/1001,Adult Social Care and Health,ASCH,Supplies & Services,DBA,26/08/2015,05-15509,747.59,Brake Bros Ltd,,,,,,,,,
Nottinghamshire County Council,1111/1001,Adult Social Care and Health,ASCH,Supplies & Services,DBA,26/08/2015,05-15512,2373.77,Brake Bros Ltd,,,,,,,,,
Nottinghamshire County Council,1111/1001,Adult Social Care and Health,ASCH,Supplies & Services,DBA,26/08/2015,05-15515,108.12,Brake Bros Ltd,,,,,,,,,
Nottinghamshire County Council,1111/1001,Adult Social Care and Health,ASCH,Supplies & Services,DBA,26/08/2015,05-15519,213.51,Brake Bros Ltd,,,,,,,,,
Nottinghamshire County Council,1111/1001,Adult Social Care and Health,ASCH,Supplies & Services,DBA,26/08/2015,05-15522,1952.73,Hallam Country Fresh Foods Ltd,,,,,,,,,
Nottinghamshire County Council,1111/1001,Adult Social Care and Health,ASCH,Supplies & Services,DBA,26/08/2015,05-15526,534.67,Brake Bros Ltd,,,,,,,,,
Nottinghamshire County Council,1111/1001,Adult Social Care and Health,ASCH,Supplies & Services,DBA,26/08/2015,05-15527,693.9,Brake Bros Ltd,,,,,,,,,
Nottinghamshire County Council,1111/1001,Adult Social Care and Health,ASCH,Supplies & Services,DBA,26/08/2015,05-15531,1085.19,Brake Bros Ltd,,,,,,,,,
Nottinghamshire County Council,1111/1001,Adult Social Care and Health,ASCH,Supplies & Services,DBA,26/08/2015,05-15533,1310.35,Brake Bros Ltd,,,,,,,,,
Nottinghamshire County Council,1111/1001,Adult Social Care and Health,ASCH,Supplies & Services,DEA,21/08/2015,05-15003,4140.93,APS Clearing,,,,,,,,,
Nottinghamshire County Council,1111/1001,Adult Social Care and Health,ASCH,Supplies & Services,DEA,27/08/2015,05-16002,4000.35,APS Clearing,,,,,,,,,
Nottinghamshire County Council,1111/1001,Adult Social Care and Health,ASCH,Supplies & Services,DEA,28/08/2015,05-14430,162.63,Security Plus Ltd,,,,,,,,,
Nottinghamshire County Council,1111/1001,Adult Social Care and Health,ASCH,Supplies & Services,DFA,06/08/2015,05-10620,654.1,Lantec Services Ltd,,,,,,,,,
Nottinghamshire County Council,1111/1001,Adult Social Care and Health,ASCH,Supplies & Services,DKA,07/08/2015,05-10703,68145.21,British Red Cross Society,,,,,,,,,
Nottinghamshire County Council,1111/1001,Adult Social Care and Health,ASCH,Supplies & Services,DKA,28/08/2015,05-14381,679,British Red Cross Society,,,,,,,,,
Nottinghamshire County Council,1111/1001,Adult Social Care and Health,ASCH,Supplies & Services,DKA,28/08/2015,05-14421,63574.15,British Red Cross Society,,,,,,,,,
Nottinghamshire County Council,1111/1001,Adult Social Care and Health,ASCH,Third Party Payments,EBA,13/08/2015,05-14599,9320,Aspirations Care (Midlands) Ltd,,,,,,,,,
Nottinghamshire County Council,1111/1001,Adult Social Care and Health,ASCH,Third Party Payments,EBA,13/08/2015,05-14600,1080,Reach Housing Gloria Miller,,,,,,,,,
Nottinghamshire County Council,1111/1001,Adult Social Care and Health,ASCH,Third Party Payments,EBA,13/08/2015,05-14601,5488,Metropolitan Housing Trust,,,,,,,,,
Nottinghamshire County Council,1111/1001,Adult Social Care and Health,ASCH,Third Party Payments,EBA,13/08/2015,05-14603,45315.56,Royal Society Mencap,,,,,,,,,
Nottinghamshire County Council,1111/1001,Adult Social Care and Health,ASCH,Third Party Payments,EBA,13/08/2015,05-14604,80764.2,Eden Supported Living Ltd,,,,,,,,,
Nottinghamshire County Council,1111/1001,Adult Social Care and Health,ASCH,Third Party Payments,EBA,13/08/2015,05-14605,2920,Care UK Learning Disabilities Servi,,,,,,,,,
Nottinghamshire County Council,1111/1001,Adult Social Care and Health,ASCH,Third Party Payments,EBA,13/08/2015,05-14606,2160,Oakdale Ozier Ltd,,,,,,,,,
Nottinghamshire County Council,1111/1001,Adult Social Care and Health,ASCH,Third Party Payments,EBA,13/08/2015,05-14607,245374.36,Framework Housing Association,,,,,,,,,
Nottinghamshire County Council,1111/1001,Adult Social Care and Health,ASCH,Third Party Payments,EBA,13/08/2015,05-14608,4638.18,Nottingham Community Housing,,,,,,,,,
Nottinghamshire County Council,1111/1001,Adult Social Care and Health,ASCH,Third Party Payments,EBA,13/08/2015,05-14609,5720,Fitzroy,,,,,,,,,
Nottinghamshire County Council,1111/1001,Adult Social Care and Health,ASCH,Third Party Payments,EBA,13/08/2015,05-14610,16087.92,Lifeways Community Care Ltd,,,,,,,,,
Nottinghamshire County Council,1111/1001,Adult Social Care and Health,ASCH,Third Party Payments,EBA,13/08/2015,05-14611,5720,Voyage Ltd,,,,,,,,,
Nottinghamshire County Council,1111/1001,Adult Social Care and Health,ASCH,Third Party Payments,EBA,13/08/2015,05-14612,23311.8,Thera East Midlands,,,,,,,,,
Nottinghamshire County Council,1111/1001,Adult Social Care and Health,ASCH,Third Party Payments,EBA,13/08/2015,05-14613,14160,Choice Support,,,,,,,,,
Nottinghamshire County Council,1111/1001,Adult Social Care and Health,ASCH,Third Party Payments,EBA,13/08/2015,05-14614,12040,United Response,,,,,,,,,
Nottinghamshire County Council,1111/1001,Adult Social Care and Health,ASCH,Third Party Payments,EBA,13/08/2015,05-14615,1840,Heritage Care,,,,,,,,,
Nottinghamshire County Council,1111/1001,Adult Social Care and Health,ASCH,Third Party Payments,EBA,13/08/2015,05-14616,2360,Real Life Options,,,,,,,,,
Nottinghamshire County Council,1111/1001,Adult Social Care and Health,ASCH,Third Party Payments,EBA,13/08/2015,05-14617,7802.52,NCHA Ltd,,,,,,,,,
Nottinghamshire County Council,1111/1001,Adult Social Care and Health,ASCH,Third Party Payments,ECA,04/08/2015,05-10172,112,Countrywide Care Homes Ltd T/A Clum,,,,,,,,,
Nottinghamshire County Council,1111/1001,Adult Social Care and Health,ASCH,Third Party Payments,ECA,04/08/2015,05-10176,416,Ashley House Nursing Home,,,,,,,,,
Nottinghamshire County Council,1111/1001,Adult Social Care and Health,ASCH,Third Party Payments,ECA,04/08/2015,05-10178,656,Gables Nursing Home,,,,,,,,,
Nottinghamshire County Council,1111/1001,Adult Social Care and Health,ASCH,Third Party Payments,ECA,04/08/2015,05-10180,112,Forest Hill Nursing Home,,,,,,,,,
Nottinghamshire County Council,1111/1001,Adult Social Care and Health,ASCH,Third Party Payments,ECA,04/08/2015,05-10185,224,Red Rose Nursing Home,,,,,,,,,
Nottinghamshire County Council,1111/1001,Adult Social Care and Health,ASCH,Third Party Payments,ECA,04/08/2015,05-10192,240,Elmbank Nursing Home,,,,,,,,,
Nottinghamshire County Council,1111/1001,Adult Social Care and Health,ASCH,Third Party Payments,ECA,04/08/2015,05-10195,192,Mansfield Manor Care Home,,,,,,,,,
Nottinghamshire County Council,1111/1001,Adult Social Care and Health,ASCH,Third Party Payments,ECA,04/08/2015,05-10197,192,Victoria Care Home,,,,,,,,,
Nottinghamshire County Council,1111/1001,Adult Social Care and Health,ASCH,Third Party Payments,ECA,04/08/2015,05-10208,224,Pathfinders Neurological Care Centr,,,,,,,,,
Nottinghamshire County Council,1111/1001,Adult Social Care and Health,ASCH,Third Party Payments,ECA,04/08/2015,05-10224,128,Highfields Care Home,,,,,,,,,
Nottinghamshire County Council,1111/1001,Adult Social Care and Health,ASCH,Third Party Payments,ECA,07/08/2015,05-16025,480000,NHS Newark & Sherwood CCG,,,,,,,,,
Nottinghamshire County Council,1111/1001,Adult Social Care and Health,ASCH,Third Party Payments,ECA,07/08/2015,05-16026,380000,NHS Nottingham North and East CCG,,,,,,,,,
Nottinghamshire County Council,1111/1001,Adult Social Care and Health,ASCH,Third Party Payments,ECA,07/08/2015,05-16027,234000,NHS Nottingham West CCG,,,,,,,,,
Nottinghamshire County Council,1111/1001,Adult Social Care and Health,ASCH,Third Party Payments,ECA,07/08/2015,05-16028,746000,Mansfield & Ashfield CCG,,,,,,,,,
Nottinghamshire County Council,1111/1001,Adult Social Care and Health,ASCH,Third Party Payments,ECA,07/08/2015,05-16029,286000,NHS Rushcliffe CCG,,,,,,,,,
Nottinghamshire County Council,1111/1001,Adult Social Care and Health,ASCH,Third Party Payments,ECA,07/08/2015,05-16030,378000,NHS Bassetlaw CCG,,,,,,,,,
Nottinghamshire County Council,1111/1001,Adult Social Care and Health,ASCH,Third Party Payments,ECA,10/08/2015,05-10908,896,Bramcote Hills Care Home,,,,,,,,,
Nottinghamshire County Council,1111/1001,Adult Social Care and Health,ASCH,Third Party Payments,ECA,10/08/2015,05-10910,896,Bramcote Hills Care Home,,,,,,,,,
Nottinghamshire County Council,1111/1001,Adult Social Care and Health,ASCH,Third Party Payments,ECA,10/08/2015,05-10911,896,Bramcote Hills Care Home,,,,,,,,,
Nottinghamshire County Council,1111/1001,Adult Social Care and Health,ASCH,Third Party Payments,ECA,10/08/2015,05-10912,896,Bramcote Hills Care Home,,,,,,,,,
Nottinghamshire County Council,1111/1001,Adult Social Care and Health,ASCH,Third Party Payments,ECA,10/08/2015,05-10916,896,Bramcote Hills Care Home,,,,,,,,,
Nottinghamshire County Council,1111/1001,Adult Social Care and Health,ASCH,Third Party Payments,ECA,10/08/2015,05-10919,896,Bramcote Hills Care Home,,,,,,,,,
Nottinghamshire County Council,1111/1001,Adult Social Care and Health,ASCH,Third Party Payments,ECA,10/08/2015,05-10921,624,Bramcote Hills Care Home,,,,,,,,,
Nottinghamshire County Council,1111/1001,Adult Social Care and Health,ASCH,Third Party Payments,ECA,10/08/2015,05-10937,448,The Grange Nursing Home,,,,,,,,,
Nottinghamshire County Council,1111/1001,Adult Social Care and Health,ASCH,Third Party Payments,ECA,10/08/2015,05-10940,448,The Grange Nursing Home,,,,,,,,,
Nottinghamshire County Council,1111/1001,Adult Social Care and Health,ASCH,Third Party Payments,ECA,10/08/2015,05-10942,2400,The Grange Nursing Home,,,,,,,,,
Nottinghamshire County Council,1111/1001,Adult Social Care and Health,ASCH,Third Party Payments,ECA,10/08/2015,05-10946,448,The Grange Nursing Home,,,,,,,,,
Nottinghamshire County Council,1111/1001,Adult Social Care and Health,ASCH,Third Party Payments,ECA,10/08/2015,05-10958,1440,Belvoir Vale,,,,,,,,,
Nottinghamshire County Council,1111/1001,Adult Social Care and Health,ASCH,Third Party Payments,ECA,10/08/2015,05-10964,448,Belle Vue,,,,,,,,,
Nottinghamshire County Council,1111/1001,Adult Social Care and Health,ASCH,Third Party Payments,ECA,10/08/2015,05-10966,448,Belle Vue,,,,,,,,,
Nottinghamshire County Council,1111/1001,Adult Social Care and Health,ASCH,Third Party Payments,ECA,10/08/2015,05-10969,448,Belle Vue,,,,,,,,,
Nottinghamshire County Council,1111/1001,Adult Social Care and Health,ASCH,Third Party Payments,ECA,10/08/2015,05-10974,448,Belle Vue,,,,,,,,,
Nottinghamshire County Council,1111/1001,Adult Social Care and Health,ASCH,Third Party Payments,ECA,10/08/2015,05-10977,448,Belle Vue,,,,,,,,,
Nottinghamshire County Council,1111/1001,Adult Social Care and Health,ASCH,Third Party Payments,ECA,10/08/2015,05-10980,448,Ashcroft,,,,,,,,,
Nottinghamshire County Council,1111/1001,Adult Social Care and Health,ASCH,Third Party Payments,ECA,10/08/2015,05-10982,448,Ashcroft,,,,,,,,,
Nottinghamshire County Council,1111/1001,Adult Social Care and Health,ASCH,Third Party Payments,ECA,10/08/2015,05-10984,448,Ashcroft,,,,,,,,,
Nottinghamshire County Council,1111/1001,Adult Social Care and Health,ASCH,Third Party Payments,ECA,10/08/2015,05-10987,448,Ashcroft,,,,,,,,,
Nottinghamshire County Council,1111/1001,Adult Social Care and Health,ASCH,Third Party Payments,ECA,10/08/2015,05-10990,448,Ashcroft,,,,,,,,,
Nottinghamshire County Council,1111/1001,Adult Social Care and Health,ASCH,Third Party Payments,ECA,10/08/2015,05-10997,448,Ashcroft,,,,,,,,,
Nottinghamshire County Council,1111/1001,Adult Social Care and Health,ASCH,Third Party Payments,ECA,10/08/2015,05-10999,448,Ashcroft,,,,,,,,,
Nottinghamshire County Council,1111/1001,Adult Social Care and Health,ASCH,Third Party Payments,ECA,10/08/2015,05-11004,448,Ashcroft,,,,,,,,,
Nottinghamshire County Council,1111/1001,Adult Social Care and Health,ASCH,Third Party Payments,ECA,10/08/2015,05-11009,448,Ashcroft,,,,,,,,,
Nottinghamshire County Council,1111/1001,Adult Social Care and Health,ASCH,Third Party Payments,ECA,10/08/2015,05-11011,448,Ashcroft,,,,,,,,,
Nottinghamshire County Council,1111/1001,Adult Social Care and Health,ASCH,Third Party Payments,ECA,10/08/2015,05-11014,448,Ashcroft,,,,,,,,,
Nottinghamshire County Council,1111/1001,Adult Social Care and Health,ASCH,Third Party Payments,ECA,10/08/2015,05-11016,448,Ashcroft,,,,,,,,,
Nottinghamshire County Council,1111/1001,Adult Social Care and Health,ASCH,Third Party Payments,ECA,10/08/2015,05-11018,448,Ashcroft,,,,,,,,,
Nottinghamshire County Council,1111/1001,Adult Social Care and Health,ASCH,Third Party Payments,ECA,10/08/2015,05-11020,448,Ashcroft,,,,,,,,,
Nottinghamshire County Council,1111/1001,Adult Social Care and Health,ASCH,Third Party Payments,ECA,10/08/2015,05-11037,448,Beauvale Nursing Home,,,,,,,,,
Nottinghamshire County Council,1111/1001,Adult Social Care and Health,ASCH,Third Party Payments,ECA,10/08/2015,05-11039,448,Beauvale Nursing Home,,,,,,,,,
Nottinghamshire County Council,1111/1001,Adult Social Care and Health,ASCH,Third Party Payments,ECA,10/08/2015,05-11041,448,Beauvale Nursing Home,,,,,,,,,
Nottinghamshire County Council,1111/1001,Adult Social Care and Health,ASCH,Third Party Payments,ECA,10/08/2015,05-11045,448,Beauvale Nursing Home,,,,,,,,,
Nottinghamshire County Council,1111/1001,Adult Social Care and Health,ASCH,Third Party Payments,ECA,10/08/2015,05-11047,448,Beauvale Nursing Home,,,,,,,,,
Nottinghamshire County Council,1111/1001,Adult Social Care and Health,ASCH,Third Party Payments,ECA,10/08/2015,05-11049,448,Beauvale Nursing Home,,,,,,,,,
Nottinghamshire County Council,1111/1001,Adult Social Care and Health,ASCH,Third Party Payments,ECA,10/08/2015,05-11052,448,Beauvale Nursing Home,,,,,,,,,
Nottinghamshire County Council,1111/1001,Adult Social Care and Health,ASCH,Third Party Payments,ECA,10/08/2015,05-11056,448,Beauvale Nursing Home,,,,,,,,,
Nottinghamshire County Council,1111/1001,Adult Social Care and Health,ASCH,Third Party Payments,ECA,10/08/2015,05-11058,448,Beauvale Nursing Home,,,,,,,,,
Nottinghamshire County Council,1111/1001,Adult Social Care and Health,ASCH,Third Party Payments,ECA,10/08/2015,05-11070,448,Avalon Nursing Home,,,,,,,,,
Nottinghamshire County Council,1111/1001,Adult Social Care and Health,ASCH,Third Party Payments,ECA,10/08/2015,05-11076,448,Avalon Nursing Home,,,,,,,,,
Nottinghamshire County Council,1111/1001,Adult Social Care and Health,ASCH,Third Party Payments,ECA,10/08/2015,05-11078,448,Avalon Nursing Home,,,,,,,,,
Nottinghamshire County Council,1111/1001,Adult Social Care and Health,ASCH,Third Party Payments,ECA,10/08/2015,05-11080,448,Avalon Nursing Home,,,,,,,,,
Nottinghamshire County Council,1111/1001,Adult Social Care and Health,ASCH,Third Party Payments,ECA,10/08/2015,05-11084,448,Avalon Nursing Home,,,,,,,,,
Nottinghamshire County Council,1111/1001,Adult Social Care and Health,ASCH,Third Party Payments,ECA,10/08/2015,05-11089,448,Avalon Nursing Home,,,,,,,,,
Nottinghamshire County Council,1111/1001,Adult Social Care and Health,ASCH,Third Party Payments,ECA,10/08/2015,05-11091,448,Avalon Nursing Home,,,,,,,,,
Nottinghamshire County Council,1111/1001,Adult Social Care and Health,ASCH,Third Party Payments,ECA,10/08/2015,05-11094,448,Avalon Nursing Home,,,,,,,,,
Nottinghamshire County Council,1111/1001,Adult Social Care and Health,ASCH,Third Party Payments,ECA,10/08/2015,05-11096,448,Avalon Nursing Home,,,,,,,,,
Nottinghamshire County Council,1111/1001,Adult Social Care and Health,ASCH,Third Party Payments,ECA,10/08/2015,05-11100,448,Silverwood Care Home,,,,,,,,,
Nottinghamshire County Council,1111/1001,Adult Social Care and Health,ASCH,Third Party Payments,ECA,10/08/2015,05-11103,448,Silverwood Care Home,,,,,,,,,
Nottinghamshire County Council,1111/1001,Adult Social Care and Health,ASCH,Third Party Payments,ECA,10/08/2015,05-11106,448,Silverwood Care Home,,,,,,,,,
Nottinghamshire County Council,1111/1001,Adult Social Care and Health,ASCH,Third Party Payments,ECA,10/08/2015,05-11109,448,Silverwood Care Home,,,,,,,,,
Nottinghamshire County Council,1111/1001,Adult Social Care and Health,ASCH,Third Party Payments,ECA,10/08/2015,05-11111,448,Silverwood Care Home,,,,,,,,,
Nottinghamshire County Council,1111/1001,Adult Social Care and Health,ASCH,Third Party Payments,ECA,10/08/2015,05-11113,2192,Silverwood Care Home,,,,,,,,,
Nottinghamshire County Council,1111/1001,Adult Social Care and Health,ASCH,Third Party Payments,ECA,10/08/2015,05-11115,448,Silverwood Care Home,,,,,,,,,
Nottinghamshire County Council,1111/1001,Adult Social Care and Health,ASCH,Third Party Payments,ECA,10/08/2015,05-11118,448,Silverwood Care Home,,,,,,,,,
Nottinghamshire County Council,1111/1001,Adult Social Care and Health,ASCH,Third Party Payments,ECA,10/08/2015,05-11121,448,Silverwood Care Home,,,,,,,,,
Nottinghamshire County Council,1111/1001,Adult Social Care and Health,ASCH,Third Party Payments,ECA,10/08/2015,05-11123,448,Silverwood Care Home,,,,,,,,,
Nottinghamshire County Council,1111/1001,Adult Social Care and Health,ASCH,Third Party Payments,ECA,10/08/2015,05-11125,448,Silverwood Care Home,,,,,,,,,
Nottinghamshire County Council,1111/1001,Adult Social Care and Health,ASCH,Third Party Payments,ECA,10/08/2015,05-11128,448,Silverwood Care Home,,,,,,,,,
Nottinghamshire County Council,1111/1001,Adult Social Care and Health,ASCH,Third Party Payments,ECA,10/08/2015,05-11130,448,Silverwood Care Home,,,,,,,,,
Nottinghamshire County Council,1111/1001,Adult Social Care and Health,ASCH,Third Party Payments,ECA,10/08/2015,05-11134,1312,Silverwood Care Home,,,,,,,,,
Nottinghamshire County Council,1111/1001,Adult Social Care and Health,ASCH,Third Party Payments,ECA,10/08/2015,05-11137,448,Silverwood Care Home,,,,,,,,,
Nottinghamshire County Council,1111/1001,Adult Social Care and Health,ASCH,Third Party Payments,ECA,10/08/2015,05-11141,448,Silverwood Care Home,,,,,,,,,
Nottinghamshire County Council,1111/1001,Adult Social Care and Health,ASCH,Third Party Payments,ECA,10/08/2015,05-11147,1184,Spring Water Lodge,,,,,,,,,
Nottinghamshire County Council,1111/1001,Adult Social Care and Health,ASCH,Third Party Payments,ECA,10/08/2015,05-11151,448,Spring Water Lodge,,,,,,,,,
Nottinghamshire County Council,1111/1001,Adult Social Care and Health,ASCH,Third Party Payments,ECA,10/08/2015,05-11160,448,Spring Water Lodge,,,,,,,,,
Nottinghamshire County Council,1111/1001,Adult Social Care and Health,ASCH,Third Party Payments,ECA,10/08/2015,05-11195,448,Oaks Care Centre,,,,,,,,,
Nottinghamshire County Council,1111/1001,Adult Social Care and Health,ASCH,Third Party Payments,ECA,10/08/2015,05-11199,448,Oaks Care Centre,,,,,,,,,
Nottinghamshire County Council,1111/1001,Adult Social Care and Health,ASCH,Third Party Payments,ECA,10/08/2015,05-11201,448,Oaks Care Centre,,,,,,,,,
Nottinghamshire County Council,1111/1001,Adult Social Care and Health,ASCH,Third Party Payments,ECA,10/08/2015,05-11203,448,Oaks Care Centre,,,,,,,,,
Nottinghamshire County Council,1111/1001,Adult Social Care and Health,ASCH,Third Party Payments,ECA,10/08/2015,05-11205,448,Oaks Care Centre,,,,,,,,,
Nottinghamshire County Council,1111/1001,Adult Social Care and Health,ASCH,Third Party Payments,ECA,10/08/2015,05-11207,448,Oaks Care Centre,,,,,,,,,
Nottinghamshire County Council,1111/1001,Adult Social Care and Health,ASCH,Third Party Payments,ECA,10/08/2015,05-11213,448,Oaks Care Centre,,,,,,,,,
Nottinghamshire County Council,1111/1001,Adult Social Care and Health,ASCH,Third Party Payments,ECA,10/08/2015,05-11217,672,Oaks Care Centre,,,,,,,,,
Nottinghamshire County Council,1111/1001,Adult Social Care and Health,ASCH,Third Party Payments,ECA,10/08/2015,05-11223,448,Oaks Care Centre,,,,,,,,,
Nottinghamshire County Council,1111/1001,Adult Social Care and Health,ASCH,Third Party Payments,ECA,10/08/2015,05-11225,448,Oaks Care Centre,,,,,,,,,
Nottinghamshire County Council,1111/1001,Adult Social Care and Health,ASCH,Third Party Payments,ECA,10/08/2015,05-11227,448,Oaks Care Centre,,,,,,,,,
Nottinghamshire County Council,1111/1001,Adult Social Care and Health,ASCH,Third Party Payments,ECA,10/08/2015,05-11230,448,Oaks Care Centre,,,,,,,,,
Nottinghamshire County Council,1111/1001,Adult Social Care and Health,ASCH,Third Party Payments,ECA,10/08/2015,05-11248,448,Charnwood House,,,,,,,,,
Nottinghamshire County Council,1111/1001,Adult Social Care and Health,ASCH,Third Party Payments,ECA,10/08/2015,05-11252,656,Charnwood House,,,,,,,,,
Nottinghamshire County Council,1111/1001,Adult Social Care and Health,ASCH,Third Party Payments,ECA,10/08/2015,05-11254,448,Charnwood House,,,,,,,,,
Nottinghamshire County Council,1111/1001,Adult Social Care and Health,ASCH,Third Party Payments,ECA,10/08/2015,05-11257,448,Charnwood House,,,,,,,,,
Nottinghamshire County Council,1111/1001,Adult Social Care and Health,ASCH,Third Party Payments,ECA,10/08/2015,05-11261,448,Charnwood House,,,,,,,,,
Nottinghamshire County Council,1111/1001,Adult Social Care and Health,ASCH,Third Party Payments,ECA,10/08/2015,05-11263,448,Charnwood House,,,,,,,,,
Nottinghamshire County Council,1111/1001,Adult Social Care and Health,ASCH,Third Party Payments,ECA,10/08/2015,05-11269,448,Four Seasons (Evedale) Ltd Re Charn,,,,,,,,,
Nottinghamshire County Council,1111/1001,Adult Social Care and Health,ASCH,Third Party Payments,ECA,10/08/2015,05-11271,448,Four Seasons (Evedale) Ltd Re Charn,,,,,,,,,
Nottinghamshire County Council,1111/1001,Adult Social Care and Health,ASCH,Third Party Payments,ECA,10/08/2015,05-11273,448,Four Seasons (Evedale) Ltd Re Charn,,,,,,,,,
Nottinghamshire County Council,1111/1001,Adult Social Care and Health,ASCH,Third Party Payments,ECA,10/08/2015,05-11275,448,Four Seasons (Evedale) Ltd Re Charn,,,,,,,,,
Nottinghamshire County Council,1111/1001,Adult Social Care and Health,ASCH,Third Party Payments,ECA,10/08/2015,05-11278,448,Four Seasons (Evedale) Ltd Re Sycam,,,,,,,,,
Nottinghamshire County Council,1111/1001,Adult Social Care and Health,ASCH,Third Party Payments,ECA,10/08/2015,05-11281,448,Four Seasons (Evedale) Ltd Re Sycam,,,,,,,,,
Nottinghamshire County Council,1111/1001,Adult Social Care and Health,ASCH,Third Party Payments,ECA,10/08/2015,05-11283,448,Four Seasons (Evedale) Ltd Re Sycam,,,,,,,,,
Nottinghamshire County Council,1111/1001,Adult Social Care and Health,ASCH,Third Party Payments,ECA,10/08/2015,05-11286,448,Four Seasons (Evedale) Ltd Re Sycam,,,,,,,,,
Nottinghamshire County Council,1111/1001,Adult Social Care and Health,ASCH,Third Party Payments,ECA,10/08/2015,05-11288,448,Four Seasons (Evedale) Ltd Re Sycam,,,,,,,,,
Nottinghamshire County Council,1111/1001,Adult Social Care and Health,ASCH,Third Party Payments,ECA,10/08/2015,05-11294,448,Four Seasons (Evedale) Ltd Re Sycam,,,,,,,,,
Nottinghamshire County Council,1111/1001,Adult Social Care and Health,ASCH,Third Party Payments,ECA,10/08/2015,05-11299,448,Four Seasons (Evedale) Ltd Re Sycam,,,,,,,,,
Nottinghamshire County Council,1111/1001,Adult Social Care and Health,ASCH,Third Party Payments,ECA,10/08/2015,05-11302,448,Four Seasons (Evedale) Ltd Re Sycam,,,,,,,,,
Nottinghamshire County Council,1111/1001,Adult Social Care and Health,ASCH,Third Party Payments,ECA,10/08/2015,05-11310,448,Howson Care Centre,,,,,,,,,
Nottinghamshire County Council,1111/1001,Adult Social Care and Health,ASCH,Third Party Payments,ECA,10/08/2015,05-11312,448,Howson Care Centre,,,,,,,,,
Nottinghamshire County Council,1111/1001,Adult Social Care and Health,ASCH,Third Party Payments,ECA,10/08/2015,05-11314,616.56,Howson Care Centre,,,,,,,,,
Nottinghamshire County Council,1111/1001,Adult Social Care and Health,ASCH,Third Party Payments,ECA,10/08/2015,05-11317,616.56,Howson Care Centre,,,,,,,,,
Nottinghamshire County Council,1111/1001,Adult Social Care and Health,ASCH,Third Party Payments,ECA,10/08/2015,05-11319,448,Howson Care Centre,,,,,,,,,
Nottinghamshire County Council,1111/1001,Adult Social Care and Health,ASCH,Third Party Payments,ECA,10/08/2015,05-11321,448,Howson Care Centre,,,,,,,,,
Nottinghamshire County Council,1111/1001,Adult Social Care and Health,ASCH,Third Party Payments,ECA,10/08/2015,05-11323,448,Churchfield Drive Care Home,,,,,,,,,
Nottinghamshire County Council,1111/1001,Adult Social Care and Health,ASCH,Third Party Payments,ECA,10/08/2015,05-11325,448,Churchfield Drive Care Home,,,,,,,,,
Nottinghamshire County Council,1111/1001,Adult Social Care and Health,ASCH,Third Party Payments,ECA,10/08/2015,05-11327,448,Churchfield Drive Care Home,,,,,,,,,
Nottinghamshire County Council,1111/1001,Adult Social Care and Health,ASCH,Third Party Payments,ECA,10/08/2015,05-11332,448,Churchfield Drive Care Home,,,,,,,,,
Nottinghamshire County Council,1111/1001,Adult Social Care and Health,ASCH,Third Party Payments,ECA,10/08/2015,05-11336,448,Churchfield Drive Care Home,,,,,,,,,
Nottinghamshire County Council,1111/1001,Adult Social Care and Health,ASCH,Third Party Payments,ECA,10/08/2015,05-11338,336,Churchfield Drive Care Home,,,,,,,,,
Nottinghamshire County Council,1111/1001,Adult Social Care and Health,ASCH,Third Party Payments,ECA,10/08/2015,05-11342,448,Churchfield Drive Care Home,,,,,,,,,
Nottinghamshire County Council,1111/1001,Adult Social Care and Health,ASCH,Third Party Payments,ECA,10/08/2015,05-11364,448,Churchfield Nursing Home,,,,,,,,,
Nottinghamshire County Council,1111/1001,Adult Social Care and Health,ASCH,Third Party Payments,ECA,10/08/2015,05-11366,448,Churchfield Nursing Home,,,,,,,,,
Nottinghamshire County Council,1111/1001,Adult Social Care and Health,ASCH,Third Party Payments,ECA,10/08/2015,05-11368,448,Churchfield Nursing Home,,,,,,,,,
Nottinghamshire County Council,1111/1001,Adult Social Care and Health,ASCH,Third Party Payments,ECA,10/08/2015,05-11370,448,Churchfield Nursing Home,,,,,,,,,
Nottinghamshire County Council,1111/1001,Adult Social Care and Health,ASCH,Third Party Payments,ECA,10/08/2015,05-11373,448,Eastlands Care Home,,,,,,,,,
Nottinghamshire County Council,1111/1001,Adult Social Care and Health,ASCH,Third Party Payments,ECA,10/08/2015,05-11407,448,Blackwell Care Centre,,,,,,,,,
Nottinghamshire County Council,1111/1001,Adult Social Care and Health,ASCH,Third Party Payments,ECA,10/08/2015,05-11414,448,Stoneyford Christian Nursing Home,,,,,,,,,
Nottinghamshire County Council,1111/1001,Adult Social Care and Health,ASCH,Third Party Payments,ECA,10/08/2015,05-11416,448,Stoneyford Christian Nursing Home,,,,,,,,,
Nottinghamshire County Council,1111/1001,Adult Social Care and Health,ASCH,Third Party Payments,ECA,10/08/2015,05-11420,448,Stoneyford Christian Nursing Home,,,,,,,,,
Nottinghamshire County Council,1111/1001,Adult Social Care and Health,ASCH,Third Party Payments,ECA,10/08/2015,05-11423,448,Stoneyford Christian Nursing Home,,,,,,,,,
Nottinghamshire County Council,1111/1001,Adult Social Care and Health,ASCH,Third Party Payments,ECA,10/08/2015,05-11428,448,Stoneyford Christian Nursing Home,,,,,,,,,
Nottinghamshire County Council,1111/1001,Adult Social Care and Health,ASCH,Third Party Payments,ECA,10/08/2015,05-11430,448,Stoneyford Christian Nursing Home,,,,,,,,,
Nottinghamshire County Council,1111/1001,Adult Social Care and Health,ASCH,Third Party Payments,ECA,10/08/2015,05-11432,896,Stoneyford Christian Nursing Home,,,,,,,,,
Nottinghamshire County Council,1111/1001,Adult Social Care and Health,ASCH,Third Party Payments,ECA,10/08/2015,05-11434,448,Stoneyford Christian Nursing Home,,,,,,,,,
Nottinghamshire County Council,1111/1001,Adult Social Care and Health,ASCH,Third Party Payments,ECA,10/08/2015,05-11441,448,Stoneyford Christian Nursing Home,,,,,,,,,
Nottinghamshire County Council,1111/1001,Adult Social Care and Health,ASCH,Third Party Payments,ECA,10/08/2015,05-11443,608,Stoneyford Christian Nursing Home,,,,,,,,,
Nottinghamshire County Council,1111/1001,Adult Social Care and Health,ASCH,Third Party Payments,ECA,10/08/2015,05-11447,448,Stoneyford Christian Nursing Home,,,,,,,,,
Nottinghamshire County Council,1111/1001,Adult Social Care and Health,ASCH,Third Party Payments,ECA,10/08/2015,05-11453,448,Beeches Nursing Home,,,,,,,,,
Nottinghamshire County Council,1111/1001,Adult Social Care and Health,ASCH,Third Party Payments,ECA,10/08/2015,05-11456,448,Beeches Nursing Home,,,,,,,,,
Nottinghamshire County Council,1111/1001,Adult Social Care and Health,ASCH,Third Party Payments,ECA,10/08/2015,05-11459,448,Beeches Nursing Home,,,,,,,,,
Nottinghamshire County Council,1111/1001,Adult Social Care and Health,ASCH,Third Party Payments,ECA,10/08/2015,05-11465,448,Beeches Nursing Home,,,,,,,,,
Nottinghamshire County Council,1111/1001,Adult Social Care and Health,ASCH,Third Party Payments,ECA,10/08/2015,05-11468,448,Beeches Nursing Home,,,,,,,,,
Nottinghamshire County Council,1111/1001,Adult Social Care and Health,ASCH,Third Party Payments,ECA,10/08/2015,05-11470,448,Beeches Nursing Home,,,,,,,,,
Nottinghamshire County Council,1111/1001,Adult Social Care and Health,ASCH,Third Party Payments,ECA,10/08/2015,05-11474,448,Berry Hill Park,,,,,,,,,
Nottinghamshire County Council,1111/1001,Adult Social Care and Health,ASCH,Third Party Payments,ECA,10/08/2015,05-11477,448,Berry Hill Park,,,,,,,,,
Nottinghamshire County Council,1111/1001,Adult Social Care and Health,ASCH,Third Party Payments,ECA,10/08/2015,05-11479,448,Berry Hill Park,,,,,,,,,
Nottinghamshire County Council,1111/1001,Adult Social Care and Health,ASCH,Third Party Payments,ECA,10/08/2015,05-11481,448,Berry Hill Park,,,,,,,,,
Nottinghamshire County Council,1111/1001,Adult Social Care and Health,ASCH,Third Party Payments,ECA,10/08/2015,05-11483,448,Berry Hill Park,,,,,,,,,
Nottinghamshire County Council,1111/1001,Adult Social Care and Health,ASCH,Third Party Payments,ECA,10/08/2015,05-11486,448,Berry Hill Park,,,,,,,,,
Nottinghamshire County Council,1111/1001,Adult Social Care and Health,ASCH,Third Party Payments,ECA,10/08/2015,05-11488,448,Berry Hill Park,,,,,,,,,
Nottinghamshire County Council,1111/1001,Adult Social Care and Health,ASCH,Third Party Payments,ECA,10/08/2015,05-11491,448,Berry Hill Park,,,,,,,,,
Nottinghamshire County Council,1111/1001,Adult Social Care and Health,ASCH,Third Party Payments,ECA,10/08/2015,05-11494,448,Berry Hill Park,,,,,,,,,
Nottinghamshire County Council,1111/1001,Adult Social Care and Health,ASCH,Third Party Payments,ECA,10/08/2015,05-11496,448,Berry Hill Park,,,,,,,,,
Nottinghamshire County Council,1111/1001,Adult Social Care and Health,ASCH,Third Party Payments,ECA,10/08/2015,05-11498,448,Berry Hill Park,,,,,,,,,
Nottinghamshire County Council,1111/1001,Adult Social Care and Health,ASCH,Third Party Payments,ECA,10/08/2015,05-11501,624,Berry Hill Park,,,,,,,,,
Nottinghamshire County Council,1111/1001,Adult Social Care and Health,ASCH,Third Party Payments,ECA,10/08/2015,05-11504,448,Berry Hill Park,,,,,,,,,
Nottinghamshire County Council,1111/1001,Adult Social Care and Health,ASCH,Third Party Payments,ECA,10/08/2015,05-11506,448,Berry Hill Park,,,,,,,,,
Nottinghamshire County Council,1111/1001,Adult Social Care and Health,ASCH,Third Party Payments,ECA,10/08/2015,05-11528,448,Countrywide Care Homes Ltd T/A Clum,,,,,,,,,
Nottinghamshire County Council,1111/1001,Adult Social Care and Health,ASCH,Third Party Payments,ECA,10/08/2015,05-11530,448,Countrywide Care Homes Ltd T/A Clum,,,,,,,,,
Nottinghamshire County Council,1111/1001,Adult Social Care and Health,ASCH,Third Party Payments,ECA,10/08/2015,05-11532,448,Countrywide Care Homes Ltd T/A Clum,,,,,,,,,
Nottinghamshire County Council,1111/1001,Adult Social Care and Health,ASCH,Third Party Payments,ECA,10/08/2015,05-11534,752,Countrywide Care Homes Ltd T/A Clum,,,,,,,,,
Nottinghamshire County Council,1111/1001,Adult Social Care and Health,ASCH,Third Party Payments,ECA,10/08/2015,05-11536,448,Countrywide Care Homes Ltd T/A Clum,,,,,,,,,
Nottinghamshire County Council,1111/1001,Adult Social Care and Health,ASCH,Third Party Payments,ECA,10/08/2015,05-11538,448,Countrywide Care Homes Ltd T/A Clum,,,,,,,,,
Nottinghamshire County Council,1111/1001,Adult Social Care and Health,ASCH,Third Party Payments,ECA,10/08/2015,05-11542,448,Countrywide Care Homes Ltd T/A Clum,,,,,,,,,
Nottinghamshire County Council,1111/1001,Adult Social Care and Health,ASCH,Third Party Payments,ECA,10/08/2015,05-11546,448,Countrywide Care Homes Ltd T/A Clum,,,,,,,,,
Nottinghamshire County Council,1111/1001,Adult Social Care and Health,ASCH,Third Party Payments,ECA,10/08/2015,05-11548,616.56,Countrywide Care Homes Ltd T/A Clum,,,,,,,,,
Nottinghamshire County Council,1111/1001,Adult Social Care and Health,ASCH,Third Party Payments,ECA,10/08/2015,05-11549,448,Countrywide Care Homes Ltd T/A Clum,,,,,,,,,
Nottinghamshire County Council,1111/1001,Adult Social Care and Health,ASCH,Third Party Payments,ECA,10/08/2015,05-11551,616.56,Countrywide Care Homes Ltd T/A Clum,,,,,,,,,
Nottinghamshire County Council,1111/1001,Adult Social Care and Health,ASCH,Third Party Payments,ECA,10/08/2015,05-11553,448,Countrywide Care Homes Ltd T/A Clum,,,,,,,,,
Nottinghamshire County Council,1111/1001,Adult Social Care and Health,ASCH,Third Party Payments,ECA,10/08/2015,05-11555,448,Countrywide Care Homes Ltd T/A Clum,,,,,,,,,
Nottinghamshire County Council,1111/1001,Adult Social Care and Health,ASCH,Third Party Payments,ECA,10/08/2015,05-11557,448,Countrywide Care Homes Ltd T/A Clum,,,,,,,,,
Nottinghamshire County Council,1111/1001,Adult Social Care and Health,ASCH,Third Party Payments,ECA,10/08/2015,05-11560,448,Countrywide Care Homes Ltd T/A Clum,,,,,,,,,
Nottinghamshire County Council,1111/1001,Adult Social Care and Health,ASCH,Third Party Payments,ECA,10/08/2015,05-11562,448,Countrywide Care Homes Ltd T/A Clum,,,,,,,,,
Nottinghamshire County Council,1111/1001,Adult Social Care and Health,ASCH,Third Party Payments,ECA,10/08/2015,05-11569,448,Landermeads Nursing Home,,,,,,,,,
Nottinghamshire County Council,1111/1001,Adult Social Care and Health,ASCH,Third Party Payments,ECA,10/08/2015,05-11571,448,Landermeads Nursing Home,,,,,,,,,
Nottinghamshire County Council,1111/1001,Adult Social Care and Health,ASCH,Third Party Payments,ECA,10/08/2015,05-11573,688,Landermeads Nursing Home,,,,,,,,,
Nottinghamshire County Council,1111/1001,Adult Social Care and Health,ASCH,Third Party Payments,ECA,10/08/2015,05-11575,448,Landermeads Nursing Home,,,,,,,,,
Nottinghamshire County Council,1111/1001,Adult Social Care and Health,ASCH,Third Party Payments,ECA,10/08/2015,05-11577,448,Landermeads Nursing Home,,,,,,,,,
Nottinghamshire County Council,1111/1001,Adult Social Care and Health,ASCH,Third Party Payments,ECA,10/08/2015,05-11579,448,Landermeads Nursing Home,,,,,,,,,
Nottinghamshire County Council,1111/1001,Adult Social Care and Health,ASCH,Third Party Payments,ECA,10/08/2015,05-11581,448,Landermeads Nursing Home,,,,,,,,,
Nottinghamshire County Council,1111/1001,Adult Social Care and Health,ASCH,Third Party Payments,ECA,10/08/2015,05-11583,448,Landermeads Nursing Home,,,,,,,,,
Nottinghamshire County Council,1111/1001,Adult Social Care and Health,ASCH,Third Party Payments,ECA,10/08/2015,05-11585,448,Landermeads Nursing Home,,,,,,,,,
Nottinghamshire County Council,1111/1001,Adult Social Care and Health,ASCH,Third Party Payments,ECA,10/08/2015,05-11587,448,Landermeads Nursing Home,,,,,,,,,
Nottinghamshire County Council,1111/1001,Adult Social Care and Health,ASCH,Third Party Payments,ECA,10/08/2015,05-11589,616.56,Landermeads Nursing Home,,,,,,,,,
Nottinghamshire County Council,1111/1001,Adult Social Care and Health,ASCH,Third Party Payments,ECA,10/08/2015,05-11591,616.56,Landermeads Nursing Home,,,,,,,,,
Nottinghamshire County Council,1111/1001,Adult Social Care and Health,ASCH,Third Party Payments,ECA,10/08/2015,05-11595,448,Landermeads Nursing Home,,,,,,,,,
Nottinghamshire County Council,1111/1001,Adult Social Care and Health,ASCH,Third Party Payments,ECA,10/08/2015,05-11597,448,Landermeads Nursing Home,,,,,,,,,
Nottinghamshire County Council,1111/1001,Adult Social Care and Health,ASCH,Third Party Payments,ECA,10/08/2015,05-11599,448,Landermeads Nursing Home,,,,,,,,,
Nottinghamshire County Council,1111/1001,Adult Social Care and Health,ASCH,Third Party Payments,ECA,10/08/2015,05-11601,448,Landermeads Nursing Home,,,,,,,,,
Nottinghamshire County Council,1111/1001,Adult Social Care and Health,ASCH,Third Party Payments,ECA,10/08/2015,05-11603,448,Landermeads Nursing Home,,,,,,,,,
Nottinghamshire County Council,1111/1001,Adult Social Care and Health,ASCH,Third Party Payments,ECA,10/08/2015,05-11605,448,Landermeads Nursing Home,,,,,,,,,
Nottinghamshire County Council,1111/1001,Adult Social Care and Health,ASCH,Third Party Payments,ECA,10/08/2015,05-11607,448,Landermeads Nursing Home,,,,,,,,,
Nottinghamshire County Council,1111/1001,Adult Social Care and Health,ASCH,Third Party Payments,ECA,10/08/2015,05-11611,448,Landermeads Nursing Home,,,,,,,,,
Nottinghamshire County Council,1111/1001,Adult Social Care and Health,ASCH,Third Party Payments,ECA,10/08/2015,05-11614,448,Landermeads Nursing Home,,,,,,,,,
Nottinghamshire County Council,1111/1001,Adult Social Care and Health,ASCH,Third Party Payments,ECA,10/08/2015,05-11616,448,Landermeads Nursing Home,,,,,,,,,
Nottinghamshire County Council,1111/1001,Adult Social Care and Health,ASCH,Third Party Payments,ECA,10/08/2015,05-11619,448,Landermeads Nursing Home,,,,,,,,,
Nottinghamshire County Council,1111/1001,Adult Social Care and Health,ASCH,Third Party Payments,ECA,10/08/2015,05-11621,448,Landermeads Nursing Home,,,,,,,,,
Nottinghamshire County Council,1111/1001,Adult Social Care and Health,ASCH,Third Party Payments,ECA,10/08/2015,05-11623,448,Landermeads Nursing Home,,,,,,,,,
Nottinghamshire County Council,1111/1001,Adult Social Care and Health,ASCH,Third Party Payments,ECA,10/08/2015,05-11668,448,Alexandra House Nursing Home,,,,,,,,,
Nottinghamshire County Council,1111/1001,Adult Social Care and Health,ASCH,Third Party Payments,ECA,10/08/2015,05-11672,448,Alexandra House Nursing Home,,,,,,,,,
Nottinghamshire County Council,1111/1001,Adult Social Care and Health,ASCH,Third Party Payments,ECA,10/08/2015,05-11676,672,Alexandra House Nursing Home,,,,,,,,,
Nottinghamshire County Council,1111/1001,Adult Social Care and Health,ASCH,Third Party Payments,ECA,10/08/2015,05-11678,448,Alexandra House Nursing Home,,,,,,,,,
Nottinghamshire County Council,1111/1001,Adult Social Care and Health,ASCH,Third Party Payments,ECA,10/08/2015,05-11682,448,Alexandra House Nursing Home,,,,,,,,,
Nottinghamshire County Council,1111/1001,Adult Social Care and Health,ASCH,Third Party Payments,ECA,10/08/2015,05-11684,448,Alexandra House Nursing Home,,,,,,,,,
Nottinghamshire County Council,1111/1001,Adult Social Care and Health,ASCH,Third Party Payments,ECA,10/08/2015,05-11690,448,Lawn Park Nursing Home,,,,,,,,,
Nottinghamshire County Council,1111/1001,Adult Social Care and Health,ASCH,Third Party Payments,ECA,10/08/2015,05-11692,448,Lawn Park Nursing Home,,,,,,,,,
Nottinghamshire County Council,1111/1001,Adult Social Care and Health,ASCH,Third Party Payments,ECA,10/08/2015,05-11694,448,Lawn Park Nursing Home,,,,,,,,,
Nottinghamshire County Council,1111/1001,Adult Social Care and Health,ASCH,Third Party Payments,ECA,10/08/2015,05-11697,448,Lawn Park Nursing Home,,,,,,,,,
Nottinghamshire County Council,1111/1001,Adult Social Care and Health,ASCH,Third Party Payments,ECA,10/08/2015,05-11699,448,Lawn Park Nursing Home,,,,,,,,,
Nottinghamshire County Council,1111/1001,Adult Social Care and Health,ASCH,Third Party Payments,ECA,10/08/2015,05-11701,448,Lawn Park Nursing Home,,,,,,,,,
Nottinghamshire County Council,1111/1001,Adult Social Care and Health,ASCH,Third Party Payments,ECA,10/08/2015,05-11705,448,Lawn Park Nursing Home,,,,,,,,,
Nottinghamshire County Council,1111/1001,Adult Social Care and Health,ASCH,Third Party Payments,ECA,10/08/2015,05-11707,448,Lawn Park Nursing Home,,,,,,,,,
Nottinghamshire County Council,1111/1001,Adult Social Care and Health,ASCH,Third Party Payments,ECA,10/08/2015,05-11710,448,Lawn Park Nursing Home,,,,,,,,,
Nottinghamshire County Council,1111/1001,Adult Social Care and Health,ASCH,Third Party Payments,ECA,10/08/2015,05-11712,448,Lawn Park Nursing Home,,,,,,,,,
Nottinghamshire County Council,1111/1001,Adult Social Care and Health,ASCH,Third Party Payments,ECA,10/08/2015,05-11714,448,Lawn Park Nursing Home,,,,,,,,,
Nottinghamshire County Council,1111/1001,Adult Social Care and Health,ASCH,Third Party Payments,ECA,10/08/2015,05-11721,448,Lawn Park Nursing Home,,,,,,,,,
Nottinghamshire County Council,1111/1001,Adult Social Care and Health,ASCH,Third Party Payments,ECA,10/08/2015,05-11730,448,Bluebell Lodge,,,,,,,,,
Nottinghamshire County Council,1111/1001,Adult Social Care and Health,ASCH,Third Party Payments,ECA,10/08/2015,05-11765,448,Ashley House Nursing Home,,,,,,,,,
Nottinghamshire County Council,1111/1001,Adult Social Care and Health,ASCH,Third Party Payments,ECA,10/08/2015,05-11768,448,Ashley House Nursing Home,,,,,,,,,
Nottinghamshire County Council,1111/1001,Adult Social Care and Health,ASCH,Third Party Payments,ECA,10/08/2015,05-11770,448,Ashley House Nursing Home,,,,,,,,,
Nottinghamshire County Council,1111/1001,Adult Social Care and Health,ASCH,Third Party Payments,ECA,10/08/2015,05-11772,448,Ashley House Nursing Home,,,,,,,,,
Nottinghamshire County Council,1111/1001,Adult Social Care and Health,ASCH,Third Party Payments,ECA,10/08/2015,05-11775,616.56,Ashley House Nursing Home,,,,,,,,,
Nottinghamshire County Council,1111/1001,Adult Social Care and Health,ASCH,Third Party Payments,ECA,10/08/2015,05-11778,448,Ashley House Nursing Home,,,,,,,,,
Nottinghamshire County Council,1111/1001,Adult Social Care and Health,ASCH,Third Party Payments,ECA,10/08/2015,05-11780,448,Ashley House Nursing Home,,,,,,,,,
Nottinghamshire County Council,1111/1001,Adult Social Care and Health,ASCH,Third Party Payments,ECA,10/08/2015,05-11782,448,Ashley House Nursing Home,,,,,,,,,
Nottinghamshire County Council,1111/1001,Adult Social Care and Health,ASCH,Third Party Payments,ECA,10/08/2015,05-11784,448,Ashley House Nursing Home,,,,,,,,,
Nottinghamshire County Council,1111/1001,Adult Social Care and Health,ASCH,Third Party Payments,ECA,10/08/2015,05-11786,192,Ashley House Nursing Home,,,,,,,,,
Nottinghamshire County Council,1111/1001,Adult Social Care and Health,ASCH,Third Party Payments,ECA,10/08/2015,05-11788,448,Ashley House Nursing Home,,,,,,,,,
Nottinghamshire County Council,1111/1001,Adult Social Care and Health,ASCH,Third Party Payments,ECA,10/08/2015,05-11791,448,Ashley House Nursing Home,,,,,,,,,
Nottinghamshire County Council,1111/1001,Adult Social Care and Health,ASCH,Third Party Payments,ECA,10/08/2015,05-11793,448,Ashley House Nursing Home,,,,,,,,,
Nottinghamshire County Council,1111/1001,Adult Social Care and Health,ASCH,Third Party Payments,ECA,10/08/2015,05-11795,616.56,Ashley House Nursing Home,,,,,,,,,
Nottinghamshire County Council,1111/1001,Adult Social Care and Health,ASCH,Third Party Payments,ECA,10/08/2015,05-11796,616.56,Ashley House Nursing Home,,,,,,,,,
Nottinghamshire County Council,1111/1001,Adult Social Care and Health,ASCH,Third Party Payments,ECA,10/08/2015,05-11797,448,Ashley House Nursing Home,,,,,,,,,
Nottinghamshire County Council,1111/1001,Adult Social Care and Health,ASCH,Third Party Payments,ECA,10/08/2015,05-11799,448,Ashley House Nursing Home,,,,,,,,,
Nottinghamshire County Council,1111/1001,Adult Social Care and Health,ASCH,Third Party Payments,ECA,10/08/2015,05-11803,448,Ashley House Nursing Home,,,,,,,,,
Nottinghamshire County Council,1111/1001,Adult Social Care and Health,ASCH,Third Party Payments,ECA,10/08/2015,05-11807,448,Ashley House Nursing Home,,,,,,,,,
Nottinghamshire County Council,1111/1001,Adult Social Care and Health,ASCH,Third Party Payments,ECA,10/08/2015,05-11811,448,Ashley House Nursing Home,,,,,,,,,
Nottinghamshire County Council,1111/1001,Adult Social Care and Health,ASCH,Third Party Payments,ECA,10/08/2015,05-11813,616.56,Ashley House Nursing Home,,,,,,,,,
Nottinghamshire County Council,1111/1001,Adult Social Care and Health,ASCH,Third Party Payments,ECA,10/08/2015,05-11814,448,Ashley House Nursing Home,,,,,,,,,
Nottinghamshire County Council,1111/1001,Adult Social Care and Health,ASCH,Third Party Payments,ECA,10/08/2015,05-11816,448,Ashley House Nursing Home,,,,,,,,,
Nottinghamshire County Council,1111/1001,Adult Social Care and Health,ASCH,Third Party Payments,ECA,10/08/2015,05-11818,448,Ashley House Nursing Home,,,,,,,,,
Nottinghamshire County Council,1111/1001,Adult Social Care and Health,ASCH,Third Party Payments,ECA,10/08/2015,05-11821,448,Aslockton Hall Nursing Home,,,,,,,,,
Nottinghamshire County Council,1111/1001,Adult Social Care and Health,ASCH,Third Party Payments,ECA,10/08/2015,05-11824,448,Aslockton Hall Nursing Home,,,,,,,,,
Nottinghamshire County Council,1111/1001,Adult Social Care and Health,ASCH,Third Party Payments,ECA,10/08/2015,05-11826,448,Aslockton Hall Nursing Home,,,,,,,,,
Nottinghamshire County Council,1111/1001,Adult Social Care and Health,ASCH,Third Party Payments,ECA,10/08/2015,05-11828,448,Aslockton Hall Nursing Home,,,,,,,,,
Nottinghamshire County Council,1111/1001,Adult Social Care and Health,ASCH,Third Party Payments,ECA,10/08/2015,05-11830,448,Aslockton Hall Nursing Home,,,,,,,,,
Nottinghamshire County Council,1111/1001,Adult Social Care and Health,ASCH,Third Party Payments,ECA,10/08/2015,05-11860,448,Rodenvine Nottm Ltd T/A Parker Hous,,,,,,,,,
Nottinghamshire County Council,1111/1001,Adult Social Care and Health,ASCH,Third Party Payments,ECA,10/08/2015,05-11862,448,Rodenvine Nottm Ltd T/A Parker Hous,,,,,,,,,
Nottinghamshire County Council,1111/1001,Adult Social Care and Health,ASCH,Third Party Payments,ECA,10/08/2015,05-11864,448,Rodenvine Nottm Ltd T/A Parker Hous,,,,,,,,,
Nottinghamshire County Council,1111/1001,Adult Social Care and Health,ASCH,Third Party Payments,ECA,10/08/2015,05-11866,448,Rodenvine Nottm Ltd T/A Parker Hous,,,,,,,,,
Nottinghamshire County Council,1111/1001,Adult Social Care and Health,ASCH,Third Party Payments,ECA,10/08/2015,05-11869,448,Rodenvine Nottm Ltd T/A Parker Hous,,,,,,,,,
Nottinghamshire County Council,1111/1001,Adult Social Care and Health,ASCH,Third Party Payments,ECA,10/08/2015,05-11871,448,Rodenvine Nottm Ltd T/A Parker Hous,,,,,,,,,
Nottinghamshire County Council,1111/1001,Adult Social Care and Health,ASCH,Third Party Payments,ECA,10/08/2015,05-11873,448,Rodenvine Nottm Ltd T/A Parker Hous,,,,,,,,,
Nottinghamshire County Council,1111/1001,Adult Social Care and Health,ASCH,Third Party Payments,ECA,10/08/2015,05-11875,448,Rodenvine Nottm Ltd T/A Parker Hous,,,,,,,,,
Nottinghamshire County Council,1111/1001,Adult Social Care and Health,ASCH,Third Party Payments,ECA,10/08/2015,05-11877,448,Gables Nursing Home,,,,,,,,,
Nottinghamshire County Council,1111/1001,Adult Social Care and Health,ASCH,Third Party Payments,ECA,10/08/2015,05-11880,448,Gables Nursing Home,,,,,,,,,
Nottinghamshire County Council,1111/1001,Adult Social Care and Health,ASCH,Third Party Payments,ECA,10/08/2015,05-11882,448,Gables Nursing Home,,,,,,,,,
Nottinghamshire County Council,1111/1001,Adult Social Care and Health,ASCH,Third Party Payments,ECA,10/08/2015,05-11884,448,Gables Nursing Home,,,,,,,,,
Nottinghamshire County Council,1111/1001,Adult Social Care and Health,ASCH,Third Party Payments,ECA,10/08/2015,05-11886,448,Gables Nursing Home,,,,,,,,,
Nottinghamshire County Council,1111/1001,Adult Social Care and Health,ASCH,Third Party Payments,ECA,10/08/2015,05-11888,448,Gables Nursing Home,,,,,,,,,
Nottinghamshire County Council,1111/1001,Adult Social Care and Health,ASCH,Third Party Payments,ECA,10/08/2015,05-11890,448,Gables Nursing Home,,,,,,,,,
Nottinghamshire County Council,1111/1001,Adult Social Care and Health,ASCH,Third Party Payments,ECA,10/08/2015,05-11892,448,Gables Nursing Home,,,,,,,,,
Nottinghamshire County Council,1111/1001,Adult Social Care and Health,ASCH,Third Party Payments,ECA,10/08/2015,05-11910,448,The Firs Nursing Home,,,,,,,,,
Nottinghamshire County Council,1111/1001,Adult Social Care and Health,ASCH,Third Party Payments,ECA,10/08/2015,05-11912,112,Forest Hill Nursing Home,,,,,,,,,
Nottinghamshire County Council,1111/1001,Adult Social Care and Health,ASCH,Third Party Payments,ECA,10/08/2015,05-11923,448,Woodhall Park Nursing Home,,,,,,,,,
Nottinghamshire County Council,1111/1001,Adult Social Care and Health,ASCH,Third Party Payments,ECA,10/08/2015,05-11926,1200,Woodthorpe Manor Nursing Home,,,,,,,,,
Nottinghamshire County Council,1111/1001,Adult Social Care and Health,ASCH,Third Party Payments,ECA,10/08/2015,05-11928,448,Woodthorpe Manor Nursing Home,,,,,,,,,
Nottinghamshire County Council,1111/1001,Adult Social Care and Health,ASCH,Third Party Payments,ECA,10/08/2015,05-11930,448,Woodthorpe Manor Nursing Home,,,,,,,,,
Nottinghamshire County Council,1111/1001,Adult Social Care and Health,ASCH,Third Party Payments,ECA,10/08/2015,05-11932,448,Woodthorpe Manor Nursing Home,,,,,,,,,
Nottinghamshire County Council,1111/1001,Adult Social Care and Health,ASCH,Third Party Payments,ECA,10/08/2015,05-11946,448,The Moorlands Nursing Home,,,,,,,,,
Nottinghamshire County Council,1111/1001,Adult Social Care and Health,ASCH,Third Party Payments,ECA,10/08/2015,05-11948,448,The Moorlands Nursing Home,,,,,,,,,
Nottinghamshire County Council,1111/1001,Adult Social Care and Health,ASCH,Third Party Payments,ECA,10/08/2015,05-11954,448,The Moorlands Nursing Home,,,,,,,,,
Nottinghamshire County Council,1111/1001,Adult Social Care and Health,ASCH,Third Party Payments,ECA,10/08/2015,05-11956,448,The Moorlands Nursing Home,,,,,,,,,
Nottinghamshire County Council,1111/1001,Adult Social Care and Health,ASCH,Third Party Payments,ECA,10/08/2015,05-11975,448,Church Farm Nursing Home Ltd,,,,,,,,,
Nottinghamshire County Council,1111/1001,Adult Social Care and Health,ASCH,Third Party Payments,ECA,10/08/2015,05-11977,672,Church Farm Nursing Home Ltd,,,,,,,,,
Nottinghamshire County Council,1111/1001,Adult Social Care and Health,ASCH,Third Party Payments,ECA,10/08/2015,05-11978,448,Church Farm Nursing Home Ltd,,,,,,,,,
Nottinghamshire County Council,1111/1001,Adult Social Care and Health,ASCH,Third Party Payments,ECA,10/08/2015,05-11980,448,Church Farm Nursing Home Ltd,,,,,,,,,
Nottinghamshire County Council,1111/1001,Adult Social Care and Health,ASCH,Third Party Payments,ECA,10/08/2015,05-11982,616.56,Church Farm Nursing Home Ltd,,,,,,,,,
Nottinghamshire County Council,1111/1001,Adult Social Care and Health,ASCH,Third Party Payments,ECA,10/08/2015,05-11983,448,Church Farm Nursing Home Ltd,,,,,,,,,
Nottinghamshire County Council,1111/1001,Adult Social Care and Health,ASCH,Third Party Payments,ECA,10/08/2015,05-11985,448,Church Farm Nursing Home Ltd,,,,,,,,,
Nottinghamshire County Council,1111/1001,Adult Social Care and Health,ASCH,Third Party Payments,ECA,10/08/2015,05-11987,448,Church Farm Nursing Home Ltd,,,,,,,,,
Nottinghamshire County Council,1111/1001,Adult Social Care and Health,ASCH,Third Party Payments,ECA,10/08/2015,05-11989,448,Church Farm Nursing Home Ltd,,,,,,,,,
Nottinghamshire County Council,1111/1001,Adult Social Care and Health,ASCH,Third Party Payments,ECA,10/08/2015,05-11995,448,Countrywide Care Homes Ltd T/A Gate,,,,,,,,,
Nottinghamshire County Council,1111/1001,Adult Social Care and Health,ASCH,Third Party Payments,ECA,10/08/2015,05-11998,448,Countrywide Care Homes Ltd T/A Gate,,,,,,,,,
Nottinghamshire County Council,1111/1001,Adult Social Care and Health,ASCH,Third Party Payments,ECA,10/08/2015,05-12000,616.56,Countrywide Care Homes Ltd T/A Gate,,,,,,,,,
Nottinghamshire County Council,1111/1001,Adult Social Care and Health,ASCH,Third Party Payments,ECA,10/08/2015,05-12002,448,Countrywide Care Homes Ltd T/A Gate,,,,,,,,,
Nottinghamshire County Council,1111/1001,Adult Social Care and Health,ASCH,Third Party Payments,ECA,10/08/2015,05-12004,448,Countrywide Care Homes Ltd T/A Gate,,,,,,,,,
Nottinghamshire County Council,1111/1001,Adult Social Care and Health,ASCH,Third Party Payments,ECA,10/08/2015,05-12007,448,Countrywide Care Homes Ltd T/A Gate,,,,,,,,,
Nottinghamshire County Council,1111/1001,Adult Social Care and Health,ASCH,Third Party Payments,ECA,10/08/2015,05-12009,448,Countrywide Care Homes Ltd T/A Gate,,,,,,,,,
Nottinghamshire County Council,1111/1001,Adult Social Care and Health,ASCH,Third Party Payments,ECA,10/08/2015,05-12012,448,Countrywide Care Homes Ltd T/A Gate,,,,,,,,,
Nottinghamshire County Council,1111/1001,Adult Social Care and Health,ASCH,Third Party Payments,ECA,10/08/2015,05-12017,448,Countrywide Care Homes Ltd T/A Gate,,,,,,,,,
Nottinghamshire County Council,1111/1001,Adult Social Care and Health,ASCH,Third Party Payments,ECA,10/08/2015,05-12019,448,Countrywide Care Homes Ltd T/A Gate,,,,,,,,,
Nottinghamshire County Council,1111/1001,Adult Social Care and Health,ASCH,Third Party Payments,ECA,10/08/2015,05-12023,448,Countrywide Care Homes Ltd T/A Gate,,,,,,,,,
Nottinghamshire County Council,1111/1001,Adult Social Care and Health,ASCH,Third Party Payments,ECA,10/08/2015,05-12029,448,Countrywide Care Homes Ltd T/A Gate,,,,,,,,,
Nottinghamshire County Council,1111/1001,Adult Social Care and Health,ASCH,Third Party Payments,ECA,10/08/2015,05-12031,448,Countrywide Care Homes Ltd T/A Gate,,,,,,,,,
Nottinghamshire County Council,1111/1001,Adult Social Care and Health,ASCH,Third Party Payments,ECA,10/08/2015,05-12033,448,Countrywide Care Homes Ltd T/A Gate,,,,,,,,,
Nottinghamshire County Council,1111/1001,Adult Social Care and Health,ASCH,Third Party Payments,ECA,10/08/2015,05-12045,448,Red Rose Nursing Home,,,,,,,,,
Nottinghamshire County Council,1111/1001,Adult Social Care and Health,ASCH,Third Party Payments,ECA,10/08/2015,05-12047,-80,Red Rose Nursing Home,,,,,,,,,
Nottinghamshire County Council,1111/1001,Adult Social Care and Health,ASCH,Third Party Payments,ECA,10/08/2015,05-12049,448,Red Rose Nursing Home,,,,,,,,,
Nottinghamshire County Council,1111/1001,Adult Social Care and Health,ASCH,Third Party Payments,ECA,10/08/2015,05-12054,448,Red Rose Nursing Home,,,,,,,,,
Nottinghamshire County Council,1111/1001,Adult Social Care and Health,ASCH,Third Party Payments,ECA,10/08/2015,05-12056,448,Red Rose Nursing Home,,,,,,,,,
Nottinghamshire County Council,1111/1001,Adult Social Care and Health,ASCH,Third Party Payments,ECA,10/08/2015,05-12059,448,Red Rose Nursing Home,,,,,,,,,
Nottinghamshire County Council,1111/1001,Adult Social Care and Health,ASCH,Third Party Payments,ECA,10/08/2015,05-12062,448,Red Rose Nursing Home,,,,,,,,,
Nottinghamshire County Council,1111/1001,Adult Social Care and Health,ASCH,Third Party Payments,ECA,10/08/2015,05-12065,448,Red Rose Nursing Home,,,,,,,,,
Nottinghamshire County Council,1111/1001,Adult Social Care and Health,ASCH,Third Party Payments,ECA,10/08/2015,05-12067,448,Red Rose Nursing Home,,,,,,,,,
Nottinghamshire County Council,1111/1001,Adult Social Care and Health,ASCH,Third Party Payments,ECA,10/08/2015,05-12069,448,Red Rose Nursing Home,,,,,,,,,
Nottinghamshire County Council,1111/1001,Adult Social Care and Health,ASCH,Third Party Payments,ECA,10/08/2015,05-12090,448,Wren Hall Nursing Home,,,,,,,,,
Nottinghamshire County Council,1111/1001,Adult Social Care and Health,ASCH,Third Party Payments,ECA,10/08/2015,05-12092,176,Wren Hall Nursing Home,,,,,,,,,
Nottinghamshire County Council,1111/1001,Adult Social Care and Health,ASCH,Third Party Payments,ECA,10/08/2015,05-12094,448,Wren Hall Nursing Home,,,,,,,,,
Nottinghamshire County Council,1111/1001,Adult Social Care and Health,ASCH,Third Party Payments,ECA,10/08/2015,05-12096,448,Wren Hall Nursing Home,,,,,,,,,
Nottinghamshire County Council,1111/1001,Adult Social Care and Health,ASCH,Third Party Payments,ECA,10/08/2015,05-12098,448,Wren Hall Nursing Home,,,,,,,,,
Nottinghamshire County Council,1111/1001,Adult Social Care and Health,ASCH,Third Party Payments,ECA,10/08/2015,05-12100,448,Wren Hall Nursing Home,,,,,,,,,
Nottinghamshire County Council,1111/1001,Adult Social Care and Health,ASCH,Third Party Payments,ECA,10/08/2015,05-12102,448,Wren Hall Nursing Home,,,,,,,,,
Nottinghamshire County Council,1111/1001,Adult Social Care and Health,ASCH,Third Party Payments,ECA,10/08/2015,05-12104,448,Wren Hall Nursing Home,,,,,,,,,
Nottinghamshire County Council,1111/1001,Adult Social Care and Health,ASCH,Third Party Payments,ECA,10/08/2015,05-12106,448,Wren Hall Nursing Home,,,,,,,,,
Nottinghamshire County Council,1111/1001,Adult Social Care and Health,ASCH,Third Party Payments,ECA,10/08/2015,05-12108,448,Wren Hall Nursing Home,,,,,,,,,
Nottinghamshire County Council,1111/1001,Adult Social Care and Health,ASCH,Third Party Payments,ECA,10/08/2015,05-12110,448,Wren Hall Nursing Home,,,,,,,,,
Nottinghamshire County Council,1111/1001,Adult Social Care and Health,ASCH,Third Party Payments,ECA,10/08/2015,05-12112,448,Wren Hall Nursing Home,,,,,,,,,
Nottinghamshire County Council,1111/1001,Adult Social Care and Health,ASCH,Third Party Payments,ECA,10/08/2015,05-12114,448,Wren Hall Nursing Home,,,,,,,,,
Nottinghamshire County Council,1111/1001,Adult Social Care and Health,ASCH,Third Party Payments,ECA,10/08/2015,05-12116,448,Wren Hall Nursing Home,,,,,,,,,
Nottinghamshire County Council,1111/1001,Adult Social Care and Health,ASCH,Third Party Payments,ECA,10/08/2015,05-12119,448,Wren Hall Nursing Home,,,,,,,,,
Nottinghamshire County Council,1111/1001,Adult Social Care and Health,ASCH,Third Party Payments,ECA,10/08/2015,05-12149,448,The Grange Nursing Home,,,,,,,,,
Nottinghamshire County Council,1111/1001,Adult Social Care and Health,ASCH,Third Party Payments,ECA,10/08/2015,05-12226,448,Hawthorne Nursing Home,,,,,,,,,
Nottinghamshire County Council,1111/1001,Adult Social Care and Health,ASCH,Third Party Payments,ECA,10/08/2015,05-12228,448,Hawthorne Nursing Home,,,,,,,,,
Nottinghamshire County Council,1111/1001,Adult Social Care and Health,ASCH,Third Party Payments,ECA,10/08/2015,05-12230,448,Hawthorne Nursing Home,,,,,,,,,
Nottinghamshire County Council,1111/1001,Adult Social Care and Health,ASCH,Third Party Payments,ECA,10/08/2015,05-12232,616.56,Hawthorne Nursing Home,,,,,,,,,
Nottinghamshire County Council,1111/1001,Adult Social Care and Health,ASCH,Third Party Payments,ECA,10/08/2015,05-12234,448,Hawthorne Nursing Home,,,,,,,,,
Nottinghamshire County Council,1111/1001,Adult Social Care and Health,ASCH,Third Party Payments,ECA,10/08/2015,05-12236,1216,Hawthorne Nursing Home,,,,,,,,,
Nottinghamshire County Council,1111/1001,Adult Social Care and Health,ASCH,Third Party Payments,ECA,10/08/2015,05-12237,448,Hawthorne Nursing Home,,,,,,,,,
Nottinghamshire County Council,1111/1001,Adult Social Care and Health,ASCH,Third Party Payments,ECA,10/08/2015,05-12239,448,Hawthorne Nursing Home,,,,,,,,,
Nottinghamshire County Council,1111/1001,Adult Social Care and Health,ASCH,Third Party Payments,ECA,10/08/2015,05-12242,448,Hawthorne Nursing Home,,,,,,,,,
Nottinghamshire County Council,1111/1001,Adult Social Care and Health,ASCH,Third Party Payments,ECA,10/08/2015,05-12244,448,Hawthorne Nursing Home,,,,,,,,,
Nottinghamshire County Council,1111/1001,Adult Social Care and Health,ASCH,Third Party Payments,ECA,10/08/2015,05-12246,896,Hazel Grove Nursing Home,,,,,,,,,
Nottinghamshire County Council,1111/1001,Adult Social Care and Health,ASCH,Third Party Payments,ECA,10/08/2015,05-12247,896,Hazel Grove Nursing Home,,,,,,,,,
Nottinghamshire County Council,1111/1001,Adult Social Care and Health,ASCH,Third Party Payments,ECA,10/08/2015,05-12248,896,Hazel Grove Nursing Home,,,,,,,,,
Nottinghamshire County Council,1111/1001,Adult Social Care and Health,ASCH,Third Party Payments,ECA,10/08/2015,05-12251,896,Hazel Grove Nursing Home,,,,,,,,,
Nottinghamshire County Council,1111/1001,Adult Social Care and Health,ASCH,Third Party Payments,ECA,10/08/2015,05-12254,896,Hazel Grove Nursing Home,,,,,,,,,
Nottinghamshire County Council,1111/1001,Adult Social Care and Health,ASCH,Third Party Payments,ECA,10/08/2015,05-12255,896,Hazel Grove Nursing Home,,,,,,,,,
Nottinghamshire County Council,1111/1001,Adult Social Care and Health,ASCH,Third Party Payments,ECA,10/08/2015,05-12256,1233.12,Hazel Grove Nursing Home,,,,,,,,,
Nottinghamshire County Council,1111/1001,Adult Social Care and Health,ASCH,Third Party Payments,ECA,10/08/2015,05-12258,896,Hazel Grove Nursing Home,,,,,,,,,
Nottinghamshire County Council,1111/1001,Adult Social Care and Health,ASCH,Third Party Payments,ECA,10/08/2015,05-12260,896,Hazel Grove Nursing Home,,,,,,,,,
Nottinghamshire County Council,1111/1001,Adult Social Care and Health,ASCH,Third Party Payments,ECA,10/08/2015,05-12262,896,Hazel Grove Nursing Home,,,,,,,,,
Nottinghamshire County Council,1111/1001,Adult Social Care and Health,ASCH,Third Party Payments,ECA,10/08/2015,05-12265,896,Hazel Grove Nursing Home,,,,,,,,,
Nottinghamshire County Council,1111/1001,Adult Social Care and Health,ASCH,Third Party Payments,ECA,10/08/2015,05-12268,896,Hazel Grove Nursing Home,,,,,,,,,
Nottinghamshire County Council,1111/1001,Adult Social Care and Health,ASCH,Third Party Payments,ECA,10/08/2015,05-12270,896,Hazel Grove Nursing Home,,,,,,,,,
Nottinghamshire County Council,1111/1001,Adult Social Care and Health,ASCH,Third Party Payments,ECA,10/08/2015,05-12275,896,Hazel Grove Nursing Home,,,,,,,,,
Nottinghamshire County Council,1111/1001,Adult Social Care and Health,ASCH,Third Party Payments,ECA,10/08/2015,05-12276,896,Hazel Grove Nursing Home,,,,,,,,,
Nottinghamshire County Council,1111/1001,Adult Social Care and Health,ASCH,Third Party Payments,ECA,10/08/2015,05-12290,656.88,Craegmoor Healthcare,,,,,,,,,
Nottinghamshire County Council,1111/1001,Adult Social Care and Health,ASCH,Third Party Payments,ECA,10/08/2015,05-12298,616.56,Four Seasons Homes (Ilkeston) Limit,,,,,,,,,
Nottinghamshire County Council,1111/1001,Adult Social Care and Health,ASCH,Third Party Payments,ECA,10/08/2015,05-12300,448,Four Seasons Homes (Ilkeston) Limit,,,,,,,,,
Nottinghamshire County Council,1111/1001,Adult Social Care and Health,ASCH,Third Party Payments,ECA,10/08/2015,05-12304,448,Four Seasons Homes (Ilkeston) Limit,,,,,,,,,
Nottinghamshire County Council,1111/1001,Adult Social Care and Health,ASCH,Third Party Payments,ECA,10/08/2015,05-12306,448,Four Seasons Homes (Ilkeston) Limit,,,,,,,,,
Nottinghamshire County Council,1111/1001,Adult Social Care and Health,ASCH,Third Party Payments,ECA,10/08/2015,05-12350,448,Eton Park Nursing Home-In Administr,,,,,,,,,
Nottinghamshire County Council,1111/1001,Adult Social Care and Health,ASCH,Third Party Payments,ECA,10/08/2015,05-12352,448,Eton Park Nursing Home-In Administr,,,,,,,,,
Nottinghamshire County Council,1111/1001,Adult Social Care and Health,ASCH,Third Party Payments,ECA,10/08/2015,05-12354,448,Eton Park Nursing Home-In Administr,,,,,,,,,
Nottinghamshire County Council,1111/1001,Adult Social Care and Health,ASCH,Third Party Payments,ECA,10/08/2015,05-12356,448,Eton Park Nursing Home-In Administr,,,,,,,,,
Nottinghamshire County Council,1111/1001,Adult Social Care and Health,ASCH,Third Party Payments,ECA,10/08/2015,05-12358,448,Eton Park Residential Home-In Admin,,,,,,,,,
Nottinghamshire County Council,1111/1001,Adult Social Care and Health,ASCH,Third Party Payments,ECA,10/08/2015,05-12412,448,Adbolton Hall Nursing Home,,,,,,,,,
Nottinghamshire County Council,1111/1001,Adult Social Care and Health,ASCH,Third Party Payments,ECA,10/08/2015,05-12415,448,Adbolton Hall Nursing Home,,,,,,,,,
Nottinghamshire County Council,1111/1001,Adult Social Care and Health,ASCH,Third Party Payments,ECA,10/08/2015,05-12418,448,Adbolton Hall Nursing Home,,,,,,,,,
Nottinghamshire County Council,1111/1001,Adult Social Care and Health,ASCH,Third Party Payments,ECA,10/08/2015,05-12420,448,Adbolton Hall Nursing Home,,,,,,,,,
Nottinghamshire County Council,1111/1001,Adult Social Care and Health,ASCH,Third Party Payments,ECA,10/08/2015,05-12422,448,Adbolton Hall Nursing Home,,,,,,,,,
Nottinghamshire County Council,1111/1001,Adult Social Care and Health,ASCH,Third Party Payments,ECA,10/08/2015,05-12424,448,Adbolton Hall Nursing Home,,,,,,,,,
Nottinghamshire County Council,1111/1001,Adult Social Care and Health,ASCH,Third Party Payments,ECA,10/08/2015,05-12427,448,Adbolton Hall Nursing Home,,,,,,,,,
Nottinghamshire County Council,1111/1001,Adult Social Care and Health,ASCH,Third Party Payments,ECA,10/08/2015,05-12429,448,Adbolton Hall Nursing Home,,,,,,,,,
Nottinghamshire County Council,1111/1001,Adult Social Care and Health,ASCH,Third Party Payments,ECA,10/08/2015,05-12431,448,Adbolton Hall Nursing Home,,,,,,,,,
Nottinghamshire County Council,1111/1001,Adult Social Care and Health,ASCH,Third Party Payments,ECA,10/08/2015,05-12433,448,Adbolton Hall Nursing Home,,,,,,,,,
Nottinghamshire County Council,1111/1001,Adult Social Care and Health,ASCH,Third Party Payments,ECA,10/08/2015,05-12435,448,Adbolton Hall Nursing Home,,,,,,,,,
Nottinghamshire County Council,1111/1001,Adult Social Care and Health,ASCH,Third Party Payments,ECA,10/08/2015,05-12438,448,Adbolton Hall Nursing Home,,,,,,,,,
Nottinghamshire County Council,1111/1001,Adult Social Care and Health,ASCH,Third Party Payments,ECA,10/08/2015,05-12441,448,Adbolton Hall Nursing Home,,,,,,,,,
Nottinghamshire County Council,1111/1001,Adult Social Care and Health,ASCH,Third Party Payments,ECA,10/08/2015,05-12495,448,Elmbank Nursing Home,,,,,,,,,
Nottinghamshire County Council,1111/1001,Adult Social Care and Health,ASCH,Third Party Payments,ECA,10/08/2015,05-12497,-1984,Elmbank Nursing Home,,,,,,,,,
Nottinghamshire County Council,1111/1001,Adult Social Care and Health,ASCH,Third Party Payments,ECA,10/08/2015,05-12549,448,Mansfield Manor Care Home,,,,,,,,,
Nottinghamshire County Council,1111/1001,Adult Social Care and Health,ASCH,Third Party Payments,ECA,10/08/2015,05-12551,448,Mansfield Manor Care Home,,,,,,,,,
Nottinghamshire County Council,1111/1001,Adult Social Care and Health,ASCH,Third Party Payments,ECA,10/08/2015,05-12553,448,Mansfield Manor Care Home,,,,,,,,,
Nottinghamshire County Council,1111/1001,Adult Social Care and Health,ASCH,Third Party Payments,ECA,10/08/2015,05-12555,448,Mansfield Manor Care Home,,,,,,,,,
Nottinghamshire County Council,1111/1001,Adult Social Care and Health,ASCH,Third Party Payments,ECA,10/08/2015,05-12557,448,Mansfield Manor Care Home,,,,,,,,,
Nottinghamshire County Council,1111/1001,Adult Social Care and Health,ASCH,Third Party Payments,ECA,10/08/2015,05-12559,448,Mansfield Manor Care Home,,,,,,,,,
Nottinghamshire County Council,1111/1001,Adult Social Care and Health,ASCH,Third Party Payments,ECA,10/08/2015,05-12563,448,Mansfield Manor Care Home,,,,,,,,,
Nottinghamshire County Council,1111/1001,Adult Social Care and Health,ASCH,Third Party Payments,ECA,10/08/2015,05-12567,448,Mansfield Manor Care Home,,,,,,,,,
Nottinghamshire County Council,1111/1001,Adult Social Care and Health,ASCH,Third Party Payments,ECA,10/08/2015,05-12569,448,Mansfield Manor Care Home,,,,,,,,,
Nottinghamshire County Council,1111/1001,Adult Social Care and Health,ASCH,Third Party Payments,ECA,10/08/2015,05-12572,448,Mansfield Manor Care Home,,,,,,,,,
Nottinghamshire County Council,1111/1001,Adult Social Care and Health,ASCH,Third Party Payments,ECA,10/08/2015,05-12574,448,Mansfield Manor Care Home,,,,,,,,,
Nottinghamshire County Council,1111/1001,Adult Social Care and Health,ASCH,Third Party Payments,ECA,10/08/2015,05-12576,448,Mansfield Manor Care Home,,,,,,,,,
Nottinghamshire County Council,1111/1001,Adult Social Care and Health,ASCH,Third Party Payments,ECA,10/08/2015,05-12578,448,Mansfield Manor Care Home,,,,,,,,,
Nottinghamshire County Council,1111/1001,Adult Social Care and Health,ASCH,Third Party Payments,ECA,10/08/2015,05-12581,448,Mansfield Manor Care Home,,,,,,,,,
Nottinghamshire County Council,1111/1001,Adult Social Care and Health,ASCH,Third Party Payments,ECA,10/08/2015,05-12583,448,Mansfield Manor Care Home,,,,,,,,,
Nottinghamshire County Council,1111/1001,Adult Social Care and Health,ASCH,Third Party Payments,ECA,10/08/2015,05-12585,448,Mansfield Manor Care Home,,,,,,,,,
Nottinghamshire County Council,1111/1001,Adult Social Care and Health,ASCH,Third Party Payments,ECA,10/08/2015,05-12587,448,Mansfield Manor Care Home,,,,,,,,,
Nottinghamshire County Council,1111/1001,Adult Social Care and Health,ASCH,Third Party Payments,ECA,10/08/2015,05-12589,448,Mansfield Manor Care Home,,,,,,,,,
Nottinghamshire County Council,1111/1001,Adult Social Care and Health,ASCH,Third Party Payments,ECA,10/08/2015,05-12621,1392,Field House Nursing Home,,,,,,,,,
Nottinghamshire County Council,1111/1001,Adult Social Care and Health,ASCH,Third Party Payments,ECA,10/08/2015,05-12623,448,Field House Nursing Home,,,,,,,,,
Nottinghamshire County Council,1111/1001,Adult Social Care and Health,ASCH,Third Party Payments,ECA,10/08/2015,05-12625,448,Field House Nursing Home,,,,,,,,,
Nottinghamshire County Council,1111/1001,Adult Social Care and Health,ASCH,Third Party Payments,ECA,10/08/2015,05-12628,448,Field House Nursing Home,,,,,,,,,
Nottinghamshire County Council,1111/1001,Adult Social Care and Health,ASCH,Third Party Payments,ECA,10/08/2015,05-12639,448,Giltbrook Health Care Ltd,,,,,,,,,
Nottinghamshire County Council,1111/1001,Adult Social Care and Health,ASCH,Third Party Payments,ECA,10/08/2015,05-12641,448,Giltbrook Health Care Ltd,,,,,,,,,
Nottinghamshire County Council,1111/1001,Adult Social Care and Health,ASCH,Third Party Payments,ECA,10/08/2015,05-12644,448,Giltbrook Health Care Ltd,,,,,,,,,
Nottinghamshire County Council,1111/1001,Adult Social Care and Health,ASCH,Third Party Payments,ECA,10/08/2015,05-12646,448,Giltbrook Health Care Ltd,,,,,,,,,
Nottinghamshire County Council,1111/1001,Adult Social Care and Health,ASCH,Third Party Payments,ECA,10/08/2015,05-12650,448,Giltbrook Health Care Ltd,,,,,,,,,
Nottinghamshire County Council,1111/1001,Adult Social Care and Health,ASCH,Third Party Payments,ECA,10/08/2015,05-12653,448,Giltbrook Health Care Ltd,,,,,,,,,
Nottinghamshire County Council,1111/1001,Adult Social Care and Health,ASCH,Third Party Payments,ECA,10/08/2015,05-12655,448,Giltbrook Health Care Ltd,,,,,,,,,
Nottinghamshire County Council,1111/1001,Adult Social Care and Health,ASCH,Third Party Payments,ECA,10/08/2015,05-12657,448,Giltbrook Health Care Ltd,,,,,,,,,
Nottinghamshire County Council,1111/1001,Adult Social Care and Health,ASCH,Third Party Payments,ECA,10/08/2015,05-12660,448,Giltbrook Health Care Ltd,,,,,,,,,
Nottinghamshire County Council,1111/1001,Adult Social Care and Health,ASCH,Third Party Payments,ECA,10/08/2015,05-12662,448,Giltbrook Health Care Ltd,,,,,,,,,
Nottinghamshire County Council,1111/1001,Adult Social Care and Health,ASCH,Third Party Payments,ECA,10/08/2015,05-12665,448,The Firs,,,,,,,,,
Nottinghamshire County Council,1111/1001,Adult Social Care and Health,ASCH,Third Party Payments,ECA,10/08/2015,05-12669,448,Clifton Manor Care Complex,,,,,,,,,
Nottinghamshire County Council,1111/1001,Adult Social Care and Health,ASCH,Third Party Payments,ECA,10/08/2015,05-12673,448,Clifton Manor Care Complex,,,,,,,,,
Nottinghamshire County Council,1111/1001,Adult Social Care and Health,ASCH,Third Party Payments,ECA,10/08/2015,05-12697,448,Lowmoor Nursing Home,,,,,,,,,
Nottinghamshire County Council,1111/1001,Adult Social Care and Health,ASCH,Third Party Payments,ECA,10/08/2015,05-12699,448,Lowmoor Nursing Home,,,,,,,,,
Nottinghamshire County Council,1111/1001,Adult Social Care and Health,ASCH,Third Party Payments,ECA,10/08/2015,05-12701,448,Lowmoor Nursing Home,,,,,,,,,
Nottinghamshire County Council,1111/1001,Adult Social Care and Health,ASCH,Third Party Payments,ECA,10/08/2015,05-12704,448,Lowmoor Nursing Home,,,,,,,,,
Nottinghamshire County Council,1111/1001,Adult Social Care and Health,ASCH,Third Party Payments,ECA,10/08/2015,05-12706,448,Lowmoor Nursing Home,,,,,,,,,
Nottinghamshire County Council,1111/1001,Adult Social Care and Health,ASCH,Third Party Payments,ECA,10/08/2015,05-12708,448,Lowmoor Nursing Home,,,,,,,,,
Nottinghamshire County Council,1111/1001,Adult Social Care and Health,ASCH,Third Party Payments,ECA,10/08/2015,05-12710,616.56,Lowmoor Nursing Home,,,,,,,,,
Nottinghamshire County Council,1111/1001,Adult Social Care and Health,ASCH,Third Party Payments,ECA,10/08/2015,05-12712,448,Lowmoor Nursing Home,,,,,,,,,
Nottinghamshire County Council,1111/1001,Adult Social Care and Health,ASCH,Third Party Payments,ECA,10/08/2015,05-12715,448,Lowmoor Nursing Home,,,,,,,,,
Nottinghamshire County Council,1111/1001,Adult Social Care and Health,ASCH,Third Party Payments,ECA,10/08/2015,05-12717,448,Lowmoor Nursing Home,,,,,,,,,
Nottinghamshire County Council,1111/1001,Adult Social Care and Health,ASCH,Third Party Payments,ECA,10/08/2015,05-12751,448,Bramcote House Nursing Home,,,,,,,,,
Nottinghamshire County Council,1111/1001,Adult Social Care and Health,ASCH,Third Party Payments,ECA,10/08/2015,05-12754,448,Bramcote House Nursing Home,,,,,,,,,
Nottinghamshire County Council,1111/1001,Adult Social Care and Health,ASCH,Third Party Payments,ECA,10/08/2015,05-12770,448,Hallcroft Nursing Home,,,,,,,,,
Nottinghamshire County Council,1111/1001,Adult Social Care and Health,ASCH,Third Party Payments,ECA,10/08/2015,05-12772,448,Hallcroft Nursing Home,,,,,,,,,
Nottinghamshire County Council,1111/1001,Adult Social Care and Health,ASCH,Third Party Payments,ECA,10/08/2015,05-12774,448,Hallcroft Nursing Home,,,,,,,,,
Nottinghamshire County Council,1111/1001,Adult Social Care and Health,ASCH,Third Party Payments,ECA,10/08/2015,05-12776,448,Hallcroft Nursing Home,,,,,,,,,
Nottinghamshire County Council,1111/1001,Adult Social Care and Health,ASCH,Third Party Payments,ECA,10/08/2015,05-12778,448,Hallcroft Nursing Home,,,,,,,,,
Nottinghamshire County Council,1111/1001,Adult Social Care and Health,ASCH,Third Party Payments,ECA,10/08/2015,05-12781,448,Hallcroft Nursing Home,,,,,,,,,
Nottinghamshire County Council,1111/1001,Adult Social Care and Health,ASCH,Third Party Payments,ECA,10/08/2015,05-12783,448,Hallcroft Nursing Home,,,,,,,,,
Nottinghamshire County Council,1111/1001,Adult Social Care and Health,ASCH,Third Party Payments,ECA,10/08/2015,05-12785,448,Hallcroft Nursing Home,,,,,,,,,
Nottinghamshire County Council,1111/1001,Adult Social Care and Health,ASCH,Third Party Payments,ECA,10/08/2015,05-12787,448,Hallcroft Nursing Home,,,,,,,,,
Nottinghamshire County Council,1111/1001,Adult Social Care and Health,ASCH,Third Party Payments,ECA,10/08/2015,05-12825,448,Byars Nursing Home,,,,,,,,,
Nottinghamshire County Council,1111/1001,Adult Social Care and Health,ASCH,Third Party Payments,ECA,10/08/2015,05-12827,448,Byars Nursing Home,,,,,,,,,
Nottinghamshire County Council,1111/1001,Adult Social Care and Health,ASCH,Third Party Payments,ECA,10/08/2015,05-12829,448,Byars Nursing Home,,,,,,,,,
Nottinghamshire County Council,1111/1001,Adult Social Care and Health,ASCH,Third Party Payments,ECA,10/08/2015,05-12831,448,Byars Nursing Home,,,,,,,,,
Nottinghamshire County Council,1111/1001,Adult Social Care and Health,ASCH,Third Party Payments,ECA,10/08/2015,05-12833,448,Byars Nursing Home,,,,,,,,,
Nottinghamshire County Council,1111/1001,Adult Social Care and Health,ASCH,Third Party Payments,ECA,10/08/2015,05-12835,448,Byars Nursing Home,,,,,,,,,
Nottinghamshire County Council,1111/1001,Adult Social Care and Health,ASCH,Third Party Payments,ECA,10/08/2015,05-12840,448,Victoria Care Home,,,,,,,,,
Nottinghamshire County Council,1111/1001,Adult Social Care and Health,ASCH,Third Party Payments,ECA,10/08/2015,05-12842,448,Victoria Care Home,,,,,,,,,
Nottinghamshire County Council,1111/1001,Adult Social Care and Health,ASCH,Third Party Payments,ECA,10/08/2015,05-12846,448,Victoria Care Home,,,,,,,,,
Nottinghamshire County Council,1111/1001,Adult Social Care and Health,ASCH,Third Party Payments,ECA,10/08/2015,05-12848,448,Victoria Care Home,,,,,,,,,
Nottinghamshire County Council,1111/1001,Adult Social Care and Health,ASCH,Third Party Payments,ECA,10/08/2015,05-12852,1312,Victoria Care Home,,,,,,,,,
Nottinghamshire County Council,1111/1001,Adult Social Care and Health,ASCH,Third Party Payments,ECA,10/08/2015,05-12860,448,Victoria Care Home,,,,,,,,,
Nottinghamshire County Council,1111/1001,Adult Social Care and Health,ASCH,Third Party Payments,ECA,10/08/2015,05-12864,448,Victoria Care Home,,,,,,,,,
Nottinghamshire County Council,1111/1001,Adult Social Care and Health,ASCH,Third Party Payments,ECA,10/08/2015,05-12867,448,Victoria Care Home,,,,,,,,,
Nottinghamshire County Council,1111/1001,Adult Social Care and Health,ASCH,Third Party Payments,ECA,10/08/2015,05-12886,448,The Poplars (Derbys),,,,,,,,,
Nottinghamshire County Council,1111/1001,Adult Social Care and Health,ASCH,Third Party Payments,ECA,10/08/2015,05-12900,448,Woodleigh Christian Care Home,,,,,,,,,
Nottinghamshire County Council,1111/1001,Adult Social Care and Health,ASCH,Third Party Payments,ECA,10/08/2015,05-12905,448,Woodleigh Christian Care Home,,,,,,,,,
Nottinghamshire County Council,1111/1001,Adult Social Care and Health,ASCH,Third Party Payments,ECA,10/08/2015,05-12907,448,Woodleigh Christian Care Home,,,,,,,,,
Nottinghamshire County Council,1111/1001,Adult Social Care and Health,ASCH,Third Party Payments,ECA,10/08/2015,05-12909,448,Woodleigh Christian Care Home,,,,,,,,,
Nottinghamshire County Council,1111/1001,Adult Social Care and Health,ASCH,Third Party Payments,ECA,10/08/2015,05-12911,448,Woodleigh Christian Care Home,,,,,,,,,
Nottinghamshire County Council,1111/1001,Adult Social Care and Health,ASCH,Third Party Payments,ECA,10/08/2015,05-12915,448,Woodleigh Christian Care Home,,,,,,,,,
Nottinghamshire County Council,1111/1001,Adult Social Care and Health,ASCH,Third Party Payments,ECA,10/08/2015,05-12917,448,Woodleigh Christian Care Home,,,,,,,,,
Nottinghamshire County Council,1111/1001,Adult Social Care and Health,ASCH,Third Party Payments,ECA,10/08/2015,05-12944,448,Millington Springs,,,,,,,,,
Nottinghamshire County Council,1111/1001,Adult Social Care and Health,ASCH,Third Party Payments,ECA,10/08/2015,05-12946,448,Millington Springs,,,,,,,,,
Nottinghamshire County Council,1111/1001,Adult Social Care and Health,ASCH,Third Party Payments,ECA,10/08/2015,05-12948,448,Millington Springs,,,,,,,,,
Nottinghamshire County Council,1111/1001,Adult Social Care and Health,ASCH,Third Party Payments,ECA,10/08/2015,05-12951,448,Millington Springs,,,,,,,,,
Nottinghamshire County Council,1111/1001,Adult Social Care and Health,ASCH,Third Party Payments,ECA,10/08/2015,05-12953,448,Millington Springs,,,,,,,,,
Nottinghamshire County Council,1111/1001,Adult Social Care and Health,ASCH,Third Party Payments,ECA,10/08/2015,05-12955,448,Millington Springs,,,,,,,,,
Nottinghamshire County Council,1111/1001,Adult Social Care and Health,ASCH,Third Party Payments,ECA,10/08/2015,05-12958,448,Millington Springs,,,,,,,,,
Nottinghamshire County Council,1111/1001,Adult Social Care and Health,ASCH,Third Party Payments,ECA,10/08/2015,05-12962,448,Millington Springs,,,,,,,,,
Nottinghamshire County Council,1111/1001,Adult Social Care and Health,ASCH,Third Party Payments,ECA,10/08/2015,05-12983,-560,Westfield Residential Home,,,,,,,,,
Nottinghamshire County Council,1111/1001,Adult Social Care and Health,ASCH,Third Party Payments,ECA,10/08/2015,05-12999,448,Lound Hall Nursing Home,,,,,,,,,
Nottinghamshire County Council,1111/1001,Adult Social Care and Health,ASCH,Third Party Payments,ECA,10/08/2015,05-13002,448,Lound Hall Nursing Home,,,,,,,,,
Nottinghamshire County Council,1111/1001,Adult Social Care and Health,ASCH,Third Party Payments,ECA,10/08/2015,05-13004,1008,Lound Hall Nursing Home,,,,,,,,,
Nottinghamshire County Council,1111/1001,Adult Social Care and Health,ASCH,Third Party Payments,ECA,10/08/2015,05-13008,448,Lound Hall Nursing Home,,,,,,,,,
Nottinghamshire County Council,1111/1001,Adult Social Care and Health,ASCH,Third Party Payments,ECA,10/08/2015,05-13010,448,Lound Hall Nursing Home,,,,,,,,,
Nottinghamshire County Council,1111/1001,Adult Social Care and Health,ASCH,Third Party Payments,ECA,10/08/2015,05-13017,448,Blyth Country House Care Home,,,,,,,,,
Nottinghamshire County Council,1111/1001,Adult Social Care and Health,ASCH,Third Party Payments,ECA,10/08/2015,05-13019,448,Blyth Country House Care Home,,,,,,,,,
Nottinghamshire County Council,1111/1001,Adult Social Care and Health,ASCH,Third Party Payments,ECA,10/08/2015,05-13023,448,Blyth Country House Care Home,,,,,,,,,
Nottinghamshire County Council,1111/1001,Adult Social Care and Health,ASCH,Third Party Payments,ECA,10/08/2015,05-13025,448,Blyth Country House Care Home,,,,,,,,,
Nottinghamshire County Council,1111/1001,Adult Social Care and Health,ASCH,Third Party Payments,ECA,10/08/2015,05-13028,448,Blyth Country House Care Home,,,,,,,,,
Nottinghamshire County Council,1111/1001,Adult Social Care and Health,ASCH,Third Party Payments,ECA,10/08/2015,05-13030,448,Blyth Country House Care Home,,,,,,,,,
Nottinghamshire County Council,1111/1001,Adult Social Care and Health,ASCH,Third Party Payments,ECA,10/08/2015,05-13053,448,Leyton Healthcare No5 Shires Care C,,,,,,,,,
Nottinghamshire County Council,1111/1001,Adult Social Care and Health,ASCH,Third Party Payments,ECA,10/08/2015,05-13056,448,Leyton Healthcare No5 Shires Care C,,,,,,,,,
Nottinghamshire County Council,1111/1001,Adult Social Care and Health,ASCH,Third Party Payments,ECA,10/08/2015,05-13058,448,Leyton Healthcare No5 Shires Care C,,,,,,,,,
Nottinghamshire County Council,1111/1001,Adult Social Care and Health,ASCH,Third Party Payments,ECA,10/08/2015,05-13060,448,Leyton Healthcare No5 Shires Care C,,,,,,,,,
Nottinghamshire County Council,1111/1001,Adult Social Care and Health,ASCH,Third Party Payments,ECA,10/08/2015,05-13070,448,Leyton Healthcare No5 Shires Care C,,,,,,,,,
Nottinghamshire County Council,1111/1001,Adult Social Care and Health,ASCH,Third Party Payments,ECA,10/08/2015,05-13073,448,Leyton Healthcare No5 Shires Care C,,,,,,,,,
Nottinghamshire County Council,1111/1001,Adult Social Care and Health,ASCH,Third Party Payments,ECA,10/08/2015,05-13095,448,Cherry Holt Care Home,,,,,,,,,
Nottinghamshire County Council,1111/1001,Adult Social Care and Health,ASCH,Third Party Payments,ECA,10/08/2015,05-13097,448,Cherry Holt Care Home,,,,,,,,,
Nottinghamshire County Council,1111/1001,Adult Social Care and Health,ASCH,Third Party Payments,ECA,10/08/2015,05-13099,448,Cherry Holt Care Home,,,,,,,,,
Nottinghamshire County Council,1111/1001,Adult Social Care and Health,ASCH,Third Party Payments,ECA,10/08/2015,05-13101,448,Cherry Holt Care Home,,,,,,,,,
